Workbook

Sheet RESUMEN (hidden)
B2: Importe Solicitado | C2: 33050
B3: Tasa Anual (TEA) | C3: 13.5
B4: Tasa de Seguro de Desgravamen | C4: 0.00015
B5: Plazo y Nro. Cuotas | C5: 60 | D5: =+simulador_1!H12 -> 72
B6: Fecha Desembolso | C6: 2022-04-28
B7: Comisiones + Pago Casillero | C7: 3.03
B8: Días de Gracia | C8: 17
B9: Mes de No Pago 1 | C9: 1
B10: Mes de No Pago 2 | C10: 6
C12: Desembolso | D12: Interes | E12: Impacto Interes | F12: Suma de Cuota | G12: Impacto Cuota Total | H12: Cuota | I12: Impacto Cuota
B13: Simulador IBS (Original) | C13: =+'Simulador Original'!$G$5 -> 33050 | D13: =+SUM('Simulador Original'!$K$32:$K$103) -> 10406.78 | F13: =+SUM('Simulador Original'!Q32:Q103) -> 50500.95021 | H13: =+'Simulador Original'!$Q$32 -> 1010.019004
B14: Simulador Cambiando Cuota | C14: =+simulador_1!$H$5 -> 34000 | D14: =+SUM(simulador_1!$L$33:$L$104) -> 12836.88 | E14: =+D14-D13 -> 2430.1 | F14: =+SUM(simulador_1!$U$33:$U$104) -> 49165.0639 | G14: =+F14-F13 -> -1335.886314 | H14: =+simulador_1!U33 -> 682.8481097 | I14: =+H14-H13 -> -327.1708946

Sheet simulador
C3: Simulador Creditos por Convenio
C7: Monto solicitado: | G7: 34000
C8: Fecha de desembolso | G8: =TODAY() -> 2025-08-21
C9: Periodo de gracia (días): | G9: 30
C10: Primera fecha de pago | G10: =simulador_1!Q7 -> 2025-10-20
C11: TEA*: | G11: 11.5
C12: Plazo: | G12: 72
C13: Comisión + Uso de Casillero***: | G13: 10
C14: Tipo de Seguro | F14: CS: Plan 0 - sin retorno
C15: Tasa Seguro | G15: =_xlfn.XLOOKUP(F14,data_seguros!$A$1:$A$3,data_seguros!$B$1:$B$3) -> 0.0009
C17: TCEA: | G17: =simulador_1!AI31 -> 0.1318771443
C18: Cuota: | G18: =I22 -> 682.8481097
C21: Periodo | D21: Saldo | E21: Capital | F21: Interes | G21: Seguros | H21: Portes | I21: Cuota
C22: =simulador_1!E33 -> 1 | D22: =simulador_1!J33 -> 34000 | E22: =simulador_1!K33 -> 297.525 | F22: =simulador_1!N33 -> 314.1231097 | G22: =simulador_1!T33 -> 61.2 | H22: =simulador_1!P33 -> 10 | I22: =simulador_1!U33 -> 682.8481097
C23: =simulador_1!E34 -> 2 | D23: =simulador_1!J34 -> 33702.47 | E23: =simulador_1!K34 -> 319.805 | F23: =simulador_1!N34 -> 321.7031097 | G23: =simulador_1!T34 -> 31.34 | H23: =simulador_1!P34 -> 10 | I23: =simulador_1!U34 -> 682.8481097
C24: =simulador_1!E35 -> 3 | D24: =simulador_1!J35 -> 33382.66 | E24: =simulador_1!K35 -> 334.305 | F24: =simulador_1!N35 -> 308.5031097 | G24: =simulador_1!T35 -> 30.04 | H24: =simulador_1!P35 -> 10 | I24: =simulador_1!U35 -> 682.8481097
C25: =simulador_1!E36 -> 4 | D25: =simulador_1!J36 -> 33048.36 | E25: =simulador_1!K36 -> 326.575 | F25: =simulador_1!N36 -> 315.5431097 | G25: =simulador_1!T36 -> 30.73 | H25: =simulador_1!P36 -> 10 | I25: =simulador_1!U36 -> 682.8481097
C26: =simulador_1!E37 -> 5 | D26: =simulador_1!J37 -> 32721.78 | E26: =simulador_1!K37 -> 329.955 | F26: =simulador_1!N37 -> 312.4631097 | G26: =simulador_1!T37 -> 30.43 | H26: =simulador_1!P37 -> 10 | I26: =simulador_1!U37 -> 682.8481097
C27: =simulador_1!E38 -> 6 | D27: =simulador_1!J38 -> 32391.82 | E27: =simulador_1!K38 -> 365.925 | F27: =simulador_1!N38 -> 279.7131097 | G27: =simulador_1!T38 -> 27.21 | H27: =simulador_1!P38 -> 10 | I27: =simulador_1!U38 -> 682.8481097
C28: =simulador_1!E39 -> 7 | D28: =simulador_1!J39 -> 32025.89 | E28: =simulador_1!K39 -> 337.155 | F28: =simulador_1!N39 -> 305.9131097 | G28: =simulador_1!T39 -> 29.78 | H28: =simulador_1!P39 -> 10 | I28: =simulador_1!U39 -> 682.8481097
C29: =simulador_1!E40 -> 8 | D29: =simulador_1!J40 -> 31688.73 | E29: =simulador_1!K40 -> 351.265 | F29: =simulador_1!N40 -> 293.0631097 | G29: =simulador_1!T40 -> 28.52 | H29: =simulador_1!P40 -> 10 | I29: =simulador_1!U40 -> 682.8481097 | Q29: 0
C30: =simulador_1!E41 -> 9 | D30: =simulador_1!J41 -> 31337.46 | E30: =simulador_1!K41 -> 344.275 | F30: =simulador_1!N41 -> 299.4331097 | G30: =simulador_1!T41 -> 29.14 | H30: =simulador_1!P41 -> 10 | I30: =simulador_1!U41 -> 682.8481097
C31: =simulador_1!E42 -> 10 | D31: =simulador_1!J42 -> 30993.18 | E31: =simulador_1!K42 -> 358.235 | F31: =simulador_1!N42 -> 286.7231097 | G31: =simulador_1!T42 -> 27.89 | H31: =simulador_1!P42 -> 10 | I31: =simulador_1!U42 -> 682.8481097
C32: =simulador_1!E43 -> 11 | D32: =simulador_1!J43 -> 30634.94 | E32: =simulador_1!K43 -> 351.545 | F32: =simulador_1!N43 -> 292.8131097 | G32: =simulador_1!T43 -> 28.49 | H32: =simulador_1!P43 -> 10 | I32: =simulador_1!U43 -> 682.8481097
C33: =simulador_1!E44 -> 12 | D33: =simulador_1!J44 -> 30283.39 | E33: =simulador_1!K44 -> 355.185 | F33: =simulador_1!N44 -> 289.5031097 | G33: =simulador_1!T44 -> 28.16 | H33: =simulador_1!P44 -> 10 | I33: =simulador_1!U44 -> 682.8481097
C34: =simulador_1!E45 -> 13 | D34: =simulador_1!J45 -> 29928.2 | E34: =simulador_1!K45 -> 368.885 | F34: =simulador_1!N45 -> 277.0231097 | G34: =simulador_1!T45 -> 26.94 | H34: =simulador_1!P45 -> 10 | I34: =simulador_1!U45 -> 682.8481097
C35: =simulador_1!E46 -> 14 | D35: =simulador_1!J46 -> 29559.31 | E35: =simulador_1!K46 -> 362.675 | F35: =simulador_1!N46 -> 282.6831097 | G35: =simulador_1!T46 -> 27.49 | H35: =simulador_1!P46 -> 10 | I35: =simulador_1!U46 -> 682.8481097
C36: =simulador_1!E47 -> 15 | D36: =simulador_1!J47 -> 29196.64 | E36: =simulador_1!K47 -> 376.215 | F36: =simulador_1!N47 -> 270.3531097 | G36: =simulador_1!T47 -> 26.28 | H36: =simulador_1!P47 -> 10 | I36: =simulador_1!U47 -> 682.8481097
C37: =simulador_1!E48 -> 16 | D37: =simulador_1!J48 -> 28820.42 | E37: =simulador_1!K48 -> 370.325 | F37: =simulador_1!N48 -> 275.7231097 | G37: =simulador_1!T48 -> 26.8 | H37: =simulador_1!P48 -> 10 | I37: =simulador_1!U48 -> 682.8481097
C38: =simulador_1!E49 -> 17 | D38: =simulador_1!J49 -> 28450.09 | E38: =simulador_1!K49 -> 374.155 | F38: =simulador_1!N49 -> 272.2331097 | G38: =simulador_1!T49 -> 26.46 | H38: =simulador_1!P49 -> 10 | I38: =simulador_1!U49 -> 682.8481097
C39: =simulador_1!E50 -> 18 | D39: =simulador_1!J50 -> 28075.94 | E39: =simulador_1!K50 -> 406.255 | F39: =simulador_1!N50 -> 243.0131097 | G39: =simulador_1!T50 -> 23.58 | H39: =simulador_1!P50 -> 10 | I39: =simulador_1!U50 -> 682.8481097
C40: =simulador_1!E51 -> 19 | D40: =simulador_1!J51 -> 27669.68 | E40: =simulador_1!K51 -> 382.235 | F40: =simulador_1!N51 -> 264.8831097 | G40: =simulador_1!T51 -> 25.73 | H40: =simulador_1!P51 -> 10 | I40: =simulador_1!U51 -> 682.8481097
C41: =simulador_1!E52 -> 20 | D41: =simulador_1!J52 -> 27287.44 | E41: =simulador_1!K52 -> 395.325 | F41: =simulador_1!N52 -> 252.9631097 | G41: =simulador_1!T52 -> 24.56 | H41: =simulador_1!P52 -> 10 | I41: =simulador_1!U52 -> 682.8481097
C42: =simulador_1!E53 -> 21 | D42: =simulador_1!J53 -> 26892.11 | E42: =simulador_1!K53 -> 390.275 | F42: =simulador_1!N53 -> 257.5631097 | G42: =simulador_1!T53 -> 25.01 | H42: =simulador_1!P53 -> 10 | I42: =simulador_1!U53 -> 682.8481097
C43: =simulador_1!E54 -> 22 | D43: =simulador_1!J54 -> 26501.83 | E43: =simulador_1!K54 -> 403.195 | F43: =simulador_1!N54 -> 245.8031097 | G43: =simulador_1!T54 -> 23.85 | H43: =simulador_1!P54 -> 10 | I43: =simulador_1!U54 -> 682.8481097
C44: =simulador_1!E55 -> 23 | D44: =simulador_1!J55 -> 26098.64 | E44: =simulador_1!K55 -> 398.485 | F44: =simulador_1!N55 -> 250.0931097 | G44: =simulador_1!T55 -> 24.27 | H44: =simulador_1!P55 -> 10 | I44: =simulador_1!U55 -> 682.8481097
C45: =simulador_1!E56 -> 24 | D45: =simulador_1!J56 -> 25700.15 | E45: =simulador_1!K56 -> 402.615 | F45: =simulador_1!N56 -> 246.3331097 | G45: =simulador_1!T56 -> 23.9 | H45: =simulador_1!P56 -> 10 | I45: =simulador_1!U56 -> 682.8481097
C46: =simulador_1!E57 -> 25 | D46: =simulador_1!J57 -> 25297.53 | E46: =simulador_1!K57 -> 415.255 | F46: =simulador_1!N57 -> 234.8231097 | G46: =simulador_1!T57 -> 22.77 | H46: =simulador_1!P57 -> 10 | I46: =simulador_1!U57 -> 682.8481097
C47: =simulador_1!E58 -> 26 | D47: =simulador_1!J58 -> 24882.27 | E47: =simulador_1!K58 -> 411.075 | F47: =simulador_1!N58 -> 238.6331097 | G47: =simulador_1!T58 -> 23.14 | H47: =simulador_1!P58 -> 10 | I47: =simulador_1!U58 -> 682.8481097
C48: =simulador_1!E59 -> 27 | D48: =simulador_1!J59 -> 24471.19 | E48: =simulador_1!K59 -> 423.535 | F48: =simulador_1!N59 -> 227.2931097 | G48: =simulador_1!T59 -> 22.02 | H48: =simulador_1!P59 -> 10 | I48: =simulador_1!U59 -> 682.8481097
C49: =simulador_1!E60 -> 28 | D49: =simulador_1!J60 -> 24047.65 | E49: =simulador_1!K60 -> 419.715 | F49: =simulador_1!N60 -> 230.7731097 | G49: =simulador_1!T60 -> 22.36 | H49: =simulador_1!P60 -> 10 | I49: =simulador_1!U60 -> 682.8481097
C50: =simulador_1!E61 -> 29 | D50: =simulador_1!J61 -> 23627.94 | E50: =simulador_1!K61 -> 424.055 | F50: =simulador_1!N61 -> 226.8231097 | G50: =simulador_1!T61 -> 21.97 | H50: =simulador_1!P61 -> 10 | I50: =simulador_1!U61 -> 682.8481097
C51: =simulador_1!E62 -> 30 | D51: =simulador_1!J62 -> 23203.88 | E51: =simulador_1!K62 -> 443.985 | F51: =simulador_1!N62 -> 208.6731097 | G51: =simulador_1!T62 -> 20.19 | H51: =simulador_1!P62 -> 10 | I51: =simulador_1!U62 -> 682.8481097
C52: =simulador_1!E63 -> 31 | D52: =simulador_1!J63 -> 22759.89 | E52: =simulador_1!K63 -> 433.035 | F52: =simulador_1!N63 -> 218.6431097 | G52: =simulador_1!T63 -> 21.17 | H52: =simulador_1!P63 -> 10 | I52: =simulador_1!U63 -> 682.8481097
C53: =simulador_1!E64 -> 32 | D53: =simulador_1!J64 -> 22326.85 | E53: =simulador_1!K64 -> 445.005 | F53: =simulador_1!N64 -> 207.7531097 | G53: =simulador_1!T64 -> 20.09 | H53: =simulador_1!P64 -> 10 | I53: =simulador_1!U64 -> 682.8481097
C54: =simulador_1!E65 -> 33 | D54: =simulador_1!J65 -> 21881.84 | E54: =simulador_1!K65 -> 442.115 | F54: =simulador_1!N65 -> 210.3831097 | G54: =simulador_1!T65 -> 20.35 | H54: =simulador_1!P65 -> 10 | I54: =simulador_1!U65 -> 682.8481097
C55: =simulador_1!E66 -> 34 | D55: =simulador_1!J66 -> 21439.72 | E55: =simulador_1!K66 -> 453.875 | F55: =simulador_1!N66 -> 199.6731097 | G55: =simulador_1!T66 -> 19.3 | H55: =simulador_1!P66 -> 10 | I55: =simulador_1!U66 -> 682.8481097
C56: =simulador_1!E67 -> 35 | D56: =simulador_1!J67 -> 20985.85 | E56: =simulador_1!K67 -> 451.385 | F56: =simulador_1!N67 -> 201.9431097 | G56: =simulador_1!T67 -> 19.52 | H56: =simulador_1!P67 -> 10 | I56: =simulador_1!U67 -> 682.8481097
C57: =simulador_1!E68 -> 36 | D57: =simulador_1!J68 -> 20534.46 | E57: =simulador_1!K68 -> 456.055 | F57: =simulador_1!N68 -> 197.6931097 | G57: =simulador_1!T68 -> 19.1 | H57: =simulador_1!P68 -> 10 | I57: =simulador_1!U68 -> 682.8481097
C58: =simulador_1!E69 -> 37 | D58: =simulador_1!J69 -> 20078.4 | E58: =simulador_1!K69 -> 467.515 | F58: =simulador_1!N69 -> 187.2631097 | G58: =simulador_1!T69 -> 18.07 | H58: =simulador_1!P69 -> 10 | I58: =simulador_1!U69 -> 682.8481097
C59: =simulador_1!E70 -> 38 | D59: =simulador_1!J70 -> 19610.89 | E59: =simulador_1!K70 -> 465.615 | F59: =simulador_1!N70 -> 188.9931097 | G59: =simulador_1!T70 -> 18.24 | H59: =simulador_1!P70 -> 10 | I59: =simulador_1!U70 -> 682.8481097
C60: =simulador_1!E71 -> 39 | D60: =simulador_1!J71 -> 19145.27 | E60: =simulador_1!K71 -> 476.855 | F60: =simulador_1!N71 -> 178.7631097 | G60: =simulador_1!T71 -> 17.23 | H60: =simulador_1!P71 -> 10 | I60: =simulador_1!U71 -> 682.8481097
C61: =simulador_1!E72 -> 40 | D61: =simulador_1!J72 -> 18668.41 | E61: =simulador_1!K72 -> 475.375 | F61: =simulador_1!N72 -> 180.1131097 | G61: =simulador_1!T72 -> 17.36 | H61: =simulador_1!P72 -> 10 | I61: =simulador_1!U72 -> 682.8481097
C62: =simulador_1!E73 -> 41 | D62: =simulador_1!J73 -> 18193.03 | E62: =simulador_1!K73 -> 480.285 | F62: =simulador_1!N73 -> 175.6431097 | G62: =simulador_1!T73 -> 16.92 | H62: =simulador_1!P73 -> 10 | I62: =simulador_1!U73 -> 682.8481097
C63: =simulador_1!E74 -> 42 | D63: =simulador_1!J74 -> 17712.74 | E63: =simulador_1!K74 -> 503.065 | F63: =simulador_1!N74 -> 154.9031097 | G63: =simulador_1!T74 -> 14.88 | H63: =simulador_1!P74 -> 10 | I63: =simulador_1!U74 -> 682.8481097
C64: =simulador_1!E75 -> 43 | D64: =simulador_1!J75 -> 17209.68 | E64: =simulador_1!K75 -> 490.465 | F64: =simulador_1!N75 -> 166.3731097 | G64: =simulador_1!T75 -> 16.01 | H64: =simulador_1!P75 -> 10 | I64: =simulador_1!U75 -> 682.8481097
C65: =simulador_1!E76 -> 44 | D65: =simulador_1!J76 -> 16719.21 | E65: =simulador_1!K76 -> 501.145 | F65: =simulador_1!N76 -> 156.6531097 | G65: =simulador_1!T76 -> 15.05 | H65: =simulador_1!P76 -> 10 | I65: =simulador_1!U76 -> 682.8481097
C66: =simulador_1!E77 -> 45 | D66: =simulador_1!J77 -> 16218.06 | E66: =simulador_1!K77 -> 500.725 | F66: =simulador_1!N77 -> 157.0431097 | G66: =simulador_1!T77 -> 15.08 | H66: =simulador_1!P77 -> 10 | I66: =simulador_1!U77 -> 682.8481097
C67: =simulador_1!E78 -> 46 | D67: =simulador_1!J78 -> 15717.33 | E67: =simulador_1!K78 -> 511.175 | F67: =simulador_1!N78 -> 147.5231097 | G67: =simulador_1!T78 -> 14.15 | H67: =simulador_1!P78 -> 10 | I67: =simulador_1!U78 -> 682.8481097
C68: =simulador_1!E79 -> 47 | D68: =simulador_1!J79 -> 15206.15 | E68: =simulador_1!K79 -> 511.195 | F68: =simulador_1!N79 -> 147.5131097 | G68: =simulador_1!T79 -> 14.14 | H68: =simulador_1!P79 -> 10 | I68: =simulador_1!U79 -> 682.8481097
C69: =simulador_1!E80 -> 48 | D69: =simulador_1!J80 -> 14694.95 | E69: =simulador_1!K80 -> 516.485 | F69: =simulador_1!N80 -> 142.6931097 | G69: =simulador_1!T80 -> 13.67 | H69: =simulador_1!P80 -> 10 | I69: =simulador_1!U80 -> 682.8481097
C70: =simulador_1!E81 -> 49 | D70: =simulador_1!J81 -> 14178.46 | E70: =simulador_1!K81 -> 526.585 | F70: =simulador_1!N81 -> 133.5031097 | G70: =simulador_1!T81 -> 12.76 | H70: =simulador_1!P81 -> 10 | I70: =simulador_1!U81 -> 682.8481097
C71: =simulador_1!E82 -> 50 | D71: =simulador_1!J82 -> 13651.87 | E71: =simulador_1!K82 -> 527.275 | F71: =simulador_1!N82 -> 132.8731097 | G71: =simulador_1!T82 -> 12.7 | H71: =simulador_1!P82 -> 10 | I71: =simulador_1!U82 -> 682.8481097
C72: =simulador_1!E83 -> 51 | D72: =simulador_1!J83 -> 13124.6 | E72: =simulador_1!K83 -> 537.135 | F72: =simulador_1!N83 -> 123.9031097 | G72: =simulador_1!T83 -> 11.81 | H72: =simulador_1!P83 -> 10 | I72: =simulador_1!U83 -> 682.8481097
C73: =simulador_1!E84 -> 52 | D73: =simulador_1!J84 -> 12587.46 | E73: =simulador_1!K84 -> 538.295 | F73: =simulador_1!N84 -> 122.8431097 | G73: =simulador_1!T84 -> 11.71 | H73: =simulador_1!P84 -> 10 | I73: =simulador_1!U84 -> 682.8481097
C74: =simulador_1!E85 -> 53 | D74: =simulador_1!J85 -> 12049.16 | E74: =simulador_1!K85 -> 543.865 | F74: =simulador_1!N85 -> 117.7731097 | G74: =simulador_1!T85 -> 11.21 | H74: =simulador_1!P85 -> 10 | I74: =simulador_1!U85 -> 682.8481097
C75: =simulador_1!E86 -> 54 | D75: =simulador_1!J86 -> 11505.29 | E75: =simulador_1!K86 -> 561.065 | F75: =simulador_1!N86 -> 102.1231097 | G75: =simulador_1!T86 -> 9.66 | H75: =simulador_1!P86 -> 10 | I75: =simulador_1!U86 -> 682.8481097
C76: =simulador_1!E87 -> 55 | D76: =simulador_1!J87 -> 10944.22 | E76: =simulador_1!K87 -> 555.295 | F76: =simulador_1!N87 -> 107.3731097 | G76: =simulador_1!T87 -> 10.18 | H76: =simulador_1!P87 -> 10 | I76: =simulador_1!U87 -> 682.8481097
C77: =simulador_1!E88 -> 56 | D77: =simulador_1!J88 -> 10388.92 | E77: =simulador_1!K88 -> 564.525 | F77: =simulador_1!N88 -> 98.97310972 | G77: =simulador_1!T88 -> 9.35 | H77: =simulador_1!P88 -> 10 | I77: =simulador_1!U88 -> 682.8481097
C78: =simulador_1!E89 -> 57 | D78: =simulador_1!J89 -> 9824.39 | E78: =simulador_1!K89 -> 566.885 | F78: =simulador_1!N89 -> 96.82310972 | G78: =simulador_1!T89 -> 9.14 | H78: =simulador_1!P89 -> 10 | I78: =simulador_1!U89 -> 682.8481097
C79: =simulador_1!E90 -> 58 | D79: =simulador_1!J90 -> 9257.5 | E79: =simulador_1!K90 -> 575.855 | F79: =simulador_1!N90 -> 88.66310972 | G79: =simulador_1!T90 -> 8.33 | H79: =simulador_1!P90 -> 10 | I79: =simulador_1!U90 -> 682.8481097
C80: =simulador_1!E91 -> 59 | D80: =simulador_1!J91 -> 8681.64 | E80: =simulador_1!K91 -> 578.715 | F80: =simulador_1!N91 -> 86.06310972 | G80: =simulador_1!T91 -> 8.07 | H80: =simulador_1!P91 -> 10 | I80: =simulador_1!U91 -> 682.8481097
C81: =simulador_1!E92 -> 60 | D81: =simulador_1!J92 -> 8102.92 | E81: =simulador_1!K92 -> 584.695 | F81: =simulador_1!N92 -> 80.61310972 | G81: =simulador_1!T92 -> 7.54 | H81: =simulador_1!P92 -> 10 | I81: =simulador_1!U92 -> 682.8481097
C82: =simulador_1!E93 -> 61 | D82: =simulador_1!J93 -> 7518.22 | E82: =simulador_1!K93 -> 593.265 | F82: =simulador_1!N93 -> 72.81310972 | G82: =simulador_1!T93 -> 6.77 | H82: =simulador_1!P93 -> 10 | I82: =simulador_1!U93 -> 682.8481097
C83: =simulador_1!E94 -> 62 | D83: =simulador_1!J94 -> 6924.95 | E83: =simulador_1!K94 -> 596.885 | F83: =simulador_1!N94 -> 69.52310972 | G83: =simulador_1!T94 -> 6.44 | H83: =simulador_1!P94 -> 10 | I83: =simulador_1!U94 -> 682.8481097
C84: =simulador_1!E95 -> 63 | D84: =simulador_1!J95 -> 6328.06 | E84: =simulador_1!K95 -> 605.185 | F84: =simulador_1!N95 -> 61.96310972 | G84: =simulador_1!T95 -> 5.7 | H84: =simulador_1!P95 -> 10 | I84: =simulador_1!U95 -> 682.8481097
C85: =simulador_1!E96 -> 64 | D85: =simulador_1!J96 -> 5722.87 | E85: =simulador_1!K96 -> 609.325 | F85: =simulador_1!N96 -> 58.20310972 | G85: =simulador_1!T96 -> 5.32 | H85: =simulador_1!P96 -> 10 | I85: =simulador_1!U96 -> 682.8481097
C86: =simulador_1!E97 -> 65 | D86: =simulador_1!J97 -> 5113.54 | E86: =simulador_1!K97 -> 615.625 | F86: =simulador_1!N97 -> 52.46310972 | G86: =simulador_1!T97 -> 4.76 | H86: =simulador_1!P97 -> 10 | I86: =simulador_1!U97 -> 682.8481097
C87: =simulador_1!E98 -> 66 | D87: =simulador_1!J98 -> 4497.91 | E87: =simulador_1!K98 -> 626.525 | F87: =simulador_1!N98 -> 42.54310972 | G87: =simulador_1!T98 -> 3.78 | H87: =simulador_1!P98 -> 10 | I87: =simulador_1!U98 -> 682.8481097
C88: =simulador_1!E99 -> 67 | D88: =simulador_1!J99 -> 3871.38 | E88: =simulador_1!K99 -> 628.485 | F88: =simulador_1!N99 -> 40.76310972 | G88: =simulador_1!T99 -> 3.6 | H88: =simulador_1!P99 -> 10 | I88: =simulador_1!U99 -> 682.8481097
C89: =simulador_1!E100 -> 68 | D89: =simulador_1!J100 -> 3242.89 | E89: =simulador_1!K100 -> 636.075 | F89: =simulador_1!N100 -> 33.85310972 | G89: =simulador_1!T100 -> 2.92 | H89: =simulador_1!P100 -> 10 | I89: =simulador_1!U100 -> 682.8481097
C90: =simulador_1!E101 -> 69 | D90: =simulador_1!J101 -> 2606.81 | E90: =simulador_1!K101 -> 641.575 | F90: =simulador_1!N101 -> 28.85310972 | G90: =simulador_1!T101 -> 2.42 | H90: =simulador_1!P101 -> 10 | I90: =simulador_1!U101 -> 682.8481097
C91: =simulador_1!E102 -> 70 | D91: =simulador_1!J102 -> 1965.23 | E91: =simulador_1!K102 -> 648.865 | F91: =simulador_1!N102 -> 22.21310972 | G91: =simulador_1!T102 -> 1.77 | H91: =simulador_1!P102 -> 10 | I91: =simulador_1!U102 -> 682.8481097
C92: =simulador_1!E103 -> 71 | D92: =simulador_1!J103 -> 1316.36 | E92: =simulador_1!K103 -> 654.925 | F92: =simulador_1!N103 -> 16.70310972 | G92: =simulador_1!T103 -> 1.22 | H92: =simulador_1!P103 -> 10 | I92: =simulador_1!U103 -> 682.8481097
C93: =simulador_1!E104 -> 72 | D93: =simulador_1!J104 -> 661.43 | E93: =simulador_1!K104 -> 661.695 | F93: =simulador_1!N104 -> 10.53310972 | G93: =simulador_1!T104 -> 0.62 | H93: =simulador_1!P104 -> 10 | I93: =simulador_1!U104 -> 682.8481097
B96: - | C96: La simulación obtenida no representa la aprobación del crédito, la cual está sujeta a la evaluación crediticia que debe realizar el Banco.
B98: - | C98: Este simulador es referencial y el cálculo se ha efectuado en base a la infromación ingresada.
B99: - | C99: Esta simulación no incluye ITF (Impuesto a las Transacciones Financieras).
B100: - | C100: (*) La TEA apliacada a esta simulación es fija. Depende de las condicinoes del convenio y la propuesta final.
B101: - | C101: El seguro de desgravamen no es obligatorio. De contratarlo se calcula sobre el saldo insoluto de la deuda, el costo del seguro es el cobrado por la aseguradora.
B103: - | C103: El cliente podrá adquirir el seguro de desgravamen en nuestras oficinas o de forma particular. En este ultimo caso deberá endosarlo a favor del Banco, y el seguro deberá tener las mismas coberturas que el/los comercializados por el Banco y cubrir el 100% el importe de capital adeudado.
B106: - | C106: (**) El seguro de desgravamen con retorno aplica solo para créditos financiados desde 25 meses a más. Aplica una devolución de hasta el 25% de las primas pagadas al término del cronograma inicial. De realizarse la cancelación antes de la cutoa 25, no existirá devolución.
B109: - | C109: La cuota de gracia es por el periodo de gracia el cual es el que transcurre entre la fecha de desembolso del crédito y el día en que se inicia el devengo de la cuota a pagar, lo cual ocurre un mes antes del primer vencimiento de pago.
B112: - | C112: En caso el cliente elija el envío de estado de cuenta físico, el costo por ello es de S/ 10.00 y este monto se suma a la cuota mensual.
B114: - | C114: Esta información se proporciona de acuerdo con el Reglamento de Gestión de Conducta de Mercado del Sistema Financiero.
B116: - | C116: (***) Comisión de Descuento Automático por planilla más Gasto de Uso de Casillero

Sheet data_seguros
A1: CS: Plan 0 - sin retorno | B1: 0.0009
A2: CS: Plan 25 - con retorno (**) | B2: 0.0042
A3: SS: Sin Seguro | B3: 0

Sheet simulador_1
C2: SIMULADOR DE CUOTAS - CRÉDITO CONVENIOS
C5: Importe Solicitado | H5: =simulador!G7 -> 34000 | L5: Fecha Desembolso | Q5: =simulador!G8 -> 2025-08-21
C6: Saldo de Capital | H6: =H5 -> 34000 | L6: Fecha Final de Gracia | Q6: =DATE(YEAR(Q5+H14),MONTH(Q5 + H14),DAY(Q5 +H14)) -> 2025-09-20
C7: Saldo de Interes | H7: 0 | L7: Fecha de la 1° cuota | Q7: =DATE(YEAR(EDATE(Q6,1)),MONTH(EDATE(Q6,1)),DAY(EDATE(Q6,1))) -> 2025-10-20 | S7: =Q6-Q5 -> 30
C8: Tasa Anual (TEA) | H8: =simulador!G11 -> 11.5 | I8: Tasa de Gracia | J8: =H8 -> 11.5 | L8: Fecha final de vencimiento | Q8: =IF(OR($H$16>0,$H$17>0),VLOOKUP($H$12,$A$33:$C$121,3,0),DATE(YEAR(EDATE(Q6,H12)),MONTH(EDATE(Q6,H12)),DAY(EDATE(Q6,H12)))) -> 2031-09-20
C9: Tasa de Seguro de Desgravámen | H9: =simulador!G15 -> 0.0009 | L9: Base | Q9: 360
L10: Frecuencia pago en días | Q10: 30
C11: Comisiones + Pago Casillero | H11: =simulador!G13 -> 10 | L11: Tasa Equivalente | Q11: =ROUND((((H8/100+1)^(1/(Q9/Q10))-1)*Q9/Q10)*100,6) -> 10.934962 | R11: tea conv. A tem luego nominal anual
C12: Plazo y Nro. Cuotas (Aplicar Si hay Mes No Pago) | H12: =+H13-VLOOKUP($H$13,'Calculos CC'!$A$4:$H$99,8,0) -> 72 | I12: =+H12 -> 72 | L12: Días entre cuotas | Q12: =(Q8-Q6)/H12 -> 30.43055556 | R12: dias promedio entre cuotas
C13: Plazo y Nro. Cuotas | H13: =simulador!G12 -> 72 | L13: Factor Aplicado | Q13: =($Q$11/100)/($Q$9/$Q$12) -> 0.009243249129 | R13: tem convertida de manera nominal a los dias entre cuotas
C14: Días de Gracia | H14: =simulador!G9 -> 30 | L14: Factor Aplicado para la cuota | Q14: =1/((1-((1+$Q$13)^(-1*$H$12)))/$Q$13) -> 0.01908118188 | R14: Factor de cuota (ok)
C15: (+/- 30 días antes de la fecha 1° cuota) | L15: Interes de Gracia | Q15: =IF(H14>0,ROUND(H6*(((1+H8/100)^(ABS(H14)/Q9))-1),4),ROUND(H6*(((1+H8/100)^(ABS(H14)/Q9))-1),4) * -1) -> 309.8239 | R15: Ok
C16: Mes de No Pago 1 | H16: 0 | L16: Saldo Interes +/- Interes Gracia | Q16: =IF(H7 + Q15>0,H7+ Q15,0) -> 309.8239
C17: Mes de No Pago 2 | H17: 0 | L17: TCEA | Q17: =+$AI$31 -> 0.1318771443
C18: Mes Cuota Doble 1 | H18: 0 | L18: Comisión de Gracia Desgravamen (Primera Cuota) | Q18: =IF(H14>0,ROUNDDOWN(H5 * H9/30*H14,2),0) -> 30.6
C19: Mes Cuota Doble 2 | H19: 0
J20: =REDONDEAR(SI(O(F16+ F17> 0,F18 + F19>0),REDONDEAR.MAS(O16/BUSCARV(F13,Calculos!$A$3:$G$99,7,FALSO),2),O16*$O$14),2)
J21: C/ Factor | K21: C/ Mini Cronograma | O21: Suavización | U21: Validador Cuota Doble
J22: C/ Factor | O22: Ultimo saldo de Principal | Q22: =VLOOKUP(I12,$F$32:$V$104,17,FALSE) - VLOOKUP(I12,$F$32:$R$104,13,FALSE) -> -0.27 | U22: Cuota Simple | W22: =+VLOOKUP("",$D$33:$U$104,18,0) -> 682.8481097
G23: Valor de cuota por dias de gracia | J23: =$Q$16/($I$12*(1/((1+0)^($Q$10/$Q$9)))) -> 4.303109722 | K23: =Q16/SUM(AA33:INDIRECT(CONCATENATE("V",32+I12-1))) -> 0.0002143031923 | L23: =+J24+Q28 -> 668.545 | O23: Numero de Dias | Q23: =Q8-Q6 -> 2191 | U23: Cuota Doble | W23: =+IFERROR(VLOOKUP("D",$D$33:$U$104,18,0)," ") -> 
G24: Valor de cuota por capital | J24: =ROUND(IF(OR(H16 + H17 > 0,H18 + H19>0), ROUNDUP(H6/VLOOKUP(H12,'Calculos CC'!$B$3:$G$99,6,FALSE),2),H6*$Q$14),2)+R33+S33+Q33 -> 709.96 | L24: Promedio | O24: Valor de Cuota Nivelada | Q24: =ROUND(+Q22/ROUND(1*(((1+H8/100)^(Q23/Q9))-1),4),2) -> -0.29 | U24: Factor | W24: =+IFERROR(W23/W22," ") -> 
G25: Seguro de Desgravamen (FPF) | J25: =ROUNDDOWN($H$5*$H$9,2) -> 30.6 | K25: =((J25*H12) + Q18)/H12 -> 31.025 | L25: =K25-J25 -> 0.425 | M25: Exceso Desgravamen | O25: Factor Ajuste | Q25: =Q24*Q14 -> -0.005533542746
G26: Comisiones + Pago de Casillero | J26: =$H$11 -> 10 | O26: Exceso de Int + Gracia | Q26: =SUM(W33:W104) -> 0 | R26: =ROUND(IF(H16+ H17> 0,ROUNDUP($Q$26/VLOOKUP(H12,'Calculos CC'!$A$3:$G$99,7,FALSE),2),$Q$26*$Q$14),2) -> 0 | S26: 0 | U26: Calce de Capital
O27: Factor Ajuste 2 | Q27: =+Q22/H12 -> -0.00375 | U27: Suma Capital (K) | W27: =+SUM($K$33:$K$92) -> 26481.57
G28: Cuota | J28: =J23+J24+J25+J26 -> 754.8631097 | K28: =J23+J24+K25+J26 -> 755.2881097 | O28: Digite Factor de Ajuste Anterior mas El Actual | Q28: -41.415 | R28: Se actualiza en cada simulación (Validar que la celda K275 sea cero) | U28: Validador | W28: =+$H$5-W27 -> 7518.43 | Z28: <- El valor tiene que ser cercano a cero.
H29: =+MONTH(DATE(YEAR(C39) + 1/12,MONTH(C39)+1,DAY(C39))) -> 5 | I29: 1 | J29: 2
I30: 2 | J30: 3 | K30: =+MONTH(DATE(YEAR(C39),MONTH(C39)+1,DAY(C39)))=$H$16 -> FALSE | M30: =IF(OR(MONTH(Q7)=H16, MONTH(Q7)=H17),IF(AND(ABS($H$16-$H$17)>1,OR(MONTH($Q$7)=$H$16,MONTH($Q$7)=$H$17)),2,IF(AND(ABS($H$16-$H$17)=1,MONTH($Q$7)>$H$16),2,IF(AND(ABS($H$16-$H$17)=1,MONTH($Q$7)<$H$17),3,1))),1) -> 1
C31: =SI(O(MES(FECHA.MES($O$6,D32))=$F$16,MES(FECHA.MES($O$6,D32))=$F$17),SI(ABS($F$17-$F$16)=1,FECHA.MES($O$6,D32+2),FECHA.MES($O$6,D32+1)),FECHA.MES($O$6,D32)) | E31: =+MONTH(DATE(YEAR(C38) + 1/12,MONTH(C38)+1,DAY(C38)))=$H$16 -> FALSE | F31: =+MONTH(DATE(YEAR(C38) + 1/12,MONTH(C38)+1,DAY(C38)))=$H$17 -> FALSE | G31: =+ABS($H$17-$H$16)=1 -> FALSE | I31: =+$H$17-MONTH(Q6) -> -9 | K31: =SUM(K33:K104) -> 34000 | L31: =+ROUND(J33*(((1+(H33/100))^(I33/G33))-1),4) -> 309.8239 | X31: =+X33-X34 -> -7.5739 | Z31: Minicronograma de Gracia | AH31: TIR | AI31: =(1+XIRR(AI32:AI104,AH32:AH104))^(360/365)-1 -> 0.1318771443
C32: Fecha Vcto. | D32: Marca | E32: Nro. Cuota (De acuerdo a Plazo) | F32: Nro. Cuota | G32: Periodo Base | H32: Tasa | I32: Nro. Dias | J32: Principal | K32: Capital | L32: Interes | M32: Interes de Gracia | N32: Interes Total | O32: Valor Cuota | P32: Comision Envio Informacion | Q32: Seguro de Desgravamen | R32: Importe de Gracia Desgravamen | S32: Importe Desgravamen por No Pago | T32: Seg. Desgravamen Total | U32: Cuota | V32: Saldo Principal | W32: Exceso | X32: =+X39-X40 -> 12.8458 | Z32: Dias Transcurridos Acumulados | AA32: Factor Simple Actualizacion | AB32: Principal | AC32: Capital | AD32: Interes | AE32: Cuota Gracia | AF32: Saldo Deuda | AH32: =+Q5 -> 2025-08-21 | AI32: =-H5 -> -34000
A33: 1 | B33: =IF(A33="","",IF(A33<=$H$22,0,1)) -> 1 | C33: =IF(OR(MONTH(EDATE($Q$6,E33))=$H$16,MONTH(EDATE($Q$6,E33))=$H$17),IF(ABS($H$17-$H$16)=1,EDATE($Q$6,E33+2),EDATE($Q$6,E33+1)),EDATE($Q$6,E33)) -> 2025-10-20 | D33: =IF(B33="","",IF(OR(MONTH(C33)=$H$18,MONTH(C33)=$H$19),"D","")) ->  | E33: =IF(OR(MONTH(Q7)=H16, MONTH(Q7)=H17),IF(AND(ABS($H$16-$H$17)>1,OR(MONTH($Q$7)=$H$16,MONTH($Q$7)=$H$17)),2,IF(AND(ABS($H$16-$H$17)=1,MONTH($Q$7)>$H$16),2,IF(AND(ABS($H$16-$H$17)=1,MONTH($Q$7)<$H$17),3,1))),1) -> 1 | F33: =1 -> 1 | G33: =$Q$9 -> 360 | H33: =$H$8 -> 11.5 | I33: =C33-Q6 -> 30 | J33: =H6 -> 34000 | K33: =IF(((IF(ISERROR(MATCH(MONTH(C33),$H$18:$H$19,0))=FALSE,$J$24 + $Q$28,0) + $J$24+$Q$28+$S$26)-(IF($J$24+$Q$28 + $S$26<ROUND(ROUND(J33*(((1+(H33/100))^(I33/G33))-1),4),2),$J$24+$Q$28 + $S$26-0.01,IF(ROUND(ROUND(J33*(((1+(H33/100))^(I33/G33))-1),4),2)+ $S$26>$J$24,$J$24+ $S$26+-0.01,ROUND(ROUND(J33*(((1+(H33/100))^(I33/G33))-1),4),2)+$S$26)))- Q33-R33-S33)<0,0.01,IF(ISERROR(MATCH(MONTH(C33),$H$18:$H$19,0))=FALSE,$J$24 + $Q$28,0)+ ($J$24+$Q$28+$S$26)-(IF($J$24+$Q$28 + $S$26<ROUND(ROUND(J33*(((1+(H33/100))^(I33/G33))-1),4),2),$J$24+$Q$28 + $S$26-0.01,IF(ROUND(ROUND(J33*(((1+(H33/100))^(I33/G33))-1),4),2)+ $S$26>$J$24,$J$24+ $S$26+-0.01,ROUND(ROUND(J33*(((1+(H33/100))^(I33/G33))-1),4),2)+$S$26)))- Q33-R33-S33) -> 297.525 | L33: =IF(K33=0.01,+$J$24-K33-Q33-R33-S33+$Q$28,IF($J$24+$Q$28 + $S$26<ROUND(ROUND(J33*(((1+(H33/100))^(I33/G33))-1),4),2),$J$24+$Q$28 + $S$26-0.01,IF(ROUND(ROUND(J33*(((1+(H33/100))^(I33/G33))-1),4),2)+ $S$26>$J$24,$J$24+ $S$26+-0.01,ROUND(ROUND(J33*(((1+(H33/100))^(I33/G33))-1),4),2)+$S$26))) -> 309.82 | M33: =IF(ISERROR(MATCH(MONTH(C33),$H$18:$H$19,0))=FALSE,$J$23,0) + $J$23 -> 4.303109722 | N33: =L33+M33 -> 314.1231097 | O33: =K33+L33 + M33 -> 611.6481097 | P33: =$J$26 -> 10 | Q33: =IF(B33="","",ROUND($H$9*J33,2)) -> 30.6 | R33: =IF(B33="","", + ROUNDDOWN($H$5*$H$9/30*H14,2)) -> 30.6 | S33: =IF(B33="","",IF(E33-0>1,ROUNDDOWN($J33*$H$9/30*(DATE(YEAR($C33),MONTH($C33)-1,DAY($C33))-Q6),2),0)) -> 0 | T33: =IF(B33="","",Q33+R33+S33) -> 61.2 | U33: =IF(B33="","",O33+P33+T33+ IF(D33="D",$P33)) -> 682.8481097 | V33: =IF(B33="","",ROUND(J33-K33,2)) -> 33702.47 | W33: =IF(B33="","",IF(ROUND(ROUND(J33*(((1+(H33/100))^(I33/G33))-1),4),2) - $J$24<0,0,ROUND(ROUND(J33*(((1+(H33/100))^(I33/G33))-1),4),2) - $J$24)) -> 0 | X33: =+ROUND(J33*(((1+(H33/100))^(I33/G33))-1),4) -> 309.8239 | Y33: =+L33-X33 -> -0.0039 | Z33: =I33 -> 30 | AA33: =1/((1+($J$8/100))^(Z33/$Q$9))*1 -> 0.9909698188 | AB33: =Q16 -> 309.8239 | AC33: =AE33-AD33 -> -2.823046207 | AD33: =(((1+($J$8/100))^((I33)/$Q$9))-1)*AB33 -> 2.82326051 | AE33: =$K$23 -> 0.0002143031923 | AF33: =AB33-AC33 -> 312.6469462 | AH33: =+IF(C33="",0,C33) -> 2025-10-20 | AI33: =+IF(U33="",0,U33) -> 682.8481097
A34: =+IF(A33>=$H$12,"",A33+1) -> 2 | B34: 1 | C34: =IF(B34="","",IF(OR(MONTH(EDATE($Q$6,E34))=$H$16,MONTH(EDATE($Q$6,E34))=$H$17),IF(ABS($H$17-$H$16)=1,EDATE($Q$6,E34+2),EDATE($Q$6,E34+1)),EDATE($Q$6,E34))) -> 2025-11-20 | E34: =IF(B34="","",IF(OR(MONTH(DATE(YEAR(C33) + 1/12,MONTH(C33)+1,DAY(C33)))=$H$16,MONTH(DATE(YEAR(C33) + 1/12,MONTH(C33)+1,DAY(C33)))=$H$17),IF(OR(ABS($H$17-$H$16)>1,$H$16=1),E33+2,E33 + 3),E33 + 1)) -> 2 | F34: =IF(B34="","",F33+1) -> 2 | G34: =IF(B34="","",$Q$9) -> 360 | H34: =IF(B34="","",$H$8) -> 11.5 | I34: =IF(B34="","",C34-C33) -> 31 | J34: =IF(B34="","",+V33) -> 33702.47 | K34: =IF(((IF(ISERROR(MATCH(MONTH(C34),$H$18:$H$19,0))=FALSE,$J$24 + $Q$28,0) + $J$24+$Q$28+$S$26)-(IF($J$24+$Q$28 + $S$26<ROUND(ROUND(J34*(((1+(H34/100))^(I34/G34))-1),4),2),$J$24+$Q$28 + $S$26-0.01,IF(ROUND(ROUND(J34*(((1+(H34/100))^(I34/G34))-1),4),2)+ $S$26>$J$24,$J$24+ $S$26+-0.01,ROUND(ROUND(J34*(((1+(H34/100))^(I34/G34))-1),4),2)+$S$26)))- Q34-R34-S34)<0,0.01,IF(ISERROR(MATCH(MONTH(C34),$H$18:$H$19,0))=FALSE,$J$24 + $Q$28,0)+ ($J$24+$Q$28+$S$26)-(IF($J$24+$Q$28 + $S$26<ROUND(ROUND(J34*(((1+(H34/100))^(I34/G34))-1),4),2),$J$24+$Q$28 + $S$26-0.01,IF(ROUND(ROUND(J34*(((1+(H34/100))^(I34/G34))-1),4),2)+ $S$26>$J$24,$J$24+ $S$26+-0.01,ROUND(ROUND(J34*(((1+(H34/100))^(I34/G34))-1),4),2)+$S$26)))- Q34-R34-S34) -> 319.805 | L34: =IF(K34=0.01,+$J$24-K34-Q34-R34-S34+$Q$28,IF($J$24+$Q$28 + $S$26<ROUND(ROUND(J34*(((1+(H34/100))^(I34/G34))-1),4),2),$J$24+$Q$28 + $S$26-0.01,IF(ROUND(ROUND(J34*(((1+(H34/100))^(I34/G34))-1),4),2)+ $S$26>$J$24,$J$24+ $S$26+-0.01,ROUND(ROUND(J34*(((1+(H34/100))^(I34/G34))-1),4),2)+$S$26))) -> 317.4 | M34: =IF(B34="","",IF(ISERROR(MATCH(MONTH(C34),$H$18:$H$19,0))=FALSE,$J$23,0) + $J$23) -> 4.303109722 | N34: =IF(B34="","",L34+M34) -> 321.7031097 | O34: =IF(B34="","",K34+L34 + M34) -> 641.5081097 | P34: =IF(B34="","",$J$26) -> 10 | Q34: =IF(B34="","",ROUND($H$9*J34/30*$I34,2)-S34) -> 31.34 | S34: =IF(B34="","",IF(E34-E33>1,ROUNDDOWN($J34*$H$9/30*(DATE(YEAR($C34),MONTH($C34)-1,DAY($C34))-C33),2),0)) -> 0 | T34: =IF(B34="","",Q34+R34+S34) -> 31.34 | U34: =IF(B34="","",O34+P34+T34+ IF(D34="D",$P34)) -> 682.8481097 | V34: 33382.66 | W34: 0 | X34: =+ROUND(J34*(((1+(H34/100))^(I34/G34))-1),4) -> 317.3978 | Y34: =+L34-X34 -> 0.0022 | Z34: =Z33+I34 -> 61 | AA34: =1/((1+($J$8/100))^(Z34/$Q$9))*1 -> 0.9817242896 | AB34: =AF33 -> 312.6469462 | AC34: =AE34-AD34 -> -2.944183111 | AD34: 2.944397414 | AE34: =$K$23 -> 0.0002143031923 | AF34: =AB34-AC34 -> 315.5911293 | AH34: 2025-11-20 | AI34: 682.8481097
A35: 3 | B35: 1 | C35: 2025-12-20 | E35: 3 | F35: 3 | G35: 360 | H35: 11.5 | I35: 30 | J35: 33382.66 | K35: 334.305 | L35: 304.2 | M35: 4.303109722 | N35: 308.5031097 | O35: 642.8081097 | P35: 10 | Q35: 30.04 | S35: 0 | T35: 30.04 | U35: 682.8481097 | V35: 33048.36 | W35: 0 | X35: 304.1984 | Y35: 0.0016 | Z35: 91 | AA35: 0.9728591414 | AB35: =AF34 -> 315.5911293 | AC35: =AE35-AD35 -> -2.875599902 | AD35: 2.875814205 | AE35: 0.0002143031923 | AF35: =AB35-AC35 -> 318.4667292 | AH35: 2025-12-20 | AI35: 682.8481097
A36: 4 | B36: 1 | C36: 2026-01-20 | E36: 4 | F36: 4 | G36: 360 | H36: 11.5 | I36: 31 | J36: 33048.36 | K36: 326.575 | L36: 311.24 | M36: 4.303109722 | N36: 315.5431097 | O36: 642.1181097 | P36: 10 | Q36: 30.73 | S36: 0 | T36: 30.73 | U36: 682.8481097 | V36: 32721.78 | W36: 0 | X36: 311.2377 | Y36: 0.0023 | Z36: 122 | AA36: 0.9637825809 | AB36: 318.4667292 | AC36: -2.998991752 | AD36: 2.999206055 | AE36: 0.0002143031923 | AF36: 321.465721 | AH36: 2026-01-20 | AI36: 682.8481097
A37: 5 | B37: 1 | C37: 2026-02-20 | E37: 5 | F37: 5 | G37: 360 | H37: 11.5 | I37: 31 | J37: 32721.78 | K37: 329.955 | L37: 308.16 | M37: 4.303109722 | N37: 312.4631097 | O37: 642.4181097 | P37: 10 | Q37: 30.43 | S37: 0 | T37: 30.43 | U37: 682.8481097 | V37: 32391.82 | W37: 0 | X37: 308.1621 | Y37: -0.0021 | Z37: 153 | AA37: 0.9547907026 | AB37: 321.465721 | AC37: -3.027235186 | AD37: 3.027449489 | AE37: 0.0002143031923 | AF37: 324.4929562 | AH37: 2026-02-20 | AI37: 682.8481097
A38: 6 | B38: 1 | C38: 2026-03-20 | E38: 6 | F38: 6 | G38: 360 | H38: 11.5 | I38: 28 | J38: 32391.82 | K38: 365.925 | L38: 275.41 | M38: 4.303109722 | N38: 279.7131097 | O38: 645.6381097 | P38: 10 | Q38: 27.21 | S38: 0 | T38: 27.21 | U38: 682.8481097 | V38: 32025.89 | W38: 0 | X38: 275.4081 | Y38: 0.0019 | Z38: 181 | AA38: 0.9467411351 | AB38: 324.4929562 | AC38: -2.758753146 | AD38: 2.758967449 | AE38: 0.0002143031923 | AF38: 327.2517093 | AH38: 2026-03-20 | AI38: 682.8481097
A39: 7 | B39: 1 | C39: 2026-04-20 | E39: 7 | F39: 7 | G39: 360 | H39: 11.5 | I39: 31 | J39: 32025.89 | K39: 337.155 | L39: 301.61 | M39: 4.303109722 | N39: 305.9131097 | O39: 643.0681097 | P39: 10 | Q39: 29.78 | S39: 0 | T39: 29.78 | U39: 682.8481097 | V39: 31688.73 | W39: 0 | X39: 301.6084 | Y39: 0.0016 | Z39: 212 | AA39: 0.9379082497 | AB39: 327.2517093 | AC39: -3.08172556 | AD39: 3.081939863 | AE39: 0.0002143031923 | AF39: 330.3334349 | AH39: 2026-04-20 | AI39: 682.8481097
A40: 8 | B40: 1 | C40: =IF(B40="","",IF(OR(MONTH(EDATE($Q$6,E40))=$H$16,MONTH(EDATE($Q$6,E40))=$H$17),IF(ABS($H$17-$H$16)=1,EDATE($Q$6,E40+2),EDATE($Q$6,E40+1)),EDATE($Q$6,E40))) -> 2026-05-20 | E40: =IF(B40="","",IF(OR(MONTH(DATE(YEAR(C39) + 1/12,MONTH(C39)+1,DAY(C39)))=$H$16,MONTH(DATE(YEAR(C39) + 1/12,MONTH(C39)+1,DAY(C39)))=$H$17),IF(OR(ABS($H$17-$H$16)>1,$H$16=1),E39+2,E39 + 3),E39 + 1)) -> 8 | F40: 8 | G40: 360 | H40: 11.5 | I40: 30 | J40: 31688.73 | K40: 351.265 | L40: 288.76 | M40: 4.303109722 | N40: 293.0631097 | O40: 644.3281097 | P40: 10 | Q40: 28.52 | S40: 0 | T40: 28.52 | U40: 682.8481097 | V40: 31337.46 | W40: 0 | X40: 288.7626 | Y40: -0.0026 | Z40: 242 | AA40: 0.9294387683 | AB40: 330.3334349 | AC40: -3.009938696 | AD40: 3.010152999 | AE40: 0.0002143031923 | AF40: 333.3433736 | AH40: 2026-05-20 | AI40: 682.8481097
A41: 9 | B41: 1 | C41: =IF(B41="","",IF(OR(MONTH(EDATE($Q$6,E41))=$H$16,MONTH(EDATE($Q$6,E41))=$H$17),IF(ABS($H$17-$H$16)=1,EDATE($Q$6,E41+2),EDATE($Q$6,E41+1)),EDATE($Q$6,E41))) -> 2026-06-20 | E41: =IF(B41="","",IF(OR(MONTH(DATE(YEAR(C40) + 1/12,MONTH(C40)+1,DAY(C40)))=$H$16,MONTH(DATE(YEAR(C40) + 1/12,MONTH(C40)+1,DAY(C40)))=$H$17),IF(OR(ABS($H$17-$H$16)>1,$H$16=1),E40+2,E40 + 3),E40 + 1)) -> 9 | F41: 9 | G41: 360 | H41: 11.5 | I41: 31 | J41: 31337.46 | K41: 344.275 | L41: 295.13 | M41: 4.303109722 | N41: 299.4331097 | O41: 643.7081097 | P41: 10 | Q41: 29.14 | S41: 0 | T41: 29.14 | U41: 682.8481097 | V41: 30993.18 | W41: 0 | X41: 295.125 | Y41: 0.005 | Z41: 273 | AA41: 0.9207673102 | AB41: 333.3433736 | AC41: -3.139094681 | AD41: 3.139308984 | AE41: 0.0002143031923 | AF41: 336.4824682 | AH41: 2026-06-20 | AI41: 682.8481097
A42: 10 | B42: 1 | C42: 2026-07-20 | E42: 10 | F42: 10 | G42: 360 | H42: 11.5 | I42: 30 | J42: 30993.18 | K42: 358.235 | L42: 282.42 | M42: 4.303109722 | N42: 286.7231097 | O42: 644.9581097 | P42: 10 | Q42: 27.89 | S42: 0 | T42: 27.89 | U42: 682.8481097 | V42: 30634.94 | W42: 0 | X42: 282.4244 | Y42: -0.0044 | Z42: 303 | AA42: 0.9124526145 | AB42: 336.4824682 | AC42: -3.065971568 | AD42: 3.066185871 | AE42: 0.0002143031923 | AF42: 339.5484398 | AH42: 2026-07-20 | AI42: 682.8481097
A43: 11 | B43: 1 | C43: 2026-08-20 | E43: 11 | F43: 11 | G43: 360 | H43: 11.5 | I43: 31 | J43: 30634.94 | K43: 351.545 | L43: 288.51 | M43: 4.303109722 | N43: 292.8131097 | O43: 644.3581097 | P43: 10 | Q43: 28.49 | S43: 0 | T43: 28.49 | U43: 682.8481097 | V43: 30283.39 | W43: 0 | X43: 288.5089 | Y43: 0.0011 | Z43: 334 | AA43: 0.9039396335 | AB43: 339.5484398 | AC43: -3.197531782 | AD43: 3.197746085 | AE43: 0.0002143031923 | AF43: 342.7459716 | AH43: 2026-08-20 | AI43: 682.8481097
A44: 12 | B44: 1 | C44: 2026-09-20 | E44: 12 | F44: 12 | G44: 360 | H44: 11.5 | I44: 31 | J44: 30283.39 | K44: 355.185 | L44: 285.2 | M44: 4.303109722 | N44: 289.5031097 | O44: 644.6881097 | P44: 10 | Q44: 28.16 | S44: 0 | T44: 28.16 | U44: 682.8481097 | V44: 29928.2 | W44: 0 | X44: 285.1982 | Y44: 0.0018 | Z44: 365 | AA44: 0.8955060767 | AB44: 342.7459716 | AC44: -3.227644995 | AD44: 3.227859299 | AE44: 0.0002143031923 | AF44: 345.9736166 | AH44: 2026-09-20 | AI44: 682.8481097
A45: 13 | B45: 1 | C45: 2026-10-20 | E45: 13 | F45: 13 | G45: 360 | H45: 11.5 | I45: 30 | J45: 29928.2 | K45: 368.885 | L45: 272.72 | M45: 4.303109722 | N45: 277.0231097 | O45: 645.9081097 | P45: 10 | Q45: 26.94 | S45: 0 | T45: 26.94 | U45: 682.8481097 | V45: 29559.31 | W45: 0 | X45: 272.7198 | Y45: 0.0002 | Z45: 395 | AA45: 0.8874194946 | AB45: 345.9736166 | AC45: -3.152459358 | AD45: 3.152673661 | AE45: 0.0002143031923 | AF45: 349.1260759 | AH45: 2026-10-20 | AI45: 682.8481097
A46: 14 | B46: 1 | C46: 2026-11-20 | E46: 14 | F46: 14 | G46: 360 | H46: 11.5 | I46: 31 | J46: 29559.31 | K46: 362.675 | L46: 278.38 | M46: 4.303109722 | N46: 282.6831097 | O46: 645.3581097 | P46: 10 | Q46: 27.49 | S46: 0 | T46: 27.49 | U46: 682.8481097 | V46: 29196.64 | W46: 0 | X46: 278.379 | Y46: 0.001 | Z46: 426 | AA46: 0.879140067 | AB46: 349.1260759 | AC46: -3.287730542 | AD46: 3.287944846 | AE46: 0.0002143031923 | AF46: 352.4138065 | AH46: 2026-11-20 | AI46: 682.8481097
A47: 15 | B47: 1 | C47: 2026-12-20 | E47: 15 | F47: 15 | G47: 360 | H47: 11.5 | I47: 30 | J47: 29196.64 | K47: 376.215 | L47: 266.05 | M47: 4.303109722 | N47: 270.3531097 | O47: 646.5681097 | P47: 10 | Q47: 26.28 | S47: 0 | T47: 26.28 | U47: 682.8481097 | V47: 28820.42 | W47: 0 | X47: 266.0535 | Y47: -0.0035 | Z47: 456 | AA47: 0.8712012729 | AB47: 352.4138065 | AC47: -3.211145385 | AD47: 3.211359688 | AE47: 0.0002143031923 | AF47: 355.6249519 | AH47: 2026-12-20 | AI47: 682.8481097
A48: 16 | B48: 1 | C48: 2027-01-20 | E48: 16 | F48: 16 | G48: 360 | H48: 11.5 | I48: 31 | J48: 28820.42 | K48: 370.325 | L48: 271.42 | M48: 4.303109722 | N48: 275.7231097 | O48: 646.0481097 | P48: 10 | Q48: 26.8 | S48: 0 | T48: 26.8 | U48: 682.8481097 | V48: 28450.09 | W48: 0 | X48: 271.4204 | Y48: -0.0004 | Z48: 487 | AA48: 0.8630731578 | AB48: 355.6249519 | AC48: -3.348934638 | AD48: 3.349148941 | AE48: 0.0002143031923 | AF48: 358.9738865 | AH48: 2027-01-20 | AI48: 682.8481097
A49: 17 | B49: 1 | C49: 2027-02-20 | E49: 17 | F49: 17 | G49: 360 | H49: 11.5 | I49: 31 | J49: 28450.09 | K49: 374.155 | L49: 267.93 | M49: 4.303109722 | N49: 272.2331097 | O49: 646.3881097 | P49: 10 | Q49: 26.46 | S49: 0 | T49: 26.46 | U49: 682.8481097 | V49: 28075.94 | W49: 0 | X49: 267.9328 | Y49: -0.0028 | Z49: 518 | AA49: 0.8550208762 | AB49: 358.9738865 | AC49: -3.380473709 | AD49: 3.380688013 | AE49: 0.0002143031923 | AF49: 362.3543602 | AH49: 2027-02-20 | AI49: 682.8481097
A50: 18 | B50: 1 | C50: 2027-03-20 | E50: 18 | F50: 18 | G50: 360 | H50: 11.5 | I50: 28 | J50: 28075.94 | K50: 406.255 | L50: 238.71 | M50: 4.303109722 | N50: 243.0131097 | O50: 649.2681097 | P50: 10 | Q50: 23.58 | S50: 0 | T50: 23.58 | U50: 682.8481097 | V50: 27669.68 | W50: 0 | X50: 238.7127 | Y50: -0.0027 | Z50: 546 | AA50: 0.8478124395 | AB50: 362.3543602 | AC50: -3.080665777 | AD50: 3.08088008 | AE50: 0.0002143031923 | AF50: 365.435026 | AH50: 2027-03-20 | AI50: 682.8481097
A51: 19 | B51: 1 | C51: 2027-04-20 | E51: 19 | F51: 19 | G51: 360 | H51: 11.5 | I51: 31 | J51: 27669.68 | K51: 382.235 | L51: 260.58 | M51: 4.303109722 | N51: 264.8831097 | O51: 647.1181097 | P51: 10 | Q51: 25.73 | S51: 0 | T51: 25.73 | U51: 682.8481097 | V51: 27287.44 | W51: 0 | X51: 260.5832 | Y51: -0.0032 | Z51: 577 | AA51: 0.839902537 | AB51: 365.435026 | AC51: -3.441322416 | AD51: 3.44153672 | AE51: 0.0002143031923 | AF51: 368.8763484 | AH51: 2027-04-20 | AI51: 682.8481097
A52: 20 | B52: 1 | C52: 2027-05-20 | E52: 20 | F52: 20 | G52: 360 | H52: 11.5 | I52: 30 | J52: 27287.44 | K52: 395.325 | L52: 248.66 | M52: 4.303109722 | N52: 252.9631097 | O52: 648.2881097 | P52: 10 | Q52: 24.56 | S52: 0 | T52: 24.56 | U52: 682.8481097 | V52: 26892.11 | W52: 0 | X52: 248.6559 | Y52: 0.0041 | Z52: 607 | AA52: 0.8323180649 | AB52: 368.8763484 | AC52: -3.361159779 | AD52: 3.361374082 | AE52: 0.0002143031923 | AF52: 372.2375082 | AH52: 2027-05-20 | AI52: 682.8481097
A53: 21 | B53: 1 | C53: 2027-06-20 | E53: 21 | F53: 21 | G53: 360 | H53: 11.5 | I53: 31 | J53: 26892.11 | K53: 390.275 | L53: 253.26 | M53: 4.303109722 | N53: 257.5631097 | O53: 647.8381097 | P53: 10 | Q53: 25.01 | S53: 0 | T53: 25.01 | U53: 682.8481097 | V53: 26501.83 | W53: 0 | X53: 253.2603 | Y53: -0.0003 | Z53: 638 | AA53: 0.8245527215 | AB53: 372.2375082 | AC53: -3.505385767 | AD53: 3.50560007 | AE53: 0.0002143031923 | AF53: 375.742894 | AH53: 2027-06-20 | AI53: 682.8481097
A54: 22 | B54: 1 | C54: 2027-07-20 | E54: 22 | F54: 22 | G54: 360 | H54: 11.5 | I54: 30 | J54: 26501.83 | K54: =IF(B54="","",IF(((IF(ISERROR(MATCH(MONTH(C54),$H$18:$H$19,0))=FALSE,$J$24 + $Q$28,0) + $J$24+$Q$28+$S$26)-(IF($J$24+$Q$28 + $S$26<ROUND(ROUND(J54*(((1+(H54/100))^(I54/G54))-1),4),2),$J$24+$Q$28 + $S$26-0.01,IF(ROUND(ROUND(J54*(((1+(H54/100))^(I54/G54))-1),4),2)+ $S$26>$J$24,$J$24+ $S$26+-0.01,ROUND(ROUND(J54*(((1+(H54/100))^(I54/G54))-1),4),2)+$S$26)))- Q54-R54-S54)<0,0.01,IF(ISERROR(MATCH(MONTH(C54),$H$18:$H$19,0))=FALSE,$J$24 + $Q$28,0)+ ($J$24+$Q$28+$S$26)-(IF($J$24+$Q$28 + $S$26<ROUND(ROUND(J54*(((1+(H54/100))^(I54/G54))-1),4),2),$J$24+$Q$28 + $S$26-0.01,IF(ROUND(ROUND(J54*(((1+(H54/100))^(I54/G54))-1),4),2)+ $S$26>$J$24,$J$24+ $S$26+-0.01,ROUND(ROUND(J54*(((1+(H54/100))^(I54/G54))-1),4),2)+$S$26)))- Q54-R54-S54)) -> 403.195 | L54: =IF(B54="","",IF(K54=0.01,+$J$24-K54-Q54-R54-S54+$Q$28,IF($J$24+$Q$28 + $S$26<ROUND(ROUND(J54*(((1+(H54/100))^(I54/G54))-1),4),2),$J$24+$Q$28 + $S$26-0.01,IF(ROUND(ROUND(J54*(((1+(H54/100))^(I54/G54))-1),4),2)+ $S$26>$J$24,$J$24+ $S$26+-0.01,ROUND(ROUND(J54*(((1+(H54/100))^(I54/G54))-1),4),2)+$S$26)))) -> 241.5 | M54: 4.303109722 | N54: 245.8031097 | O54: 648.9981097 | P54: 10 | Q54: 23.85 | S54: 0 | T54: 23.85 | U54: 682.8481097 | V54: 26098.64 | W54: 0 | X54: 241.4971 | Y54: 0.0029 | Z54: 668 | AA54: 0.8171068611 | AB54: 375.742894 | AC54: -3.423730958 | AD54: 3.423945262 | AE54: 0.0002143031923 | AF54: 379.1666249 | AH54: 2027-07-20 | AI54: 682.8481097
A55: 23 | B55: 1 | C55: 2027-08-20 | E55: 23 | F55: 23 | G55: 360 | H55: 11.5 | I55: 31 | J55: 26098.64 | K55: 398.485 | L55: 245.79 | M55: 4.303109722 | N55: 250.0931097 | O55: 648.5781097 | P55: 10 | Q55: 24.27 | S55: 0 | T55: 24.27 | U55: 682.8481097 | V55: 25700.15 | W55: 0 | X55: 245.7877 | Y55: 0.0023 | Z55: 699 | AA55: 0.8094834348 | AB55: 379.1666249 | AC55: -3.570641717 | AD55: 3.57085602 | AE55: 0.0002143031923 | AF55: 382.7372666 | AH55: 2027-08-20 | AI55: 682.8481097
A56: 24 | B56: 1 | C56: 2027-09-20 | E56: 24 | F56: 24 | G56: 360 | H56: 11.5 | I56: 31 | J56: 25700.15 | K56: 402.615 | L56: 242.03 | M56: 4.303109722 | N56: 246.3331097 | O56: 648.9481097 | P56: 10 | Q56: 23.9 | S56: 0 | T56: 23.9 | U56: 682.8481097 | V56: 25297.53 | W56: 0 | X56: 242.0348 | Y56: -0.0048 | Z56: 730 | AA56: 0.8019311335 | AB56: 382.7372666 | AC56: -3.604268747 | AD56: 3.60448305 | AE56: 0.0002143031923 | AF56: 386.3415354 | AH56: 2027-09-20 | AI56: 682.8481097
A57: 25 | B57: 1 | C57: 2027-10-20 | E57: 25 | F57: 25 | G57: 360 | H57: 11.5 | I57: 30 | J57: 25297.53 | K57: 415.255 | L57: 230.52 | M57: 4.303109722 | N57: 234.8231097 | O57: 650.0781097 | P57: 10 | Q57: 22.77 | S57: 0 | T57: 22.77 | U57: 682.8481097 | V57: 24882.27 | W57: 0 | X57: 230.5229 | Y57: -0.0029 | Z57: 760 | AA57: 0.79468955 | AB57: 386.3415354 | AC57: -3.520310744 | AD57: 3.520525047 | AE57: 0.0002143031923 | AF57: 389.8618461 | AH57: 2027-10-20 | AI57: 682.8481097
A58: 26 | B58: 1 | C58: 2027-11-20 | E58: 26 | F58: 26 | G58: 360 | H58: 11.5 | I58: 31 | J58: 24882.27 | K58: 411.075 | L58: 234.33 | M58: 4.303109722 | N58: 238.6331097 | O58: 649.7081097 | P58: 10 | Q58: 23.14 | S58: 0 | T58: 23.14 | U58: 682.8481097 | V58: 24471.19 | W58: 0 | X58: 234.3323 | Y58: -0.0023 | Z58: 791 | AA58: 0.7872752723 | AB58: 389.8618461 | AC58: -3.671365495 | AD58: 3.671579798 | AE58: 0.0002143031923 | AF58: 393.5332116 | AH58: 2027-11-20 | AI58: 682.8481097
A59: 27 | B59: 1 | C59: 2027-12-20 | E59: 27 | F59: 27 | G59: 360 | H59: 11.5 | I59: 30 | J59: 24471.19 | K59: 423.535 | L59: 222.99 | M59: 4.303109722 | N59: 227.2931097 | O59: 650.8281097 | P59: 10 | Q59: 22.02 | S59: 0 | T59: 22.02 | U59: 682.8481097 | V59: 24047.65 | W59: 0 | X59: 222.9929 | Y59: -0.0029 | Z59: 821 | AA59: 0.780166034 | AB59: 393.5332116 | AC59: -3.585844667 | AD59: 3.58605897 | AE59: 0.0002143031923 | AF59: 397.1190563 | AH59: 2027-12-20 | AI59: 682.8481097
A60: 28 | B60: 1 | C60: 2028-01-20 | E60: 28 | F60: 28 | G60: 360 | H60: 11.5 | I60: 31 | J60: 24047.65 | K60: 419.715 | L60: 226.47 | M60: 4.303109722 | N60: 230.7731097 | O60: 650.4881097 | P60: 10 | Q60: 22.36 | S60: 0 | T60: 22.36 | U60: 682.8481097 | V60: 23627.94 | W60: 0 | X60: 226.4722 | Y60: -0.0022 | Z60: 852 | AA60: 0.7728872575 | AB60: 397.1190563 | AC60: -3.739711312 | AD60: 3.739925615 | AE60: 0.0002143031923 | AF60: 400.8587676 | AH60: 2028-01-20 | AI60: 682.8481097
A61: 29 | B61: 1 | C61: 2028-02-20 | E61: 29 | F61: 29 | G61: 360 | H61: 11.5 | I61: 31 | J61: 23627.94 | K61: 424.055 | L61: 222.52 | M61: 4.303109722 | N61: 226.8231097 | O61: 650.8781097 | P61: 10 | Q61: 21.97 | S61: 0 | T61: 21.97 | U61: 682.8481097 | V61: 23203.88 | W61: 0 | X61: 222.5195 | Y61: 0.0005 | Z61: 883 | AA61: 0.7656763904 | AB61: 400.8587676 | AC61: -3.774930579 | AD61: 3.775144882 | AE61: 0.0002143031923 | AF61: 404.6336982 | AH61: 2028-02-20 | AI61: 682.8481097
A62: 30 | B62: 1 | C62: 2028-03-20 | E62: 30 | F62: 30 | G62: 360 | H62: 11.5 | I62: 29 | J62: 23203.88 | K62: 443.985 | L62: 204.37 | M62: 4.303109722 | N62: 208.6731097 | O62: 652.6581097 | P62: 10 | Q62: 20.19 | S62: 0 | T62: 20.19 | U62: 682.8481097 | V62: 22759.89 | W62: 0 | X62: 204.3655 | Y62: 0.0045 | Z62: 912 | AA62: 0.758991658 | AB62: 404.6336982 | AC62: -3.563550804 | AD62: 3.563765107 | AE62: 0.0002143031923 | AF62: 408.197249 | AH62: 2028-03-20 | AI62: 682.8481097
A63: 31 | B63: 1 | C63: 2028-04-20 | E63: 31 | F63: 31 | G63: 360 | H63: 11.5 | I63: 31 | J63: 22759.89 | K63: 433.035 | L63: 214.34 | M63: 4.303109722 | N63: 218.6431097 | O63: 651.6781097 | P63: 10 | Q63: 21.17 | S63: 0 | T63: 21.17 | U63: 682.8481097 | V63: 22326.85 | W63: 0 | X63: 214.3445 | Y63: -0.0045 | Z63: 943 | AA63: 0.7519104337 | AB63: 408.197249 | AC63: -3.844041779 | AD63: 3.844256082 | AE63: 0.0002143031923 | AF63: 412.0412908 | AH63: 2028-04-20 | AI63: 682.8481097
A64: 32 | B64: 1 | C64: 2028-05-20 | E64: 32 | F64: 32 | G64: 360 | H64: 11.5 | I64: 30 | J64: 22326.85 | K64: 445.005 | L64: 203.45 | M64: 4.303109722 | N64: 207.7531097 | O64: 652.7581097 | P64: 10 | Q64: 20.09 | S64: 0 | T64: 20.09 | U64: 682.8481097 | V64: 21881.84 | W64: 0 | X64: 203.4527 | Y64: -0.0027 | Z64: 973 | AA64: 0.7451205463 | AB64: 412.0412908 | AC64: -3.754498954 | AD64: 3.754713257 | AE64: 0.0002143031923 | AF64: 415.7957897 | AH64: 2028-05-20 | AI64: 682.8481097
A65: 33 | B65: =IF(A65="","",IF(A65<=$H$22,0,1)) -> 1 | C65: 2028-06-20 | D65: =IF(B65="","",IF(OR(MONTH(C65)=$H$18,MONTH(C65)=$H$19),"D","")) ->  | E65: 33 | F65: 33 | G65: 360 | H65: 11.5 | I65: 31 | J65: 21881.84 | K65: 442.115 | L65: 206.08 | M65: 4.303109722 | N65: 210.3831097 | O65: 652.4981097 | P65: 10 | Q65: 20.35 | S65: 0 | T65: =IF(B65="","",Q65+R65+S65) -> 20.35 | U65: 682.8481097 | V65: =IF(B65="","",ROUND(J65-K65,2)) -> 21439.72 | W65: =IF(B65="","",IF(ROUND(ROUND(J65*(((1+(H65/100))^(I65/G65))-1),4),2) - $J$24<0,0,ROUND(ROUND(J65*(((1+(H65/100))^(I65/G65))-1),4),2) - $J$24)) -> 0 | X65: 206.0754 | Y65: 0.0046 | Z65: 1004 | AA65: 0.7381687364 | AB65: 415.7957897 | AC65: -3.915602125 | AD65: 3.915816428 | AE65: 0.0002143031923 | AF65: 419.7113918 | AH65: 2028-06-20 | AI65: 682.8481097
A66: =+IF(A65>=$H$12,"",A65+1) -> 34 | B66: 1 | C66: =IF(B66="","",IF(OR(MONTH(EDATE($Q$6,E66))=$H$16,MONTH(EDATE($Q$6,E66))=$H$17),IF(ABS($H$17-$H$16)=1,EDATE($Q$6,E66+2),EDATE($Q$6,E66+1)),EDATE($Q$6,E66))) -> 2028-07-20 | E66: 34 | F66: =IF(B66="","",F65+1) -> 34 | G66: =IF(B66="","",$Q$9) -> 360 | H66: =IF(B66="","",$H$8) -> 11.5 | I66: =IF(B66="","",C66-C65) -> 30 | J66: =IF(B66="","",+V65) -> 21439.72 | K66: 453.875 | L66: 195.37 | M66: =IF(B66="","",IF(ISERROR(MATCH(MONTH(C66),$H$18:$H$19,0))=FALSE,$J$23,0) + $J$23) -> 4.303109722 | N66: =IF(B66="","",L66+M66) -> 199.6731097 | O66: =IF(B66="","",K66+L66 + M66) -> 653.5481097 | P66: =IF(B66="","",$J$26) -> 10 | Q66: =IF(B66="","",ROUND($H$9*J66/30*$I66,2)-S66) -> 19.3 | S66: =IF(B66="","",IF(E66-E65>1,ROUNDDOWN($J66*$H$9/30*(DATE(YEAR($C66),MONTH($C66)-1,DAY($C66))-C65),2),0)) -> 0 | T66: 19.3 | U66: 682.8481097 | V66: 20985.85 | W66: 0 | X66: 195.3688 | Y66: 0.0012 | Z66: 1034 | AA66: 0.731502939 | AB66: 419.7113918 | AC66: -3.824392508 | AD66: 3.824606811 | AE66: 0.0002143031923 | AF66: 423.5357843 | AH66: 2028-07-20 | AI66: 682.8481097
A67: 35 | B67: 1 | C67: 2028-08-20 | E67: 35 | F67: 35 | G67: 360 | H67: 11.5 | I67: 31 | J67: 20985.85 | K67: 451.385 | L67: 197.64 | M67: 4.303109722 | N67: 201.9431097 | O67: 653.3281097 | P67: 10 | Q67: 19.52 | S67: 0 | T67: 19.52 | U67: 682.8481097 | V67: 20534.46 | W67: 0 | X67: 197.6372 | Y67: 0.0028 | Z67: 1065 | AA67: 0.7246781784 | AB67: 423.5357843 | AC67: -3.988494633 | AD67: 3.988708936 | AE67: 0.0002143031923 | AF67: 427.524279 | AH67: 2028-08-20 | AI67: 682.8481097
A68: 36 | B68: 1 | C68: 2028-09-20 | E68: 36 | F68: 36 | G68: 360 | H68: 11.5 | I68: 31 | J68: 20534.46 | K68: 456.055 | L68: 193.39 | M68: 4.303109722 | N68: 197.6931097 | O68: 653.7481097 | P68: 10 | Q68: 19.1 | S68: 0 | T68: 19.1 | U68: 682.8481097 | V68: 20078.4 | W68: 0 | X68: 193.3862 | Y68: 0.0038 | Z68: 1096 | AA68: 0.7179170913 | AB68: 427.524279 | AC68: -4.026056853 | AD68: 4.026271156 | AE68: 0.0002143031923 | AF68: 431.5503358 | AH68: 2028-09-20 | AI68: 682.8481097
A69: 37 | B69: 1 | C69: 2028-10-20 | E69: 37 | F69: 37 | G69: 360 | H69: 11.5 | I69: 30 | J69: 20078.4 | K69: 467.515 | L69: 182.96 | M69: 4.303109722 | N69: 187.2631097 | O69: 654.7781097 | P69: 10 | Q69: 18.07 | S69: 0 | T69: 18.07 | U69: 682.8481097 | V69: 19610.89 | W69: 0 | X69: 182.9638 | Y69: -0.0038 | Z69: 1126 | AA69: 0.7114341699 | AB69: 431.5503358 | AC69: -3.932274511 | AD69: 3.932488814 | AE69: 0.0002143031923 | AF69: 435.4826103 | AH69: 2028-10-20 | AI69: 682.8481097
A70: 38 | B70: 1 | C70: 2028-11-20 | E70: 38 | F70: 38 | G70: 360 | H70: 11.5 | I70: 31 | J70: 19610.89 | K70: 465.615 | L70: 184.69 | M70: 4.303109722 | N70: 188.9931097 | O70: 654.6081097 | P70: 10 | Q70: 18.24 | S70: 0 | T70: 18.24 | U70: 682.8481097 | V70: 19145.27 | W70: 0 | X70: 184.6884 | Y70: 0.0016 | Z70: 1157 | AA70: 0.7047966465 | AB70: 435.4826103 | AC70: -4.101005579 | AD70: 4.101219882 | AE70: 0.0002143031923 | AF70: 439.5836159 | AH70: 2028-11-20 | AI70: 682.8481097
A71: 39 | B71: 1 | C71: 2028-12-20 | E71: 39 | F71: 39 | G71: 360 | H71: 11.5 | I71: 30 | J71: 19145.27 | K71: 476.855 | L71: 174.46 | M71: 4.303109722 | N71: 178.7631097 | O71: 655.6181097 | P71: 10 | Q71: 17.23 | S71: 0 | T71: 17.23 | U71: 682.8481097 | V71: 18668.41 | W71: 0 | X71: 174.4607 | Y71: -0.0007 | Z71: 1187 | AA71: 0.6984322051 | AB71: 439.5836159 | AC71: -4.005477522 | AD71: 4.005691825 | AE71: 0.0002143031923 | AF71: 443.5890934 | AH71: 2028-12-20 | AI71: 682.8481097
A72: 40 | B72: 1 | C72: 2029-01-20 | E72: 40 | F72: 40 | G72: 360 | H72: 11.5 | I72: 31 | J72: 18668.41 | K72: 475.375 | L72: 175.81 | M72: 4.303109722 | N72: 180.1131097 | O72: 655.4881097 | P72: 10 | Q72: 17.36 | S72: 0 | T72: 17.36 | U72: 682.8481097 | V72: 18193.03 | W72: 0 | X72: 175.8124 | Y72: -0.0024 | Z72: 1218 | AA72: 0.6919159871 | AB72: 443.5890934 | AC72: -4.177349545 | AD72: 4.177563848 | AE72: 0.0002143031923 | AF72: 447.766443 | AH72: 2029-01-20 | AI72: 682.8481097
A73: 41 | B73: 1 | C73: 2029-02-20 | E73: 41 | F73: 41 | G73: 360 | H73: 11.5 | I73: 31 | J73: 18193.03 | K73: 480.285 | L73: 171.34 | M73: 4.303109722 | N73: 175.6431097 | O73: 655.9281097 | P73: 10 | Q73: 16.92 | S73: 0 | T73: 16.92 | U73: 682.8481097 | V73: 17712.74 | W73: 0 | X73: 171.3355 | Y73: 0.0045 | Z73: 1249 | AA73: 0.685460564 | AB73: 447.766443 | AC73: -4.216690333 | AD73: 4.216904636 | AE73: 0.0002143031923 | AF73: 451.9831333 | AH73: 2029-02-20 | AI73: 682.8481097
A74: 42 | B74: 1 | C74: 2029-03-20 | E74: 42 | F74: 42 | G74: 360 | H74: 11.5 | I74: 28 | J74: 17712.74 | K74: 503.065 | L74: 150.6 | M74: 4.303109722 | N74: 154.9031097 | O74: 657.9681097 | P74: 10 | Q74: 14.88 | S74: 0 | T74: 14.88 | U74: 682.8481097 | V74: 17209.68 | W74: 0 | X74: 150.6007 | Y74: -0.0007 | Z74: 1277 | AA74: 0.6796816419 | AB74: 451.9831333 | AC74: -3.842725054 | AD74: 3.842939357 | AE74: 0.0002143031923 | AF74: 455.8258584 | AH74: 2029-03-20 | AI74: 682.8481097
A75: 43 | B75: 1 | C75: 2029-04-20 | E75: 43 | F75: 43 | G75: 360 | H75: 11.5 | I75: 31 | J75: 17209.68 | K75: 490.465 | L75: 162.07 | M75: 4.303109722 | N75: 166.3731097 | O75: 656.8381097 | P75: 10 | Q75: 16.01 | S75: 0 | T75: 16.01 | U75: 682.8481097 | V75: 16719.21 | W75: 0 | X75: 162.0746 | Y75: -0.0046 | Z75: 1308 | AA75: 0.6733403626 | AB75: 455.8258584 | AC75: -4.292591032 | AD75: 4.292805335 | AE75: 0.0002143031923 | AF75: 460.1184494 | AH75: 2029-04-20 | AI75: 682.8481097
A76: 44 | B76: 1 | C76: 2029-05-20 | E76: 44 | F76: 44 | G76: 360 | H76: 11.5 | I76: 30 | J76: 16719.21 | K76: 501.145 | L76: 152.35 | M76: 4.303109722 | N76: 156.6531097 | O76: 657.7981097 | P76: 10 | Q76: 15.05 | S76: 0 | T76: 15.05 | U76: 682.8481097 | V76: 16218.06 | W76: 0 | X76: 152.3533 | Y76: -0.0033 | Z76: 1338 | AA76: 0.6672599771 | AB76: 460.1184494 | AC76: -4.192600544 | AD76: 4.192814847 | AE76: 0.0002143031923 | AF76: 464.31105 | AH76: 2029-05-20 | AI76: 682.8481097
A77: 45 | B77: 1 | C77: 2029-06-20 | E77: 45 | F77: 45 | G77: 360 | H77: 11.5 | I77: 31 | J77: 16218.06 | K77: 500.725 | L77: 152.74 | M77: 4.303109722 | N77: 157.0431097 | O77: 657.7681097 | P77: 10 | Q77: 15.08 | S77: 0 | T77: 15.08 | U77: 682.8481097 | V77: 15717.33 | W77: 0 | X77: 152.7359 | Y77: 0.0041 | Z77: 1369 | AA77: 0.6610345891 | AB77: 464.31105 | AC77: -4.37250154 | AD77: 4.372715843 | AE77: 0.0002143031923 | AF77: 468.6835515 | AH77: 2029-06-20 | AI77: 682.8481097
A78: 46 | B78: 1 | C78: 2029-07-20 | E78: 46 | F78: 46 | G78: 360 | H78: 11.5 | I78: 30 | J78: 15717.33 | K78: 511.175 | L78: 143.22 | M78: 4.303109722 | N78: 147.5231097 | O78: 658.6981097 | P78: 10 | Q78: 14.15 | S78: 0 | T78: 14.15 | U78: 682.8481097 | V78: 15206.15 | W78: 0 | X78: 143.2237 | Y78: -0.0037 | Z78: 1399 | AA78: 0.655065327 | AB78: 468.6835515 | AC78: -4.270649767 | AD78: 4.27086407 | AE78: 0.0002143031923 | AF78: 472.9542013 | AH78: 2029-07-20 | AI78: 682.8481097
A79: 47 | B79: 1 | C79: 2029-08-20 | E79: 47 | F79: 47 | G79: 360 | H79: 11.5 | I79: 31 | J79: 15206.15 | K79: 511.195 | L79: 143.21 | M79: 4.303109722 | N79: 147.5131097 | O79: 658.7081097 | P79: 10 | Q79: 14.14 | S79: 0 | T79: 14.14 | U79: 682.8481097 | V79: 14694.95 | W79: 0 | X79: 143.2061 | Y79: 0.0039 | Z79: 1430 | AA79: 0.6489537124 | AB79: 472.9542013 | AC79: -4.453899656 | AD79: 4.454113959 | AE79: 0.0002143031923 | AF79: 477.4081009 | AH79: 2029-08-20 | AI79: 682.8481097
A80: 48 | B80: 1 | C80: 2029-09-20 | E80: 48 | F80: 48 | G80: 360 | H80: 11.5 | I80: 31 | J80: 14694.95 | K80: 516.485 | L80: 138.39 | M80: 4.303109722 | N80: 142.6931097 | O80: 659.1781097 | P80: 10 | Q80: 13.67 | S80: 0 | T80: 13.67 | U80: 682.8481097 | V80: 14178.46 | W80: 0 | X80: 138.3918 | Y80: -0.0018 | Z80: 1461 | AA80: 0.6428991179 | AB80: 477.4081009 | AC80: -4.495844894 | AD80: 4.496059197 | AE80: 0.0002143031923 | AF80: 481.9039458 | AH80: 2029-09-20 | AI80: 682.8481097
A81: 49 | B81: 1 | C81: 2029-10-20 | E81: 49 | F81: 49 | G81: 360 | H81: 11.5 | I81: 30 | J81: 14178.46 | K81: 526.585 | L81: 129.2 | M81: 4.303109722 | N81: 133.5031097 | O81: 660.0881097 | P81: 10 | Q81: 12.76 | S81: 0 | T81: 12.76 | U81: 682.8481097 | V81: 13651.87 | W81: 0 | X81: 129.2008 | Y81: -0.0008 | Z81: 1491 | AA81: 0.6370936224 | AB81: 481.9039458 | AC81: -4.391120193 | AD81: 4.391334496 | AE81: 0.0002143031923 | AF81: 486.295066 | AH81: 2029-10-20 | AI81: 682.8481097
A82: 50 | B82: 1 | C82: 2029-11-20 | E82: 50 | F82: 50 | G82: 360 | H82: 11.5 | I82: 31 | J82: 13651.87 | K82: =IF(B82="","",IF(((IF(ISERROR(MATCH(MONTH(C82),$H$18:$H$19,0))=FALSE,$J$24 + $Q$28,0) + $J$24+$Q$28+$S$26)-(IF($J$24+$Q$28 + $S$26<ROUND(ROUND(J82*(((1+(H82/100))^(I82/G82))-1),4),2),$J$24+$Q$28 + $S$26-0.01,IF(ROUND(ROUND(J82*(((1+(H82/100))^(I82/G82))-1),4),2)+ $S$26>$J$24,$J$24+ $S$26+-0.01,ROUND(ROUND(J82*(((1+(H82/100))^(I82/G82))-1),4),2)+$S$26)))- Q82-R82-S82)<0,0.01,IF(ISERROR(MATCH(MONTH(C82),$H$18:$H$19,0))=FALSE,$J$24 + $Q$28,0)+ ($J$24+$Q$28+$S$26)-(IF($J$24+$Q$28 + $S$26<ROUND(ROUND(J82*(((1+(H82/100))^(I82/G82))-1),4),2),$J$24+$Q$28 + $S$26-0.01,IF(ROUND(ROUND(J82*(((1+(H82/100))^(I82/G82))-1),4),2)+ $S$26>$J$24,$J$24+ $S$26+-0.01,ROUND(ROUND(J82*(((1+(H82/100))^(I82/G82))-1),4),2)+$S$26)))- Q82-R82-S82)) -> 527.275 | L82: =IF(B82="","",IF(K82=0.01,+$J$24-K82-Q82-R82-S82+$Q$28,IF($J$24+$Q$28 + $S$26<ROUND(ROUND(J82*(((1+(H82/100))^(I82/G82))-1),4),2),$J$24+$Q$28 + $S$26-0.01,IF(ROUND(ROUND(J82*(((1+(H82/100))^(I82/G82))-1),4),2)+ $S$26>$J$24,$J$24+ $S$26+-0.01,ROUND(ROUND(J82*(((1+(H82/100))^(I82/G82))-1),4),2)+$S$26)))) -> 128.57 | M82: 4.303109722 | N82: 132.8731097 | O82: 660.1481097 | P82: 10 | Q82: 12.7 | S82: 0 | T82: 12.7 | U82: 682.8481097 | V82: 13124.6 | W82: 0 | X82: 128.5684 | Y82: 0.0016 | Z82: 1522 | AA82: 0.6311496798 | AB82: 486.295066 | AC82: -4.579539161 | AD82: 4.579753464 | AE82: 0.0002143031923 | AF82: 490.8746052 | AH82: 2029-11-20 | AI82: 682.8481097
A83: 51 | B83: 1 | C83: 2029-12-20 | E83: 51 | F83: 51 | G83: 360 | H83: 11.5 | I83: 30 | J83: 13124.6 | K83: =IF(B83="","",IF(((IF(ISERROR(MATCH(MONTH(C83),$H$18:$H$19,0))=FALSE,$J$24 + $Q$28,0) + $J$24+$Q$28+$S$26)-(IF($J$24+$Q$28 + $S$26<ROUND(ROUND(J83*(((1+(H83/100))^(I83/G83))-1),4),2),$J$24+$Q$28 + $S$26-0.01,IF(ROUND(ROUND(J83*(((1+(H83/100))^(I83/G83))-1),4),2)+ $S$26>$J$24,$J$24+ $S$26+-0.01,ROUND(ROUND(J83*(((1+(H83/100))^(I83/G83))-1),4),2)+$S$26)))- Q83-R83-S83)<0,0.01,IF(ISERROR(MATCH(MONTH(C83),$H$18:$H$19,0))=FALSE,$J$24 + $Q$28,0)+ ($J$24+$Q$28+$S$26)-(IF($J$24+$Q$28 + $S$26<ROUND(ROUND(J83*(((1+(H83/100))^(I83/G83))-1),4),2),$J$24+$Q$28 + $S$26-0.01,IF(ROUND(ROUND(J83*(((1+(H83/100))^(I83/G83))-1),4),2)+ $S$26>$J$24,$J$24+ $S$26+-0.01,ROUND(ROUND(J83*(((1+(H83/100))^(I83/G83))-1),4),2)+$S$26)))- Q83-R83-S83)) -> 537.135 | L83: =IF(B83="","",IF(K83=0.01,+$J$24-K83-Q83-R83-S83+$Q$28,IF($J$24+$Q$28 + $S$26<ROUND(ROUND(J83*(((1+(H83/100))^(I83/G83))-1),4),2),$J$24+$Q$28 + $S$26-0.01,IF(ROUND(ROUND(J83*(((1+(H83/100))^(I83/G83))-1),4),2)+ $S$26>$J$24,$J$24+ $S$26+-0.01,ROUND(ROUND(J83*(((1+(H83/100))^(I83/G83))-1),4),2)+$S$26)))) -> 119.6 | M83: 4.303109722 | N83: 123.9031097 | O83: 661.0381097 | P83: 10 | Q83: 11.81 | S83: 0 | T83: 11.81 | U83: 682.8481097 | V83: 12587.46 | W83: 0 | X83: 119.5975 | Y83: 0.0025 | Z83: 1552 | AA83: 0.6254502838 | AB83: 490.8746052 | AC83: -4.472865043 | AD83: 4.473079346 | AE83: 0.0002143031923 | AF83: 495.3474702 | AH83: 2029-12-20 | AI83: 682.8481097
A84: 52 | B84: 1 | C84: 2030-01-20 | E84: 52 | F84: 52 | G84: 360 | H84: 11.5 | I84: 31 | J84: 12587.46 | K84: =IF(B84="","",IF(((IF(ISERROR(MATCH(MONTH(C84),$H$18:$H$19,0))=FALSE,$J$24 + $Q$28,0) + $J$24+$Q$28+$S$26)-(IF($J$24+$Q$28 + $S$26<ROUND(ROUND(J84*(((1+(H84/100))^(I84/G84))-1),4),2),$J$24+$Q$28 + $S$26-0.01,IF(ROUND(ROUND(J84*(((1+(H84/100))^(I84/G84))-1),4),2)+ $S$26>$J$24,$J$24+ $S$26+-0.01,ROUND(ROUND(J84*(((1+(H84/100))^(I84/G84))-1),4),2)+$S$26)))- Q84-R84-S84)<0,0.01,IF(ISERROR(MATCH(MONTH(C84),$H$18:$H$19,0))=FALSE,$J$24 + $Q$28,0)+ ($J$24+$Q$28+$S$26)-(IF($J$24+$Q$28 + $S$26<ROUND(ROUND(J84*(((1+(H84/100))^(I84/G84))-1),4),2),$J$24+$Q$28 + $S$26-0.01,IF(ROUND(ROUND(J84*(((1+(H84/100))^(I84/G84))-1),4),2)+ $S$26>$J$24,$J$24+ $S$26+-0.01,ROUND(ROUND(J84*(((1+(H84/100))^(I84/G84))-1),4),2)+$S$26)))- Q84-R84-S84)) -> 538.295 | L84: =IF(B84="","",IF(K84=0.01,+$J$24-K84-Q84-R84-S84+$Q$28,IF($J$24+$Q$28 + $S$26<ROUND(ROUND(J84*(((1+(H84/100))^(I84/G84))-1),4),2),$J$24+$Q$28 + $S$26-0.01,IF(ROUND(ROUND(J84*(((1+(H84/100))^(I84/G84))-1),4),2)+ $S$26>$J$24,$J$24+ $S$26+-0.01,ROUND(ROUND(J84*(((1+(H84/100))^(I84/G84))-1),4),2)+$S$26)))) -> 118.54 | M84: 4.303109722 | N84: 122.8431097 | O84: 661.1381097 | P84: 10 | Q84: 11.71 | S84: 0 | T84: 11.71 | U84: 682.8481097 | V84: 12049.16 | W84: 0 | X84: 118.5442 | Y84: -0.0042 | Z84: 1583 | AA84: 0.6196149711 | AB84: 495.3474702 | AC84: -4.664791475 | AD84: 4.665005778 | AE84: 0.0002143031923 | AF84: 500.0122617 | AH84: 2030-01-20 | AI84: 682.8481097
A85: 53 | B85: 1 | C85: 2030-02-20 | E85: 53 | F85: 53 | G85: 360 | H85: 11.5 | I85: 31 | J85: 12049.16 | K85: 543.865 | L85: 113.47 | M85: 4.303109722 | N85: 117.7731097 | O85: 661.6381097 | P85: 10 | Q85: 11.21 | S85: 0 | T85: 11.21 | U85: 682.8481097 | V85: 11505.29 | W85: 0 | X85: 113.4747 | Y85: -0.0047 | Z85: 1614 | AA85: 0.6138341005 | AB85: 500.0122617 | AC85: -4.708722817 | AD85: 4.70893712 | AE85: 0.0002143031923 | AF85: 504.7209845 | AH85: 2030-02-20 | AI85: 682.8481097
A86: 54 | B86: 1 | C86: 2030-03-20 | E86: 54 | F86: 54 | G86: 360 | H86: 11.5 | I86: 28 | J86: 11505.29 | K86: 561.065 | L86: 97.82 | M86: 4.303109722 | N86: 102.1231097 | O86: 663.1881097 | P86: 10 | Q86: 9.66 | S86: 0 | T86: 9.66 | U86: 682.8481097 | V86: 10944.22 | W86: 0 | X86: 97.8225 | Y86: -0.0025 | Z86: 1642 | AA86: 0.6086590406 | AB86: 504.7209845 | AC86: -4.291123122 | AD86: 4.291337425 | AE86: 0.0002143031923 | AF86: 509.0121076 | AH86: 2030-03-20 | AI86: 682.8481097
A87: 55 | B87: 1 | C87: 2030-04-20 | E87: 55 | F87: 55 | G87: 360 | H87: 11.5 | I87: 31 | J87: 10944.22 | K87: 555.295 | L87: 103.07 | M87: 4.303109722 | N87: 107.3731097 | O87: 662.6681097 | P87: 10 | Q87: 10.18 | S87: 0 | T87: 10.18 | U87: 682.8481097 | V87: 10388.92 | W87: 0 | X87: 103.0688 | Y87: 0.0012 | Z87: 1673 | AA87: 0.6029803864 | AB87: 509.0121076 | AC87: -4.793480155 | AD87: 4.793694459 | AE87: 0.0002143031923 | AF87: 513.8055878 | AH87: 2030-04-20 | AI87: 682.8481097
A88: 56 | B88: 1 | C88: 2030-05-20 | E88: 56 | F88: 56 | G88: 360 | H88: 11.5 | I88: 30 | J88: 10388.92 | K88: 564.525 | L88: 94.67 | M88: 4.303109722 | N88: 98.97310972 | O88: 663.4981097 | P88: 10 | Q88: 9.35 | S88: 0 | T88: 9.35 | U88: 682.8481097 | V88: 9824.39 | W88: 0 | X88: 94.6687 | Y88: 0.0013 | Z88: 1703 | AA88: 0.5975353642 | AB88: 513.8055878 | AC88: -4.681822898 | AD88: 4.682037201 | AE88: 0.0002143031923 | AF88: 518.4874107 | AH88: 2030-05-20 | AI88: 682.8481097
A89: 57 | B89: 1 | C89: 2030-06-20 | E89: 57 | F89: 57 | G89: 360 | H89: 11.5 | I89: 31 | J89: 9824.39 | K89: 566.885 | L89: 92.52 | M89: 4.303109722 | N89: 96.82310972 | O89: 663.7081097 | P89: 10 | Q89: 9.14 | S89: 0 | T89: 9.14 | U89: 682.8481097 | V89: 9257.5 | W89: 0 | X89: 92.5226 | Y89: -0.0026 | Z89: 1734 | AA89: 0.5919604915 | AB89: 518.4874107 | AC89: -4.88271518 | AD89: 4.882929483 | AE89: 0.0002143031923 | AF89: 523.3701258 | AH89: 2030-06-20 | AI89: 682.8481097
A90: 58 | B90: 1 | C90: 2030-07-20 | E90: 58 | F90: 58 | G90: 360 | H90: 11.5 | I90: 30 | J90: 9257.5 | K90: 575.855 | L90: 84.36 | M90: 4.303109722 | N90: 88.66310972 | O90: 664.5181097 | P90: 10 | Q90: 8.33 | S90: 0 | T90: 8.33 | U90: 682.8481097 | V90: 8681.64 | W90: 0 | X90: 84.3587 | Y90: 0.0013 | Z90: 1764 | AA90: 0.586614981 | AB90: 523.3701258 | AC90: -4.768979449 | AD90: 4.769193753 | AE90: 0.0002143031923 | AF90: 528.1391053 | AH90: 2030-07-20 | AI90: 682.8481097
A91: 59 | B91: 1 | C91: 2030-08-20 | E91: 59 | F91: 59 | G91: 360 | H91: 11.5 | I91: 31 | J91: 8681.64 | K91: 578.715 | L91: 81.76 | M91: 4.303109722 | N91: 86.06310972 | O91: 664.7781097 | P91: 10 | Q91: 8.07 | S91: 0 | T91: 8.07 | U91: 682.8481097 | V91: 8102.92 | W91: 0 | X91: 81.7606 | Y91: -0.0006 | Z91: 1795 | AA91: 0.581141993 | AB91: 528.1391053 | AC91: -4.973611397 | AD91: 4.9738257 | AE91: 0.0002143031923 | AF91: 533.1127167 | AH91: 2030-08-20 | AI91: 682.8481097
A92: 60 | B92: 1 | C92: =IF(B92="","",IF(OR(MONTH(EDATE($Q$6,E92))=$H$16,MONTH(EDATE($Q$6,E92))=$H$17),IF(ABS($H$17-$H$16)=1,EDATE($Q$6,E92+2),EDATE($Q$6,E92+1)),EDATE($Q$6,E92))) -> 2030-09-20 | E92: 60 | F92: 60 | G92: 360 | H92: 11.5 | I92: 31 | J92: 8102.92 | K92: 584.695 | L92: 76.31 | M92: 4.303109722 | N92: 80.61310972 | O92: 665.3081097 | P92: 10 | Q92: 7.54 | S92: 0 | T92: 7.54 | U92: 682.8481097 | V92: 7518.22 | W92: 0 | X92: 76.3104 | Y92: -0.0004 | Z92: 1826 | AA92: 0.5757200668 | AB92: 533.1127167 | AC92: -5.020451095 | AD92: 5.020665398 | AE92: 0.0002143031923 | AF92: 538.1331678 | AH92: 2030-09-20 | AI92: 682.8481097
A93: 61 | B93: 1 | C93: 2030-10-20 | E93: 61 | F93: 61 | G93: 360 | H93: 11.5 | I93: 30 | J93: 7518.22 | K93: 593.265 | L93: 68.51 | M93: 4.303109722 | N93: 72.81310972 | O93: 666.0781097 | P93: 10 | Q93: 6.77 | S93: 0 | T93: 6.77 | U93: 682.8481097 | V93: 6924.95 | W93: 0 | X93: 68.5095 | Y93: 0.0005 | Z93: 1856 | AA93: 0.5705212103 | AB93: 538.1331678 | AC93: -4.903507203 | AD93: 4.903721506 | AE93: 0.0002143031923 | AF93: 543.036675 | AH93: 2030-10-20 | AI93: 682.8481097
A94: 62 | B94: 1 | C94: 2030-11-20 | E94: 62 | F94: 62 | G94: 360 | H94: 11.5 | I94: 31 | J94: 6924.95 | K94: 596.885 | L94: 65.22 | M94: 4.303109722 | N94: 69.52310972 | O94: 666.4081097 | P94: 10 | Q94: 6.44 | S94: 0 | T94: 6.44 | U94: 682.8481097 | V94: 6328.06 | W94: 0 | X94: 65.2167 | Y94: 0.0033 | Z94: 1887 | AA94: 0.5651983736 | AB94: 543.036675 | AC94: -5.113911394 | AD94: 5.114125697 | AE94: 0.0002143031923 | AF94: 548.1505864 | AH94: 2030-11-20 | AI94: 682.8481097
A95: 63 | B95: 1 | C95: 2030-12-20 | E95: 63 | F95: 63 | G95: 360 | H95: 11.5 | I95: 30 | J95: 6328.06 | K95: 605.185 | L95: 57.66 | M95: 4.303109722 | N95: 61.96310972 | O95: 667.1481097 | P95: 10 | Q95: 5.7 | S95: 0 | T95: 5.7 | U95: 682.8481097 | V95: 5722.87 | W95: 0 | X95: 57.6642 | Y95: -0.0042 | Z95: 1917 | AA95: 0.5600945299 | AB95: 548.1505864 | AC95: -4.994790614 | AD95: 4.995004917 | AE95: 0.0002143031923 | AF95: 553.145377 | AH95: 2030-12-20 | AI95: 682.8481097
A96: 64 | B96: 1 | C96: 2031-01-20 | E96: 64 | F96: 64 | G96: 360 | H96: 11.5 | I96: 31 | J96: 5722.87 | K96: 609.325 | L96: 53.9 | M96: 4.303109722 | N96: 58.20310972 | O96: 667.5281097 | P96: 10 | Q96: 5.32 | S96: 0 | T96: 5.32 | U96: 682.8481097 | V96: 5113.54 | W96: 0 | X96: 53.8959 | Y96: 0.0041 | Z96: 1948 | AA96: 0.5548689718 | AB96: 553.145377 | AC96: -5.209111544 | AD96: 5.209325847 | AE96: 0.0002143031923 | AF96: 558.3544885 | AH96: 2031-01-20 | AI96: 682.8481097
A97: 65 | B97: =IF(A97="","",IF(A97<=$H$22,0,1)) -> 1 | C97: 2031-02-20 | D97: =IF(B97="","",IF(OR(MONTH(C97)=$H$18,MONTH(C97)=$H$19),"D","")) ->  | E97: 65 | F97: 65 | G97: 360 | H97: 11.5 | I97: 31 | J97: 5113.54 | K97: 615.625 | L97: 48.16 | M97: 4.303109722 | N97: 52.46310972 | O97: 668.0881097 | P97: 10 | Q97: 4.76 | S97: 0 | T97: =IF(B97="","",Q97+R97+S97) -> 4.76 | U97: 682.8481097 | V97: =IF(B97="","",ROUND(J97-K97,2)) -> 4497.91 | W97: =IF(B97="","",IF(ROUND(ROUND(J97*(((1+(H97/100))^(I97/G97))-1),4),2) - $J$24<0,0,ROUND(ROUND(J97*(((1+(H97/100))^(I97/G97))-1),4),2) - $J$24)) -> 0 | X97: 48.1575 | Y97: 0.0025 | Z97: 1979 | AA97: 0.5496921671 | AB97: 558.3544885 | AC97: -5.258169098 | AD97: =(((1+($J$8/100))^((I97)/$Q$9))-1)*AB97 -> 5.258383401 | AE97: 0.0002143031923 | AF97: 563.6126576 | AH97: =+IF(C97="",0,C97) -> 2031-02-20 | AI97: =+IF(U97="",0,U97) -> 682.8481097
A98: =+IF(A97>=$H$12,"",A97+1) -> 66 | B98: 1 | C98: =IF(B98="","",IF(OR(MONTH(EDATE($Q$6,E98))=$H$16,MONTH(EDATE($Q$6,E98))=$H$17),IF(ABS($H$17-$H$16)=1,EDATE($Q$6,E98+2),EDATE($Q$6,E98+1)),EDATE($Q$6,E98))) -> 2031-03-20 | E98: 66 | F98: =IF(B98="","",F97+1) -> 66 | G98: =IF(B98="","",$Q$9) -> 360 | H98: =IF(B98="","",$H$8) -> 11.5 | I98: =IF(B98="","",C98-C97) -> 28 | J98: =IF(B98="","",+V97) -> 4497.91 | K98: 626.525 | L98: 38.24 | M98: =IF(B98="","",IF(ISERROR(MATCH(MONTH(C98),$H$18:$H$19,0))=FALSE,$J$23,0) + $J$23) -> 4.303109722 | N98: =IF(B98="","",L98+M98) -> 42.54310972 | O98: =IF(B98="","",K98+L98 + M98) -> 669.0681097 | P98: =IF(B98="","",$J$26) -> 10 | Q98: =IF(B98="","",ROUND($H$9*J98/30*$I98,2)-S98) -> 3.78 | S98: =IF(B98="","",IF(E98-E97>1,ROUNDDOWN($J98*$H$9/30*(DATE(YEAR($C98),MONTH($C98)-1,DAY($C98))-C97),2),0)) -> 0 | T98: 3.78 | U98: =IF(B98="","",O98+P98+T98+ IF(D98="D",$P98)) -> 682.8481097 | V98: 3871.38 | W98: 0 | X98: =+ROUND(J98*(((1+(H98/100))^(I98/G98))-1),4) -> 38.243 | Y98: =+L98-X98 -> -0.003 | Z98: =Z97+I98 -> 2007 | AA98: =1/((1+($J$8/100))^(Z98/$Q$9))*1 -> 0.5450578695 | AB98: 563.6126576 | AC98: -4.791843419 | AD98: 4.792057722 | AE98: =$K$23 -> 0.0002143031923 | AF98: 568.4045011 | AH98: 2031-03-20 | AI98: 682.8481097
A99: 67 | B99: 1 | C99: 2031-04-20 | E99: 67 | F99: 67 | G99: 360 | H99: 11.5 | I99: 31 | J99: 3871.38 | K99: 628.485 | L99: 36.46 | M99: 4.303109722 | N99: 40.76310972 | O99: 669.2481097 | P99: 10 | Q99: 3.6 | S99: 0 | T99: 3.6 | U99: 682.8481097 | V99: 3242.89 | W99: 0 | X99: 36.4593 | Y99: 0.0007 | Z99: 2038 | AA99: 0.5399726002 | AB99: =AF98 -> 568.4045011 | AC99: =AE99-AD99 -> -5.352816531 | AD99: 5.353030834 | AE99: 0.0002143031923 | AF99: =AB99-AC99 -> 573.7573176 | AH99: 2031-04-20 | AI99: 682.8481097
A100: 68 | B100: 1 | C100: 2031-05-20 | E100: 68 | F100: 68 | G100: 360 | H100: 11.5 | I100: 30 | J100: 3242.89 | K100: 636.075 | L100: 29.55 | M100: 4.303109722 | N100: 33.85310972 | O100: 669.9281097 | P100: 10 | Q100: 2.92 | S100: 0 | T100: 2.92 | U100: 682.8481097 | V100: 2606.81 | W100: 0 | X100: 29.5507 | Y100: -0.0007 | Z100: 2068 | AA100: 0.5350965497 | AB100: 573.7573176 | AC100: -5.228131144 | AD100: 5.228345447 | AE100: 0.0002143031923 | AF100: 578.9854487 | AH100: 2031-05-20 | AI100: 682.8481097
A101: 69 | B101: 1 | C101: 2031-06-20 | E101: 69 | F101: 69 | G101: 360 | H101: 11.5 | I101: 31 | J101: 2606.81 | K101: 641.575 | L101: 24.55 | M101: 4.303109722 | N101: 28.85310972 | O101: 670.4281097 | P101: 10 | Q101: 2.42 | S101: 0 | T101: 2.42 | U101: 682.8481097 | V101: 1965.23 | W101: 0 | X101: 24.55 | Y101: 0 | Z101: 2099 | AA101: 0.5301042173 | AB101: 578.9854487 | AC101: -5.452464122 | AD101: 5.452678425 | AE101: 0.0002143031923 | AF101: 584.4379129 | AH101: 2031-06-20 | AI101: 682.8481097
A102: 70 | B102: 1 | C102: 2031-07-20 | E102: 70 | F102: 70 | G102: 360 | H102: 11.5 | I102: 30 | J102: 1965.23 | K102: 648.865 | L102: 17.91 | M102: 4.303109722 | N102: 22.21310972 | O102: 671.0781097 | P102: 10 | Q102: 1.77 | S102: 0 | T102: 1.77 | U102: 682.8481097 | V102: 1316.36 | W102: 0 | X102: 17.9081 | Y102: 0.0019 | Z102: 2129 | AA102: 0.5253172802 | AB102: 584.4379129 | AC102: -5.325457731 | AD102: 5.325672034 | AE102: 0.0002143031923 | AF102: 589.7633706 | AH102: 2031-07-20 | AI102: 682.8481097
A103: 71 | B103: 1 | C103: 2031-08-20 | E103: 71 | F103: 71 | G103: 360 | H103: 11.5 | I103: 31 | J103: 1316.36 | K103: 654.925 | L103: 12.4 | M103: 4.303109722 | N103: 16.70310972 | O103: 671.6281097 | P103: 10 | Q103: 1.22 | S103: 0 | T103: 1.22 | U103: 682.8481097 | V103: 661.43 | W103: 0 | X103: 12.397 | Y103: 0.003 | Z103: 2160 | AA103: 0.5204161862 | AB103: 589.7633706 | AC103: -5.553966745 | AD103: 5.554181048 | AE103: 0.0002143031923 | AF103: 595.3173373 | AH103: 2031-08-20 | AI103: 682.8481097
A104: 72 | B104: 1 | C104: 2031-09-20 | E104: 72 | F104: 72 | G104: 360 | H104: 11.5 | I104: 31 | J104: 661.43 | K104: 661.695 | L104: 6.23 | M104: 4.303109722 | N104: 10.53310972 | O104: 672.2281097 | P104: 10 | Q104: 0.62 | S104: 0 | T104: 0.62 | U104: 682.8481097 | V104: -0.27 | W104: 0 | X104: 6.2291 | Y104: 0.0009 | Z104: 2191 | AA104: 0.5155608183 | AB104: 595.3173373 | AC104: -5.606272023 | AD104: 5.606486326 | AE104: 0.0002143031923 | AF104: 600.9236094 | AH104: 2031-09-20 | AI104: 682.8481097

Sheet Calculos CC (hidden)
A1: Factores utilizados en Meses de No Pago para cálculo del valor cuota
A3: N° de Cuota | B3: Equivalente | C3: Fecha | D3: Mes | E3: Marca Cuota No Pago | F3: Factor (10) | G3: Acumulado | H3: Conteo No Pagos Acum
A4: 1 | B4: =IF(E4<>"C",IF(ISERROR(1+B3)=TRUE,1,1+B3),IF(ISNUMBER(B3),B3,0)) -> 1 | C4: =+simulador_1!Q7 -> 2025-10-20 | D4: =MONTH(C4) -> 10 | E4: =IF(ISERROR(MATCH(D4,simulador_1!$H$16:$H$17,0))=FALSE,"C",IF(ISERROR(MATCH(D4,simulador_1!$H$18:$H$19,0))=FALSE,"D","")) ->  | F4: =IF(E4="C",0,IF(E4 ="D",ROUND(1/((1+simulador_1!$Q$13)^A4),9) * 2,ROUND(1/((1+simulador_1!$Q$13)^A4),9))) -> 0.990841406 | G4: =ROUND(F4,9) -> 0.990841406 | H4: =+COUNTIF($E$4:E4,"C") -> 0
A5: =A4+1 -> 2 | B5: =IF(E5<>"C",IF(ISERROR(1+B4)=TRUE,1,1+B4),IF(ISNUMBER(B4),B4,1)) -> 2 | C5: =DATE(YEAR(C4) + 1/12,MONTH(C4)+1,DAY(C4)) -> 2025-11-20 | D5: 11 | E5: =IF(ISERROR(MATCH(D5,simulador_1!$H$16:$H$17,0))=FALSE,"C",IF(ISERROR(MATCH(D5,simulador_1!$H$18:$H$19,0))=FALSE,"D","")) ->  | F5: =IF(E5="C",0,IF(E5 ="D",ROUND(1/((1+simulador_1!$Q$13)^A5),9) * 2,ROUND(1/((1+simulador_1!$Q$13)^A5),9))) -> 0.981766692 | G5: =G4+ROUND(F5,9) -> 1.972608098 | H5: =+COUNTIF($E$4:E5,"C") -> 0
A6: 3 | B6: 3 | C6: 2025-12-20 | D6: 12 | E6: =IF(ISERROR(MATCH(D6,simulador_1!$H$16:$H$17,0))=FALSE,"C",IF(ISERROR(MATCH(D6,simulador_1!$H$18:$H$19,0))=FALSE,"D","")) ->  | F6: =IF(E6="C",0,IF(E6 ="D",ROUND(1/((1+simulador_1!$Q$13)^A6),9) * 2,ROUND(1/((1+simulador_1!$Q$13)^A6),9))) -> 0.972775089 | G6: =G5+ROUND(F6,9) -> 2.945383187 | H6: =+COUNTIF($E$4:E6,"C") -> 0
A7: 4 | B7: 4 | C7: 2026-01-20 | D7: 1 | E7: =IF(ISERROR(MATCH(D7,simulador_1!$H$16:$H$17,0))=FALSE,"C",IF(ISERROR(MATCH(D7,simulador_1!$H$18:$H$19,0))=FALSE,"D","")) ->  | F7: =IF(E7="C",0,IF(E7 ="D",ROUND(1/((1+simulador_1!$Q$13)^A7),9) * 2,ROUND(1/((1+simulador_1!$Q$13)^A7),9))) -> 0.963865837 | G7: 3.909249024 | H7: =+COUNTIF($E$4:E7,"C") -> 0
A8: 5 | B8: 5 | C8: 2026-02-20 | D8: 2 | E8: =IF(ISERROR(MATCH(D8,simulador_1!$H$16:$H$17,0))=FALSE,"C",IF(ISERROR(MATCH(D8,simulador_1!$H$18:$H$19,0))=FALSE,"D","")) ->  | F8: =IF(E8="C",0,IF(E8 ="D",ROUND(1/((1+simulador_1!$Q$13)^A8),9) * 2,ROUND(1/((1+simulador_1!$Q$13)^A8),9))) -> 0.955038182 | G8: 4.864287206 | H8: =+COUNTIF($E$4:E8,"C") -> 0
A9: 6 | B9: 6 | C9: 2026-03-20 | D9: 3 | E9: =IF(ISERROR(MATCH(D9,simulador_1!$H$16:$H$17,0))=FALSE,"C",IF(ISERROR(MATCH(D9,simulador_1!$H$18:$H$19,0))=FALSE,"D","")) ->  | F9: =IF(E9="C",0,IF(E9 ="D",ROUND(1/((1+simulador_1!$Q$13)^A9),9) * 2,ROUND(1/((1+simulador_1!$Q$13)^A9),9))) -> 0.946291375 | G9: 5.810578581 | H9: =+COUNTIF($E$4:E9,"C") -> 0
A10: 7 | B10: 7 | C10: 2026-04-20 | D10: 4 | E10: =IF(ISERROR(MATCH(D10,simulador_1!$H$16:$H$17,0))=FALSE,"C",IF(ISERROR(MATCH(D10,simulador_1!$H$18:$H$19,0))=FALSE,"D","")) ->  | F10: =IF(E10="C",0,IF(E10 ="D",ROUND(1/((1+simulador_1!$Q$13)^A10),9) * 2,ROUND(1/((1+simulador_1!$Q$13)^A10),9))) -> 0.937624676 | G10: 6.748203257 | H10: =+COUNTIF($E$4:E10,"C") -> 0
A11: 8 | B11: 8 | C11: 2026-05-20 | D11: 5 | E11: =IF(ISERROR(MATCH(D11,simulador_1!$H$16:$H$17,0))=FALSE,"C",IF(ISERROR(MATCH(D11,simulador_1!$H$18:$H$19,0))=FALSE,"D","")) ->  | F11: =IF(E11="C",0,IF(E11 ="D",ROUND(1/((1+simulador_1!$Q$13)^A11),9) * 2,ROUND(1/((1+simulador_1!$Q$13)^A11),9))) -> 0.929037352 | G11: 7.677240609 | H11: =+COUNTIF($E$4:E11,"C") -> 0
A12: 9 | B12: 9 | C12: 2026-06-20 | D12: 6 | E12: =IF(ISERROR(MATCH(D12,simulador_1!$H$16:$H$17,0))=FALSE,"C",IF(ISERROR(MATCH(D12,simulador_1!$H$18:$H$19,0))=FALSE,"D","")) ->  | F12: =IF(E12="C",0,IF(E12 ="D",ROUND(1/((1+simulador_1!$Q$13)^A12),9) * 2,ROUND(1/((1+simulador_1!$Q$13)^A12),9))) -> 0.920528677 | G12: 8.597769286 | H12: =+COUNTIF($E$4:E12,"C") -> 0
A13: 10 | B13: 10 | C13: 2026-07-20 | D13: 7 | E13: =IF(ISERROR(MATCH(D13,simulador_1!$H$16:$H$17,0))=FALSE,"C",IF(ISERROR(MATCH(D13,simulador_1!$H$18:$H$19,0))=FALSE,"D","")) ->  | F13: =IF(E13="C",0,IF(E13 ="D",ROUND(1/((1+simulador_1!$Q$13)^A13),9) * 2,ROUND(1/((1+simulador_1!$Q$13)^A13),9))) -> 0.912097928 | G13: 9.509867214 | H13: =+COUNTIF($E$4:E13,"C") -> 0
A14: 11 | B14: 11 | C14: 2026-08-20 | D14: 8 | E14: =IF(ISERROR(MATCH(D14,simulador_1!$H$16:$H$17,0))=FALSE,"C",IF(ISERROR(MATCH(D14,simulador_1!$H$18:$H$19,0))=FALSE,"D","")) ->  | F14: =IF(E14="C",0,IF(E14 ="D",ROUND(1/((1+simulador_1!$Q$13)^A14),9) * 2,ROUND(1/((1+simulador_1!$Q$13)^A14),9))) -> 0.903744394 | G14: 10.41361161 | H14: =+COUNTIF($E$4:E14,"C") -> 0
A15: 12 | B15: 12 | C15: 2026-09-20 | D15: 9 | E15: =IF(ISERROR(MATCH(D15,simulador_1!$H$16:$H$17,0))=FALSE,"C",IF(ISERROR(MATCH(D15,simulador_1!$H$18:$H$19,0))=FALSE,"D","")) ->  | F15: =IF(E15="C",0,IF(E15 ="D",ROUND(1/((1+simulador_1!$Q$13)^A15),9) * 2,ROUND(1/((1+simulador_1!$Q$13)^A15),9))) -> 0.895467366 | G15: 11.30907897 | H15: =+COUNTIF($E$4:E15,"C") -> 0
A16: 13 | B16: 13 | C16: 2026-10-20 | D16: 10 | E16: =IF(ISERROR(MATCH(D16,simulador_1!$H$16:$H$17,0))=FALSE,"C",IF(ISERROR(MATCH(D16,simulador_1!$H$18:$H$19,0))=FALSE,"D","")) ->  | F16: =IF(E16="C",0,IF(E16 ="D",ROUND(1/((1+simulador_1!$Q$13)^A16),9) * 2,ROUND(1/((1+simulador_1!$Q$13)^A16),9))) -> 0.887266144 | G16: 12.19634512 | H16: =+COUNTIF($E$4:E16,"C") -> 0
A17: 14 | B17: 14 | C17: 2026-11-20 | D17: 11 | E17: =IF(ISERROR(MATCH(D17,simulador_1!$H$16:$H$17,0))=FALSE,"C",IF(ISERROR(MATCH(D17,simulador_1!$H$18:$H$19,0))=FALSE,"D","")) ->  | F17: =IF(E17="C",0,IF(E17 ="D",ROUND(1/((1+simulador_1!$Q$13)^A17),9) * 2,ROUND(1/((1+simulador_1!$Q$13)^A17),9))) -> 0.879140033 | G17: 13.07548515 | H17: =+COUNTIF($E$4:E17,"C") -> 0
A18: 15 | B18: 15 | C18: 2026-12-20 | D18: 12 | E18: =IF(ISERROR(MATCH(D18,simulador_1!$H$16:$H$17,0))=FALSE,"C",IF(ISERROR(MATCH(D18,simulador_1!$H$18:$H$19,0))=FALSE,"D","")) ->  | F18: =IF(E18="C",0,IF(E18 ="D",ROUND(1/((1+simulador_1!$Q$13)^A18),9) * 2,ROUND(1/((1+simulador_1!$Q$13)^A18),9))) -> 0.871088347 | G18: 13.9465735 | H18: =+COUNTIF($E$4:E18,"C") -> 0
A19: 16 | B19: 16 | C19: 2027-01-20 | D19: 1 | E19: =IF(ISERROR(MATCH(D19,simulador_1!$H$16:$H$17,0))=FALSE,"C",IF(ISERROR(MATCH(D19,simulador_1!$H$18:$H$19,0))=FALSE,"D","")) ->  | F19: =IF(E19="C",0,IF(E19 ="D",ROUND(1/((1+simulador_1!$Q$13)^A19),9) * 2,ROUND(1/((1+simulador_1!$Q$13)^A19),9))) -> 0.863110402 | G19: 14.8096839 | H19: =+COUNTIF($E$4:E19,"C") -> 0
A20: 17 | B20: 17 | C20: 2027-02-20 | D20: 2 | E20: =IF(ISERROR(MATCH(D20,simulador_1!$H$16:$H$17,0))=FALSE,"C",IF(ISERROR(MATCH(D20,simulador_1!$H$18:$H$19,0))=FALSE,"D","")) ->  | F20: =IF(E20="C",0,IF(E20 ="D",ROUND(1/((1+simulador_1!$Q$13)^A20),9) * 2,ROUND(1/((1+simulador_1!$Q$13)^A20),9))) -> 0.855205524 | G20: 15.66488942 | H20: =+COUNTIF($E$4:E20,"C") -> 0
A21: 18 | B21: 18 | C21: 2027-03-20 | D21: 3 | E21: =IF(ISERROR(MATCH(D21,simulador_1!$H$16:$H$17,0))=FALSE,"C",IF(ISERROR(MATCH(D21,simulador_1!$H$18:$H$19,0))=FALSE,"D","")) ->  | F21: =IF(E21="C",0,IF(E21 ="D",ROUND(1/((1+simulador_1!$Q$13)^A21),9) * 2,ROUND(1/((1+simulador_1!$Q$13)^A21),9))) -> 0.847373044 | G21: 16.51226247 | H21: =+COUNTIF($E$4:E21,"C") -> 0
A22: 19 | B22: 19 | C22: 2027-04-20 | D22: 4 | E22: =IF(ISERROR(MATCH(D22,simulador_1!$H$16:$H$17,0))=FALSE,"C",IF(ISERROR(MATCH(D22,simulador_1!$H$18:$H$19,0))=FALSE,"D","")) ->  | F22: =IF(E22="C",0,IF(E22 ="D",ROUND(1/((1+simulador_1!$Q$13)^A22),9) * 2,ROUND(1/((1+simulador_1!$Q$13)^A22),9))) -> 0.839612299 | G22: 17.35187477 | H22: =+COUNTIF($E$4:E22,"C") -> 0
A23: 20 | B23: 20 | C23: 2027-05-20 | D23: 5 | E23: =IF(ISERROR(MATCH(D23,simulador_1!$H$16:$H$17,0))=FALSE,"C",IF(ISERROR(MATCH(D23,simulador_1!$H$18:$H$19,0))=FALSE,"D","")) ->  | F23: =IF(E23="C",0,IF(E23 ="D",ROUND(1/((1+simulador_1!$Q$13)^A23),9) * 2,ROUND(1/((1+simulador_1!$Q$13)^A23),9))) -> 0.831922631 | G23: 18.1837974 | H23: =+COUNTIF($E$4:E23,"C") -> 0
A24: 21 | B24: 21 | C24: 2027-06-20 | D24: 6 | E24: =IF(ISERROR(MATCH(D24,simulador_1!$H$16:$H$17,0))=FALSE,"C",IF(ISERROR(MATCH(D24,simulador_1!$H$18:$H$19,0))=FALSE,"D","")) ->  | F24: =IF(E24="C",0,IF(E24 ="D",ROUND(1/((1+simulador_1!$Q$13)^A24),9) * 2,ROUND(1/((1+simulador_1!$Q$13)^A24),9))) -> 0.824303389 | G24: 19.00810079 | H24: =+COUNTIF($E$4:E24,"C") -> 0
A25: 22 | B25: 22 | C25: 2027-07-20 | D25: 7 | E25: =IF(ISERROR(MATCH(D25,simulador_1!$H$16:$H$17,0))=FALSE,"C",IF(ISERROR(MATCH(D25,simulador_1!$H$18:$H$19,0))=FALSE,"D","")) ->  | F25: =IF(E25="C",0,IF(E25 ="D",ROUND(1/((1+simulador_1!$Q$13)^A25),9) * 2,ROUND(1/((1+simulador_1!$Q$13)^A25),9))) -> 0.816753929 | G25: 19.82485472 | H25: =+COUNTIF($E$4:E25,"C") -> 0
A26: 23 | B26: 23 | C26: 2027-08-20 | D26: 8 | E26: =IF(ISERROR(MATCH(D26,simulador_1!$H$16:$H$17,0))=FALSE,"C",IF(ISERROR(MATCH(D26,simulador_1!$H$18:$H$19,0))=FALSE,"D","")) ->  | F26: =IF(E26="C",0,IF(E26 ="D",ROUND(1/((1+simulador_1!$Q$13)^A26),9) * 2,ROUND(1/((1+simulador_1!$Q$13)^A26),9))) -> 0.809273611 | G26: 20.63412833 | H26: =+COUNTIF($E$4:E26,"C") -> 0
A27: 24 | B27: 24 | C27: 2027-09-20 | D27: 9 | E27: =IF(ISERROR(MATCH(D27,simulador_1!$H$16:$H$17,0))=FALSE,"C",IF(ISERROR(MATCH(D27,simulador_1!$H$18:$H$19,0))=FALSE,"D","")) ->  | F27: =IF(E27="C",0,IF(E27 ="D",ROUND(1/((1+simulador_1!$Q$13)^A27),9) * 2,ROUND(1/((1+simulador_1!$Q$13)^A27),9))) -> 0.801861803 | G27: 21.43599013 | H27: =+COUNTIF($E$4:E27,"C") -> 0
A28: 25 | B28: 25 | C28: 2027-10-20 | D28: 10 | E28: =IF(ISERROR(MATCH(D28,simulador_1!$H$16:$H$17,0))=FALSE,"C",IF(ISERROR(MATCH(D28,simulador_1!$H$18:$H$19,0))=FALSE,"D","")) ->  | F28: =IF(E28="C",0,IF(E28 ="D",ROUND(1/((1+simulador_1!$Q$13)^A28),9) * 2,ROUND(1/((1+simulador_1!$Q$13)^A28),9))) -> 0.794517876 | G28: 22.23050801 | H28: =+COUNTIF($E$4:E28,"C") -> 0
A29: 26 | B29: 26 | C29: 2027-11-20 | D29: 11 | E29: =IF(ISERROR(MATCH(D29,simulador_1!$H$16:$H$17,0))=FALSE,"C",IF(ISERROR(MATCH(D29,simulador_1!$H$18:$H$19,0))=FALSE,"D","")) ->  | F29: =IF(E29="C",0,IF(E29 ="D",ROUND(1/((1+simulador_1!$Q$13)^A29),9) * 2,ROUND(1/((1+simulador_1!$Q$13)^A29),9))) -> 0.78724121 | G29: 23.01774922 | H29: =+COUNTIF($E$4:E29,"C") -> 0
A30: 27 | B30: 27 | C30: 2027-12-20 | D30: 12 | E30: =IF(ISERROR(MATCH(D30,simulador_1!$H$16:$H$17,0))=FALSE,"C",IF(ISERROR(MATCH(D30,simulador_1!$H$18:$H$19,0))=FALSE,"D","")) ->  | F30: =IF(E30="C",0,IF(E30 ="D",ROUND(1/((1+simulador_1!$Q$13)^A30),9) * 2,ROUND(1/((1+simulador_1!$Q$13)^A30),9))) -> 0.780031187 | G30: 23.7977804 | H30: =+COUNTIF($E$4:E30,"C") -> 0
A31: 28 | B31: 28 | C31: 2028-01-20 | D31: 1 | E31: =IF(ISERROR(MATCH(D31,simulador_1!$H$16:$H$17,0))=FALSE,"C",IF(ISERROR(MATCH(D31,simulador_1!$H$18:$H$19,0))=FALSE,"D","")) ->  | F31: =IF(E31="C",0,IF(E31 ="D",ROUND(1/((1+simulador_1!$Q$13)^A31),9) * 2,ROUND(1/((1+simulador_1!$Q$13)^A31),9))) -> 0.772887198 | G31: 24.5706676 | H31: =+COUNTIF($E$4:E31,"C") -> 0
A32: 29 | B32: 29 | C32: 2028-02-20 | D32: 2 | E32: =IF(ISERROR(MATCH(D32,simulador_1!$H$16:$H$17,0))=FALSE,"C",IF(ISERROR(MATCH(D32,simulador_1!$H$18:$H$19,0))=FALSE,"D","")) ->  | F32: =IF(E32="C",0,IF(E32 ="D",ROUND(1/((1+simulador_1!$Q$13)^A32),9) * 2,ROUND(1/((1+simulador_1!$Q$13)^A32),9))) -> 0.765808638 | G32: 25.33647624 | H32: =+COUNTIF($E$4:E32,"C") -> 0
A33: 30 | B33: 30 | C33: 2028-03-20 | D33: 3 | E33: =IF(ISERROR(MATCH(D33,simulador_1!$H$16:$H$17,0))=FALSE,"C",IF(ISERROR(MATCH(D33,simulador_1!$H$18:$H$19,0))=FALSE,"D","")) ->  | F33: =IF(E33="C",0,IF(E33 ="D",ROUND(1/((1+simulador_1!$Q$13)^A33),9) * 2,ROUND(1/((1+simulador_1!$Q$13)^A33),9))) -> 0.758794908 | G33: 26.09527115 | H33: =+COUNTIF($E$4:E33,"C") -> 0
A34: 31 | B34: 31 | C34: 2028-04-20 | D34: 4 | E34: =IF(ISERROR(MATCH(D34,simulador_1!$H$16:$H$17,0))=FALSE,"C",IF(ISERROR(MATCH(D34,simulador_1!$H$18:$H$19,0))=FALSE,"D","")) ->  | F34: =IF(E34="C",0,IF(E34 ="D",ROUND(1/((1+simulador_1!$Q$13)^A34),9) * 2,ROUND(1/((1+simulador_1!$Q$13)^A34),9))) -> 0.751845413 | G34: 26.84711656 | H34: =+COUNTIF($E$4:E34,"C") -> 0
A35: 32 | B35: 32 | C35: 2028-05-20 | D35: 5 | E35: =IF(ISERROR(MATCH(D35,simulador_1!$H$16:$H$17,0))=FALSE,"C",IF(ISERROR(MATCH(D35,simulador_1!$H$18:$H$19,0))=FALSE,"D","")) ->  | F35: =IF(E35="C",0,IF(E35 ="D",ROUND(1/((1+simulador_1!$Q$13)^A35),9) * 2,ROUND(1/((1+simulador_1!$Q$13)^A35),9))) -> 0.744959566 | G35: 27.59207613 | H35: =+COUNTIF($E$4:E35,"C") -> 0
A36: 33 | B36: 33 | C36: 2028-06-20 | D36: 6 | E36: =IF(ISERROR(MATCH(D36,simulador_1!$H$16:$H$17,0))=FALSE,"C",IF(ISERROR(MATCH(D36,simulador_1!$H$18:$H$19,0))=FALSE,"D","")) ->  | F36: =IF(E36="C",0,IF(E36 ="D",ROUND(1/((1+simulador_1!$Q$13)^A36),9) * 2,ROUND(1/((1+simulador_1!$Q$13)^A36),9))) -> 0.738136784 | G36: 28.33021291 | H36: =+COUNTIF($E$4:E36,"C") -> 0
A37: 34 | B37: =IF(E37<>"C",IF(ISERROR(1+B36)=TRUE,1,1+B36),IF(ISNUMBER(B36),B36,1)) -> 34 | C37: 2028-07-20 | D37: 7 | E37: =IF(ISERROR(MATCH(D37,simulador_1!$H$16:$H$17,0))=FALSE,"C",IF(ISERROR(MATCH(D37,simulador_1!$H$18:$H$19,0))=FALSE,"D","")) ->  | F37: =IF(E37="C",0,IF(E37 ="D",ROUND(1/((1+simulador_1!$Q$13)^A37),9) * 2,ROUND(1/((1+simulador_1!$Q$13)^A37),9))) -> 0.731376489 | G37: 29.0615894 | H37: =+COUNTIF($E$4:E37,"C") -> 0
A38: 35 | B38: 35 | C38: 2028-08-20 | D38: 8 | E38: =IF(ISERROR(MATCH(D38,simulador_1!$H$16:$H$17,0))=FALSE,"C",IF(ISERROR(MATCH(D38,simulador_1!$H$18:$H$19,0))=FALSE,"D","")) ->  | F38: =IF(E38="C",0,IF(E38 ="D",ROUND(1/((1+simulador_1!$Q$13)^A38),9) * 2,ROUND(1/((1+simulador_1!$Q$13)^A38),9))) -> 0.724678109 | G38: 29.78626751 | H38: =+COUNTIF($E$4:E38,"C") -> 0
A39: 36 | B39: 36 | C39: 2028-09-20 | D39: 9 | E39: =IF(ISERROR(MATCH(D39,simulador_1!$H$16:$H$17,0))=FALSE,"C",IF(ISERROR(MATCH(D39,simulador_1!$H$18:$H$19,0))=FALSE,"D","")) ->  | F39: =IF(E39="C",0,IF(E39 ="D",ROUND(1/((1+simulador_1!$Q$13)^A39),9) * 2,ROUND(1/((1+simulador_1!$Q$13)^A39),9))) -> 0.718041076 | G39: 30.50430858 | H39: =+COUNTIF($E$4:E39,"C") -> 0
A40: 37 | B40: 37 | C40: 2028-10-20 | D40: 10 | E40: =IF(ISERROR(MATCH(D40,simulador_1!$H$16:$H$17,0))=FALSE,"C",IF(ISERROR(MATCH(D40,simulador_1!$H$18:$H$19,0))=FALSE,"D","")) ->  | F40: =IF(E40="C",0,IF(E40 ="D",ROUND(1/((1+simulador_1!$Q$13)^A40),9) * 2,ROUND(1/((1+simulador_1!$Q$13)^A40),9))) -> 0.71146483 | G40: 31.21577341 | H40: =+COUNTIF($E$4:E40,"C") -> 0
A41: 38 | B41: 38 | C41: 2028-11-20 | D41: 11 | E41: =IF(ISERROR(MATCH(D41,simulador_1!$H$16:$H$17,0))=FALSE,"C",IF(ISERROR(MATCH(D41,simulador_1!$H$18:$H$19,0))=FALSE,"D","")) ->  | F41: =IF(E41="C",0,IF(E41 ="D",ROUND(1/((1+simulador_1!$Q$13)^A41),9) * 2,ROUND(1/((1+simulador_1!$Q$13)^A41),9))) -> 0.704948812 | G41: 31.92072223 | H41: =+COUNTIF($E$4:E41,"C") -> 0
A42: 39 | B42: 39 | C42: 2028-12-20 | D42: 12 | E42: =IF(ISERROR(MATCH(D42,simulador_1!$H$16:$H$17,0))=FALSE,"C",IF(ISERROR(MATCH(D42,simulador_1!$H$18:$H$19,0))=FALSE,"D","")) ->  | F42: =IF(E42="C",0,IF(E42 ="D",ROUND(1/((1+simulador_1!$Q$13)^A42),9) * 2,ROUND(1/((1+simulador_1!$Q$13)^A42),9))) -> 0.698492472 | G42: 32.6192147 | H42: =+COUNTIF($E$4:E42,"C") -> 0
A43: 40 | B43: 40 | C43: 2029-01-20 | D43: 1 | E43: =IF(ISERROR(MATCH(D43,simulador_1!$H$16:$H$17,0))=FALSE,"C",IF(ISERROR(MATCH(D43,simulador_1!$H$18:$H$19,0))=FALSE,"D","")) ->  | F43: =IF(E43="C",0,IF(E43 ="D",ROUND(1/((1+simulador_1!$Q$13)^A43),9) * 2,ROUND(1/((1+simulador_1!$Q$13)^A43),9))) -> 0.692095263 | G43: 33.31130996 | H43: =+COUNTIF($E$4:E43,"C") -> 0
A44: 41 | B44: 41 | C44: 2029-02-20 | D44: 2 | E44: =IF(ISERROR(MATCH(D44,simulador_1!$H$16:$H$17,0))=FALSE,"C",IF(ISERROR(MATCH(D44,simulador_1!$H$18:$H$19,0))=FALSE,"D","")) ->  | F44: =IF(E44="C",0,IF(E44 ="D",ROUND(1/((1+simulador_1!$Q$13)^A44),9) * 2,ROUND(1/((1+simulador_1!$Q$13)^A44),9))) -> 0.685756644 | G44: 33.99706661 | H44: =+COUNTIF($E$4:E44,"C") -> 0
A45: 42 | B45: 42 | C45: 2029-03-20 | D45: 3 | E45: =IF(ISERROR(MATCH(D45,simulador_1!$H$16:$H$17,0))=FALSE,"C",IF(ISERROR(MATCH(D45,simulador_1!$H$18:$H$19,0))=FALSE,"D","")) ->  | F45: =IF(E45="C",0,IF(E45 ="D",ROUND(1/((1+simulador_1!$Q$13)^A45),9) * 2,ROUND(1/((1+simulador_1!$Q$13)^A45),9))) -> 0.679476077 | G45: 34.67654268 | H45: =+COUNTIF($E$4:E45,"C") -> 0
A46: 43 | B46: 43 | C46: 2029-04-20 | D46: 4 | E46: =IF(ISERROR(MATCH(D46,simulador_1!$H$16:$H$17,0))=FALSE,"C",IF(ISERROR(MATCH(D46,simulador_1!$H$18:$H$19,0))=FALSE,"D","")) ->  | F46: =IF(E46="C",0,IF(E46 ="D",ROUND(1/((1+simulador_1!$Q$13)^A46),9) * 2,ROUND(1/((1+simulador_1!$Q$13)^A46),9))) -> 0.673253032 | G46: 35.34979571 | H46: =+COUNTIF($E$4:E46,"C") -> 0
A47: 44 | B47: 44 | C47: 2029-05-20 | D47: 5 | E47: =IF(ISERROR(MATCH(D47,simulador_1!$H$16:$H$17,0))=FALSE,"C",IF(ISERROR(MATCH(D47,simulador_1!$H$18:$H$19,0))=FALSE,"D","")) ->  | F47: =IF(E47="C",0,IF(E47 ="D",ROUND(1/((1+simulador_1!$Q$13)^A47),9) * 2,ROUND(1/((1+simulador_1!$Q$13)^A47),9))) -> 0.66708698 | G47: 36.01688269 | H47: =+COUNTIF($E$4:E47,"C") -> 0
A48: 45 | B48: 45 | C48: 2029-06-20 | D48: 6 | E48: =IF(ISERROR(MATCH(D48,simulador_1!$H$16:$H$17,0))=FALSE,"C",IF(ISERROR(MATCH(D48,simulador_1!$H$18:$H$19,0))=FALSE,"D","")) ->  | F48: =IF(E48="C",0,IF(E48 ="D",ROUND(1/((1+simulador_1!$Q$13)^A48),9) * 2,ROUND(1/((1+simulador_1!$Q$13)^A48),9))) -> 0.660977402 | G48: 36.6778601 | H48: =+COUNTIF($E$4:E48,"C") -> 0
A49: 46 | B49: 46 | C49: 2029-07-20 | D49: 7 | E49: =IF(ISERROR(MATCH(D49,simulador_1!$H$16:$H$17,0))=FALSE,"C",IF(ISERROR(MATCH(D49,simulador_1!$H$18:$H$19,0))=FALSE,"D","")) ->  | F49: =IF(E49="C",0,IF(E49 ="D",ROUND(1/((1+simulador_1!$Q$13)^A49),9) * 2,ROUND(1/((1+simulador_1!$Q$13)^A49),9))) -> 0.654923778 | G49: 37.33278387 | H49: =+COUNTIF($E$4:E49,"C") -> 0
A50: 47 | B50: 47 | C50: 2029-08-20 | D50: 8 | E50: =IF(ISERROR(MATCH(D50,simulador_1!$H$16:$H$17,0))=FALSE,"C",IF(ISERROR(MATCH(D50,simulador_1!$H$18:$H$19,0))=FALSE,"D","")) ->  | F50: =IF(E50="C",0,IF(E50 ="D",ROUND(1/((1+simulador_1!$Q$13)^A50),9) * 2,ROUND(1/((1+simulador_1!$Q$13)^A50),9))) -> 0.648925597 | G50: 37.98170947 | H50: =+COUNTIF($E$4:E50,"C") -> 0
A51: 48 | B51: 48 | C51: 2029-09-20 | D51: 9 | E51: =IF(ISERROR(MATCH(D51,simulador_1!$H$16:$H$17,0))=FALSE,"C",IF(ISERROR(MATCH(D51,simulador_1!$H$18:$H$19,0))=FALSE,"D","")) ->  | F51: =IF(E51="C",0,IF(E51 ="D",ROUND(1/((1+simulador_1!$Q$13)^A51),9) * 2,ROUND(1/((1+simulador_1!$Q$13)^A51),9))) -> 0.642982351 | G51: 38.62469182 | H51: =+COUNTIF($E$4:E51,"C") -> 0
A52: 49 | B52: 49 | C52: 2029-10-20 | D52: 10 | E52: =IF(ISERROR(MATCH(D52,simulador_1!$H$16:$H$17,0))=FALSE,"C",IF(ISERROR(MATCH(D52,simulador_1!$H$18:$H$19,0))=FALSE,"D","")) ->  | F52: =IF(E52="C",0,IF(E52 ="D",ROUND(1/((1+simulador_1!$Q$13)^A52),9) * 2,ROUND(1/((1+simulador_1!$Q$13)^A52),9))) -> 0.637093537 | G52: 39.26178536 | H52: =+COUNTIF($E$4:E52,"C") -> 0
A53: 50 | B53: 50 | C53: 2029-11-20 | D53: 11 | E53: =IF(ISERROR(MATCH(D53,simulador_1!$H$16:$H$17,0))=FALSE,"C",IF(ISERROR(MATCH(D53,simulador_1!$H$18:$H$19,0))=FALSE,"D","")) ->  | F53: =IF(E53="C",0,IF(E53 ="D",ROUND(1/((1+simulador_1!$Q$13)^A53),9) * 2,ROUND(1/((1+simulador_1!$Q$13)^A53),9))) -> 0.631258656 | G53: 39.89304401 | H53: =+COUNTIF($E$4:E53,"C") -> 0
A54: 51 | B54: 51 | C54: 2029-12-20 | D54: 12 | E54: =IF(ISERROR(MATCH(D54,simulador_1!$H$16:$H$17,0))=FALSE,"C",IF(ISERROR(MATCH(D54,simulador_1!$H$18:$H$19,0))=FALSE,"D","")) ->  | F54: =IF(E54="C",0,IF(E54 ="D",ROUND(1/((1+simulador_1!$Q$13)^A54),9) * 2,ROUND(1/((1+simulador_1!$Q$13)^A54),9))) -> 0.625477214 | G54: 40.51852123 | H54: =+COUNTIF($E$4:E54,"C") -> 0
A55: 52 | B55: 52 | C55: 2030-01-20 | D55: 1 | E55: =IF(ISERROR(MATCH(D55,simulador_1!$H$16:$H$17,0))=FALSE,"C",IF(ISERROR(MATCH(D55,simulador_1!$H$18:$H$19,0))=FALSE,"D","")) ->  | F55: =IF(E55="C",0,IF(E55 ="D",ROUND(1/((1+simulador_1!$Q$13)^A55),9) * 2,ROUND(1/((1+simulador_1!$Q$13)^A55),9))) -> 0.619748722 | G55: 41.13826995 | H55: =+COUNTIF($E$4:E55,"C") -> 0
A56: 53 | B56: 53 | C56: 2030-02-20 | D56: 2 | E56: =IF(ISERROR(MATCH(D56,simulador_1!$H$16:$H$17,0))=FALSE,"C",IF(ISERROR(MATCH(D56,simulador_1!$H$18:$H$19,0))=FALSE,"D","")) ->  | F56: =IF(E56="C",0,IF(E56 ="D",ROUND(1/((1+simulador_1!$Q$13)^A56),9) * 2,ROUND(1/((1+simulador_1!$Q$13)^A56),9))) -> 0.614072695 | G56: 41.75234265 | H56: =+COUNTIF($E$4:E56,"C") -> 0
A57: 54 | B57: 54 | C57: 2030-03-20 | D57: 3 | E57: =IF(ISERROR(MATCH(D57,simulador_1!$H$16:$H$17,0))=FALSE,"C",IF(ISERROR(MATCH(D57,simulador_1!$H$18:$H$19,0))=FALSE,"D","")) ->  | F57: =IF(E57="C",0,IF(E57 ="D",ROUND(1/((1+simulador_1!$Q$13)^A57),9) * 2,ROUND(1/((1+simulador_1!$Q$13)^A57),9))) -> 0.608448653 | G57: 42.3607913 | H57: =+COUNTIF($E$4:E57,"C") -> 0
A58: 55 | B58: 55 | C58: 2030-04-20 | D58: 4 | E58: =IF(ISERROR(MATCH(D58,simulador_1!$H$16:$H$17,0))=FALSE,"C",IF(ISERROR(MATCH(D58,simulador_1!$H$18:$H$19,0))=FALSE,"D","")) ->  | F58: =IF(E58="C",0,IF(E58 ="D",ROUND(1/((1+simulador_1!$Q$13)^A58),9) * 2,ROUND(1/((1+simulador_1!$Q$13)^A58),9))) -> 0.602876119 | G58: 42.96366742 | H58: =+COUNTIF($E$4:E58,"C") -> 0
A59: 56 | B59: 56 | C59: 2030-05-20 | D59: 5 | E59: =IF(ISERROR(MATCH(D59,simulador_1!$H$16:$H$17,0))=FALSE,"C",IF(ISERROR(MATCH(D59,simulador_1!$H$18:$H$19,0))=FALSE,"D","")) ->  | F59: =IF(E59="C",0,IF(E59 ="D",ROUND(1/((1+simulador_1!$Q$13)^A59),9) * 2,ROUND(1/((1+simulador_1!$Q$13)^A59),9))) -> 0.597354621 | G59: 43.56102204 | H59: =+COUNTIF($E$4:E59,"C") -> 0
A60: 57 | B60: 57 | C60: 2030-06-20 | D60: 6 | E60: =IF(ISERROR(MATCH(D60,simulador_1!$H$16:$H$17,0))=FALSE,"C",IF(ISERROR(MATCH(D60,simulador_1!$H$18:$H$19,0))=FALSE,"D","")) ->  | F60: =IF(E60="C",0,IF(E60 ="D",ROUND(1/((1+simulador_1!$Q$13)^A60),9) * 2,ROUND(1/((1+simulador_1!$Q$13)^A60),9))) -> 0.591883693 | G60: 44.15290573 | H60: =+COUNTIF($E$4:E60,"C") -> 0
A61: 58 | B61: 58 | C61: 2030-07-20 | D61: 7 | E61: =IF(ISERROR(MATCH(D61,simulador_1!$H$16:$H$17,0))=FALSE,"C",IF(ISERROR(MATCH(D61,simulador_1!$H$18:$H$19,0))=FALSE,"D","")) ->  | F61: =IF(E61="C",0,IF(E61 ="D",ROUND(1/((1+simulador_1!$Q$13)^A61),9) * 2,ROUND(1/((1+simulador_1!$Q$13)^A61),9))) -> 0.58646287 | G61: 44.7393686 | H61: =+COUNTIF($E$4:E61,"C") -> 0
A62: 59 | B62: 59 | C62: 2030-08-20 | D62: 8 | E62: =IF(ISERROR(MATCH(D62,simulador_1!$H$16:$H$17,0))=FALSE,"C",IF(ISERROR(MATCH(D62,simulador_1!$H$18:$H$19,0))=FALSE,"D","")) ->  | F62: =IF(E62="C",0,IF(E62 ="D",ROUND(1/((1+simulador_1!$Q$13)^A62),9) * 2,ROUND(1/((1+simulador_1!$Q$13)^A62),9))) -> 0.581091695 | G62: 45.3204603 | H62: =+COUNTIF($E$4:E62,"C") -> 0
A63: 60 | B63: 60 | C63: 2030-09-20 | D63: 9 | E63: =IF(ISERROR(MATCH(D63,simulador_1!$H$16:$H$17,0))=FALSE,"C",IF(ISERROR(MATCH(D63,simulador_1!$H$18:$H$19,0))=FALSE,"D","")) ->  | F63: =IF(E63="C",0,IF(E63 ="D",ROUND(1/((1+simulador_1!$Q$13)^A63),9) * 2,ROUND(1/((1+simulador_1!$Q$13)^A63),9))) -> 0.575769712 | G63: 45.89623001 | H63: =+COUNTIF($E$4:E63,"C") -> 0
A64: 61 | B64: 61 | C64: 2030-10-20 | D64: 10 | E64: =IF(ISERROR(MATCH(D64,simulador_1!$H$16:$H$17,0))=FALSE,"C",IF(ISERROR(MATCH(D64,simulador_1!$H$18:$H$19,0))=FALSE,"D","")) ->  | F64: =IF(E64="C",0,IF(E64 ="D",ROUND(1/((1+simulador_1!$Q$13)^A64),9) * 2,ROUND(1/((1+simulador_1!$Q$13)^A64),9))) -> 0.570496471 | G64: 46.46672648 | H64: =+COUNTIF($E$4:E64,"C") -> 0
A65: 62 | B65: 62 | C65: 2030-11-20 | D65: 11 | E65: =IF(ISERROR(MATCH(D65,simulador_1!$H$16:$H$17,0))=FALSE,"C",IF(ISERROR(MATCH(D65,simulador_1!$H$18:$H$19,0))=FALSE,"D","")) ->  | F65: =IF(E65="C",0,IF(E65 ="D",ROUND(1/((1+simulador_1!$Q$13)^A65),9) * 2,ROUND(1/((1+simulador_1!$Q$13)^A65),9))) -> 0.565271525 | G65: 47.031998 | H65: =+COUNTIF($E$4:E65,"C") -> 0
A66: 63 | B66: 63 | C66: 2030-12-20 | D66: 12 | E66: =IF(ISERROR(MATCH(D66,simulador_1!$H$16:$H$17,0))=FALSE,"C",IF(ISERROR(MATCH(D66,simulador_1!$H$18:$H$19,0))=FALSE,"D","")) ->  | F66: =IF(E66="C",0,IF(E66 ="D",ROUND(1/((1+simulador_1!$Q$13)^A66),9) * 2,ROUND(1/((1+simulador_1!$Q$13)^A66),9))) -> 0.560094433 | G66: 47.59209244 | H66: =+COUNTIF($E$4:E66,"C") -> 0
A67: 64 | B67: 64 | C67: 2031-01-20 | D67: 1 | E67: =IF(ISERROR(MATCH(D67,simulador_1!$H$16:$H$17,0))=FALSE,"C",IF(ISERROR(MATCH(D67,simulador_1!$H$18:$H$19,0))=FALSE,"D","")) ->  | F67: =IF(E67="C",0,IF(E67 ="D",ROUND(1/((1+simulador_1!$Q$13)^A67),9) * 2,ROUND(1/((1+simulador_1!$Q$13)^A67),9))) -> 0.554964756 | G67: 48.14705719 | H67: =+COUNTIF($E$4:E67,"C") -> 0
A68: 65 | B68: 65 | C68: 2031-02-20 | D68: =MONTH(C68) -> 2 | E68: =IF(ISERROR(MATCH(D68,simulador_1!$H$16:$H$17,0))=FALSE,"C",IF(ISERROR(MATCH(D68,simulador_1!$H$18:$H$19,0))=FALSE,"D","")) ->  | F68: =IF(E68="C",0,IF(E68 ="D",ROUND(1/((1+simulador_1!$Q$13)^A68),9) * 2,ROUND(1/((1+simulador_1!$Q$13)^A68),9))) -> 0.549882059 | G68: 48.69693925 | H68: =+COUNTIF($E$4:E68,"C") -> 0
A69: =A68+1 -> 66 | B69: =IF(E69<>"C",IF(ISERROR(1+B68)=TRUE,1,1+B68),IF(ISNUMBER(B68),B68,1)) -> 66 | C69: =DATE(YEAR(C68) + 1/12,MONTH(C68)+1,DAY(C68)) -> 2031-03-20 | D69: 3 | E69: =IF(ISERROR(MATCH(D69,simulador_1!$H$16:$H$17,0))=FALSE,"C",IF(ISERROR(MATCH(D69,simulador_1!$H$18:$H$19,0))=FALSE,"D","")) ->  | F69: =IF(E69="C",0,IF(E69 ="D",ROUND(1/((1+simulador_1!$Q$13)^A69),9) * 2,ROUND(1/((1+simulador_1!$Q$13)^A69),9))) -> 0.544845912 | G69: 49.24178516 | H69: =+COUNTIF($E$4:E69,"C") -> 0
A70: 67 | B70: 67 | C70: 2031-04-20 | D70: 4 | E70: =IF(ISERROR(MATCH(D70,simulador_1!$H$16:$H$17,0))=FALSE,"C",IF(ISERROR(MATCH(D70,simulador_1!$H$18:$H$19,0))=FALSE,"D","")) ->  | F70: =IF(E70="C",0,IF(E70 ="D",ROUND(1/((1+simulador_1!$Q$13)^A70),9) * 2,ROUND(1/((1+simulador_1!$Q$13)^A70),9))) -> 0.53985589 | G70: =G69+ROUND(F70,9) -> 49.78164105 | H70: =+COUNTIF($E$4:E70,"C") -> 0
A71: 68 | B71: 68 | C71: 2031-05-20 | D71: 5 | E71: =IF(ISERROR(MATCH(D71,simulador_1!$H$16:$H$17,0))=FALSE,"C",IF(ISERROR(MATCH(D71,simulador_1!$H$18:$H$19,0))=FALSE,"D","")) ->  | F71: =IF(E71="C",0,IF(E71 ="D",ROUND(1/((1+simulador_1!$Q$13)^A71),9) * 2,ROUND(1/((1+simulador_1!$Q$13)^A71),9))) -> 0.534911569 | G71: 50.31655262 | H71: =+COUNTIF($E$4:E71,"C") -> 0
A72: 69 | B72: 69 | C72: 2031-06-20 | D72: 6 | E72: =IF(ISERROR(MATCH(D72,simulador_1!$H$16:$H$17,0))=FALSE,"C",IF(ISERROR(MATCH(D72,simulador_1!$H$18:$H$19,0))=FALSE,"D","")) ->  | F72: =IF(E72="C",0,IF(E72 ="D",ROUND(1/((1+simulador_1!$Q$13)^A72),9) * 2,ROUND(1/((1+simulador_1!$Q$13)^A72),9))) -> 0.530012531 | G72: 50.84656515 | H72: =+COUNTIF($E$4:E72,"C") -> 0
A73: 70 | B73: =IF(E73<>"C",IF(ISERROR(1+B72)=TRUE,1,1+B72),IF(ISNUMBER(B72),B72,1)) -> 70 | C73: 2031-07-20 | D73: 7 | E73: =IF(ISERROR(MATCH(D73,simulador_1!$H$16:$H$17,0))=FALSE,"C",IF(ISERROR(MATCH(D73,simulador_1!$H$18:$H$19,0))=FALSE,"D","")) ->  | F73: =IF(E73="C",0,IF(E73 ="D",ROUND(1/((1+simulador_1!$Q$13)^A73),9) * 2,ROUND(1/((1+simulador_1!$Q$13)^A73),9))) -> 0.525158361 | G73: 51.37172352 | H73: =+COUNTIF($E$4:E73,"C") -> 0
A74: 71 | B74: 71 | C74: 2031-08-20 | D74: 8 | E74: =IF(ISERROR(MATCH(D74,simulador_1!$H$16:$H$17,0))=FALSE,"C",IF(ISERROR(MATCH(D74,simulador_1!$H$18:$H$19,0))=FALSE,"D","")) ->  | F74: =IF(E74="C",0,IF(E74 ="D",ROUND(1/((1+simulador_1!$Q$13)^A74),9) * 2,ROUND(1/((1+simulador_1!$Q$13)^A74),9))) -> 0.520348649 | G74: 51.89207216 | H74: =+COUNTIF($E$4:E74,"C") -> 0
A75: 72 | B75: 72 | C75: 2031-09-20 | D75: 9 | E75: =IF(ISERROR(MATCH(D75,simulador_1!$H$16:$H$17,0))=FALSE,"C",IF(ISERROR(MATCH(D75,simulador_1!$H$18:$H$19,0))=FALSE,"D","")) ->  | F75: =IF(E75="C",0,IF(E75 ="D",ROUND(1/((1+simulador_1!$Q$13)^A75),9) * 2,ROUND(1/((1+simulador_1!$Q$13)^A75),9))) -> 0.515582987 | G75: 52.40765515 | H75: =+COUNTIF($E$4:E75,"C") -> 0
A76: 73 | B76: 73 | C76: 2031-10-20 | D76: 10 | E76: =IF(ISERROR(MATCH(D76,simulador_1!$H$16:$H$17,0))=FALSE,"C",IF(ISERROR(MATCH(D76,simulador_1!$H$18:$H$19,0))=FALSE,"D","")) ->  | F76: =IF(E76="C",0,IF(E76 ="D",ROUND(1/((1+simulador_1!$Q$13)^A76),9) * 2,ROUND(1/((1+simulador_1!$Q$13)^A76),9))) -> 0.510860972 | G76: 52.91851612 | H76: =+COUNTIF($E$4:E76,"C") -> 0
A77: 74 | B77: 74 | C77: 2031-11-20 | D77: 11 | E77: =IF(ISERROR(MATCH(D77,simulador_1!$H$16:$H$17,0))=FALSE,"C",IF(ISERROR(MATCH(D77,simulador_1!$H$18:$H$19,0))=FALSE,"D","")) ->  | F77: =IF(E77="C",0,IF(E77 ="D",ROUND(1/((1+simulador_1!$Q$13)^A77),9) * 2,ROUND(1/((1+simulador_1!$Q$13)^A77),9))) -> 0.506182204 | G77: 53.42469833 | H77: =+COUNTIF($E$4:E77,"C") -> 0
A78: 75 | B78: 75 | C78: 2031-12-20 | D78: 12 | E78: =IF(ISERROR(MATCH(D78,simulador_1!$H$16:$H$17,0))=FALSE,"C",IF(ISERROR(MATCH(D78,simulador_1!$H$18:$H$19,0))=FALSE,"D","")) ->  | F78: =IF(E78="C",0,IF(E78 ="D",ROUND(1/((1+simulador_1!$Q$13)^A78),9) * 2,ROUND(1/((1+simulador_1!$Q$13)^A78),9))) -> 0.501546286 | G78: 53.92624461 | H78: =+COUNTIF($E$4:E78,"C") -> 0
A79: 76 | B79: 76 | C79: 2032-01-20 | D79: 1 | E79: =IF(ISERROR(MATCH(D79,simulador_1!$H$16:$H$17,0))=FALSE,"C",IF(ISERROR(MATCH(D79,simulador_1!$H$18:$H$19,0))=FALSE,"D","")) ->  | F79: =IF(E79="C",0,IF(E79 ="D",ROUND(1/((1+simulador_1!$Q$13)^A79),9) * 2,ROUND(1/((1+simulador_1!$Q$13)^A79),9))) -> 0.496952828 | G79: 54.42319744 | H79: =+COUNTIF($E$4:E79,"C") -> 0
A80: 77 | B80: 77 | C80: 2032-02-20 | D80: 2 | E80: =IF(ISERROR(MATCH(D80,simulador_1!$H$16:$H$17,0))=FALSE,"C",IF(ISERROR(MATCH(D80,simulador_1!$H$18:$H$19,0))=FALSE,"D","")) ->  | F80: =IF(E80="C",0,IF(E80 ="D",ROUND(1/((1+simulador_1!$Q$13)^A80),9) * 2,ROUND(1/((1+simulador_1!$Q$13)^A80),9))) -> 0.492401439 | G80: 54.91559888 | H80: =+COUNTIF($E$4:E80,"C") -> 0
A81: 78 | B81: 78 | C81: 2032-03-20 | D81: 3 | E81: =IF(ISERROR(MATCH(D81,simulador_1!$H$16:$H$17,0))=FALSE,"C",IF(ISERROR(MATCH(D81,simulador_1!$H$18:$H$19,0))=FALSE,"D","")) ->  | F81: =IF(E81="C",0,IF(E81 ="D",ROUND(1/((1+simulador_1!$Q$13)^A81),9) * 2,ROUND(1/((1+simulador_1!$Q$13)^A81),9))) -> 0.487891734 | G81: 55.40349061 | H81: =+COUNTIF($E$4:E81,"C") -> 0
A82: 79 | B82: 79 | C82: 2032-04-20 | D82: 4 | E82: =IF(ISERROR(MATCH(D82,simulador_1!$H$16:$H$17,0))=FALSE,"C",IF(ISERROR(MATCH(D82,simulador_1!$H$18:$H$19,0))=FALSE,"D","")) ->  | F82: =IF(E82="C",0,IF(E82 ="D",ROUND(1/((1+simulador_1!$Q$13)^A82),9) * 2,ROUND(1/((1+simulador_1!$Q$13)^A82),9))) -> 0.483423331 | G82: 55.88691395 | H82: =+COUNTIF($E$4:E82,"C") -> 0
A83: 80 | B83: 80 | C83: 2032-05-20 | D83: 5 | E83: =IF(ISERROR(MATCH(D83,simulador_1!$H$16:$H$17,0))=FALSE,"C",IF(ISERROR(MATCH(D83,simulador_1!$H$18:$H$19,0))=FALSE,"D","")) ->  | F83: =IF(E83="C",0,IF(E83 ="D",ROUND(1/((1+simulador_1!$Q$13)^A83),9) * 2,ROUND(1/((1+simulador_1!$Q$13)^A83),9))) -> 0.478995853 | G83: 56.3659098 | H83: =+COUNTIF($E$4:E83,"C") -> 0
A84: 81 | B84: 81 | C84: 2032-06-20 | D84: 6 | E84: =IF(ISERROR(MATCH(D84,simulador_1!$H$16:$H$17,0))=FALSE,"C",IF(ISERROR(MATCH(D84,simulador_1!$H$18:$H$19,0))=FALSE,"D","")) ->  | F84: =IF(E84="C",0,IF(E84 ="D",ROUND(1/((1+simulador_1!$Q$13)^A84),9) * 2,ROUND(1/((1+simulador_1!$Q$13)^A84),9))) -> 0.474608925 | G84: 56.84051872 | H84: =+COUNTIF($E$4:E84,"C") -> 0
A85: 82 | B85: 82 | C85: 2032-07-20 | D85: 7 | E85: =IF(ISERROR(MATCH(D85,simulador_1!$H$16:$H$17,0))=FALSE,"C",IF(ISERROR(MATCH(D85,simulador_1!$H$18:$H$19,0))=FALSE,"D","")) ->  | F85: =IF(E85="C",0,IF(E85 ="D",ROUND(1/((1+simulador_1!$Q$13)^A85),9) * 2,ROUND(1/((1+simulador_1!$Q$13)^A85),9))) -> 0.470262174 | G85: 57.3107809 | H85: =+COUNTIF($E$4:E85,"C") -> 0
A86: 83 | B86: 83 | C86: 2032-08-20 | D86: 8 | E86: =IF(ISERROR(MATCH(D86,simulador_1!$H$16:$H$17,0))=FALSE,"C",IF(ISERROR(MATCH(D86,simulador_1!$H$18:$H$19,0))=FALSE,"D","")) ->  | F86: =IF(E86="C",0,IF(E86 ="D",ROUND(1/((1+simulador_1!$Q$13)^A86),9) * 2,ROUND(1/((1+simulador_1!$Q$13)^A86),9))) -> 0.465955234 | G86: 57.77673613 | H86: =+COUNTIF($E$4:E86,"C") -> 0
A87: 84 | B87: 84 | C87: 2032-09-20 | D87: 9 | E87: =IF(ISERROR(MATCH(D87,simulador_1!$H$16:$H$17,0))=FALSE,"C",IF(ISERROR(MATCH(D87,simulador_1!$H$18:$H$19,0))=FALSE,"D","")) ->  | F87: =IF(E87="C",0,IF(E87 ="D",ROUND(1/((1+simulador_1!$Q$13)^A87),9) * 2,ROUND(1/((1+simulador_1!$Q$13)^A87),9))) -> 0.461687739 | G87: 58.23842387 | H87: =+COUNTIF($E$4:E87,"C") -> 0
A88: 85 | B88: 85 | C88: 2032-10-20 | D88: 10 | E88: =IF(ISERROR(MATCH(D88,simulador_1!$H$16:$H$17,0))=FALSE,"C",IF(ISERROR(MATCH(D88,simulador_1!$H$18:$H$19,0))=FALSE,"D","")) ->  | F88: =IF(E88="C",0,IF(E88 ="D",ROUND(1/((1+simulador_1!$Q$13)^A88),9) * 2,ROUND(1/((1+simulador_1!$Q$13)^A88),9))) -> 0.457459329 | G88: 58.6958832 | H88: =+COUNTIF($E$4:E88,"C") -> 0
A89: 86 | B89: 86 | C89: 2032-11-20 | D89: 11 | E89: =IF(ISERROR(MATCH(D89,simulador_1!$H$16:$H$17,0))=FALSE,"C",IF(ISERROR(MATCH(D89,simulador_1!$H$18:$H$19,0))=FALSE,"D","")) ->  | F89: =IF(E89="C",0,IF(E89 ="D",ROUND(1/((1+simulador_1!$Q$13)^A89),9) * 2,ROUND(1/((1+simulador_1!$Q$13)^A89),9))) -> 0.453269645 | G89: 59.14915284 | H89: =+COUNTIF($E$4:E89,"C") -> 0
A90: 87 | B90: 87 | C90: 2032-12-20 | D90: 12 | E90: =IF(ISERROR(MATCH(D90,simulador_1!$H$16:$H$17,0))=FALSE,"C",IF(ISERROR(MATCH(D90,simulador_1!$H$18:$H$19,0))=FALSE,"D","")) ->  | F90: =IF(E90="C",0,IF(E90 ="D",ROUND(1/((1+simulador_1!$Q$13)^A90),9) * 2,ROUND(1/((1+simulador_1!$Q$13)^A90),9))) -> 0.449118332 | G90: 59.59827118 | H90: =+COUNTIF($E$4:E90,"C") -> 0
A91: 88 | B91: 88 | C91: 2033-01-20 | D91: 1 | E91: =IF(ISERROR(MATCH(D91,simulador_1!$H$16:$H$17,0))=FALSE,"C",IF(ISERROR(MATCH(D91,simulador_1!$H$18:$H$19,0))=FALSE,"D","")) ->  | F91: =IF(E91="C",0,IF(E91 ="D",ROUND(1/((1+simulador_1!$Q$13)^A91),9) * 2,ROUND(1/((1+simulador_1!$Q$13)^A91),9))) -> 0.445005039 | G91: 60.04327622 | H91: =+COUNTIF($E$4:E91,"C") -> 0
A92: 89 | B92: 89 | C92: 2033-02-20 | D92: 2 | E92: =IF(ISERROR(MATCH(D92,simulador_1!$H$16:$H$17,0))=FALSE,"C",IF(ISERROR(MATCH(D92,simulador_1!$H$18:$H$19,0))=FALSE,"D","")) ->  | F92: =IF(E92="C",0,IF(E92 ="D",ROUND(1/((1+simulador_1!$Q$13)^A92),9) * 2,ROUND(1/((1+simulador_1!$Q$13)^A92),9))) -> 0.440929419 | G92: 60.48420563 | H92: =+COUNTIF($E$4:E92,"C") -> 0
A93: 90 | B93: 90 | C93: 2033-03-20 | D93: 3 | E93: =IF(ISERROR(MATCH(D93,simulador_1!$H$16:$H$17,0))=FALSE,"C",IF(ISERROR(MATCH(D93,simulador_1!$H$18:$H$19,0))=FALSE,"D","")) ->  | F93: =IF(E93="C",0,IF(E93 ="D",ROUND(1/((1+simulador_1!$Q$13)^A93),9) * 2,ROUND(1/((1+simulador_1!$Q$13)^A93),9))) -> 0.436891125 | G93: 60.92109676 | H93: =+COUNTIF($E$4:E93,"C") -> 0
A94: 91 | B94: 91 | C94: 2033-04-20 | D94: 4 | E94: =IF(ISERROR(MATCH(D94,simulador_1!$H$16:$H$17,0))=FALSE,"C",IF(ISERROR(MATCH(D94,simulador_1!$H$18:$H$19,0))=FALSE,"D","")) ->  | F94: =IF(E94="C",0,IF(E94 ="D",ROUND(1/((1+simulador_1!$Q$13)^A94),9) * 2,ROUND(1/((1+simulador_1!$Q$13)^A94),9))) -> 0.432889817 | G94: 61.35398658 | H94: =+COUNTIF($E$4:E94,"C") -> 0
A95: 92 | B95: 92 | C95: 2033-05-20 | D95: 5 | E95: =IF(ISERROR(MATCH(D95,simulador_1!$H$16:$H$17,0))=FALSE,"C",IF(ISERROR(MATCH(D95,simulador_1!$H$18:$H$19,0))=FALSE,"D","")) ->  | F95: =IF(E95="C",0,IF(E95 ="D",ROUND(1/((1+simulador_1!$Q$13)^A95),9) * 2,ROUND(1/((1+simulador_1!$Q$13)^A95),9))) -> 0.428925155 | G95: 61.78291173 | H95: =+COUNTIF($E$4:E95,"C") -> 0
A96: 93 | B96: 93 | C96: 2033-06-20 | D96: 6 | E96: =IF(ISERROR(MATCH(D96,simulador_1!$H$16:$H$17,0))=FALSE,"C",IF(ISERROR(MATCH(D96,simulador_1!$H$18:$H$19,0))=FALSE,"D","")) ->  | F96: =IF(E96="C",0,IF(E96 ="D",ROUND(1/((1+simulador_1!$Q$13)^A96),9) * 2,ROUND(1/((1+simulador_1!$Q$13)^A96),9))) -> 0.424996804 | G96: 62.20790854 | H96: =+COUNTIF($E$4:E96,"C") -> 0
A97: 94 | B97: 94 | C97: 2033-07-20 | D97: 7 | E97: =IF(ISERROR(MATCH(D97,simulador_1!$H$16:$H$17,0))=FALSE,"C",IF(ISERROR(MATCH(D97,simulador_1!$H$18:$H$19,0))=FALSE,"D","")) ->  | F97: =IF(E97="C",0,IF(E97 ="D",ROUND(1/((1+simulador_1!$Q$13)^A97),9) * 2,ROUND(1/((1+simulador_1!$Q$13)^A97),9))) -> 0.42110443 | G97: 62.62901297 | H97: =+COUNTIF($E$4:E97,"C") -> 0
A98: 95 | B98: 95 | C98: 2033-08-20 | D98: 8 | E98: =IF(ISERROR(MATCH(D98,simulador_1!$H$16:$H$17,0))=FALSE,"C",IF(ISERROR(MATCH(D98,simulador_1!$H$18:$H$19,0))=FALSE,"D","")) ->  | F98: =IF(E98="C",0,IF(E98 ="D",ROUND(1/((1+simulador_1!$Q$13)^A98),9) * 2,ROUND(1/((1+simulador_1!$Q$13)^A98),9))) -> 0.417247706 | G98: 63.04626067 | H98: =+COUNTIF($E$4:E98,"C") -> 0
A99: 96 | B99: 96 | C99: 2033-09-20 | D99: 9 | E99: =IF(ISERROR(MATCH(D99,simulador_1!$H$16:$H$17,0))=FALSE,"C",IF(ISERROR(MATCH(D99,simulador_1!$H$18:$H$19,0))=FALSE,"D","")) ->  | F99: =IF(E99="C",0,IF(E99 ="D",ROUND(1/((1+simulador_1!$Q$13)^A99),9) * 2,ROUND(1/((1+simulador_1!$Q$13)^A99),9))) -> 0.413426304 | G99: 63.45968698 | H99: =+COUNTIF($E$4:E99,"C") -> 0

Sheet Simulador Original (hidden)
C2: SIMULADOR DE CUOTAS - CRÉDITO CONVENIOS
C5: Importe Solicitado | G5: =+RESUMEN!$C$2 -> 33050 | K5: Fecha Desembolso | P5: =+RESUMEN!$C$6 -> 2022-04-28
C6: Saldo de Capital | G6: =G5 -> 33050 | K6: Fecha Final de Gracia | P6: =DATE(YEAR(P5+G14),MONTH(P5 + G14),DAY(P5 +G14)) -> 2022-05-15
C7: Saldo de Interes | G7: 0 | K7: Fecha de la 1° cuota | P7: =DATE(YEAR(EDATE(P6,1)),MONTH(EDATE(P6,1)),DAY(EDATE(P6,1))) -> 2022-06-15
C8: Tasa Anual (TEA) | G8: =+RESUMEN!$C$3 -> 13.5 | H8: Tasa de Gracia | I8: =G8 -> 13.5 | K8: Fecha final de vencimiento | P8: =IF(OR($G$16>0,$G$17>0),VLOOKUP($G$12,$A$32:$C$120,3,0),DATE(YEAR(EDATE(P6,G12)),MONTH(EDATE(P6,G12)),DAY(EDATE(P6,G12)))) -> 2027-05-15
C9: Tasa de Seguro de Desgravámen | G9: =+RESUMEN!$C$4 -> 0.00015 | K9: Base | P9: 360
K10: Frecuencia pago en días | P10: 30
C11: Comisiones + Pago Casillero | G11: =+RESUMEN!$C$7 -> 3.03 | K11: Tasa Equivalente | P11: =ROUND((((G8/100+1)^(1/(P9/P10))-1)*P9/P10)*100,6) -> 12.730317 | Q11: tea conv. A tem luego nominal anual
C12: Plazo y Nro. Cuotas (Aplicar Si hay Mes No Pago) | G12: =+G13-VLOOKUP($G$13,'Calculos Original'!$A$4:$H$99,8,0) -> 50 | H12: =+G12 -> 50 | K12: Días entre cuotas | P12: =(P8-P6)/G12 -> 36.52 | Q12: dias promedio entre cuotas
C13: Plazo y Nro. Cuotas | G13: =+RESUMEN!$C$5 -> 60 | K13: Factor Aplicado | P13: =($P$11/100)/($P$9/$P$12) -> 0.01291419936 | Q13: tem convertida de manera nominal a los dias entre cuotas
C14: Días de Gracia | G14: =+RESUMEN!$C$8 -> 17 | K14: Factor Aplicado para la cuota | P14: =1/((1-((1+$P$13)^(-1*$G$12)))/$P$13) -> 0.02727172818 | Q14: Factor de cuota (ok)
C15: (+/- 30 días antes de la fecha 1° cuota) | K15: Interes de Gracia | P15: =IF(G14>0,ROUND(G6*(((1+G8/100)^(ABS(G14)/P9))-1),4),ROUND(G6*(((1+G8/100)^(ABS(G14)/P9))-1),4) * -1) -> 198.227 | Q15: Ok
C16: Mes de No Pago 1 | G16: =+RESUMEN!$C$9 -> 1 | K16: Saldo Interes +/- Interes Gracia | P16: =IF(G7 + P15>0,G7+ P15,0) -> 198.227
C17: Mes de No Pago 2 | G17: =+RESUMEN!$C$10 -> 6
C18: Mes Cuota Doble 1 | G18: 0 | K18: Comisión de Gracia Desgravamen (Primera Cuota) | P18: =IF(G14>0,ROUNDDOWN(G5 * G9/30*G14,2),0) -> 2.8
C19: Mes Cuota Doble 2 | G19: 0 | S19: 994.12
I20: =REDONDEAR(SI(O(F16+ F17> 0,F18 + F19>0),REDONDEAR.MAS(O16/BUSCARV(F13,Calculos!$A$3:$G$99,7,FALSO),2),O16*$O$14),2) | S20: 976.59
R21: =VLOOKUP(H12,$E$31:$R$103,14,FALSE) -> -6394.42 | S21: =S19-S20 -> 17.53
I22: Con Factor | J22: Con Minicronograma | L22: Suavización | N22: Ultimo saldo de Principal | P22: =VLOOKUP(H12,$E$31:$R$103,14,FALSE) - VLOOKUP(H12,$E$31:$T$103,16,FALSE) -> -6394.42 | R22: =-VLOOKUP(H12,$E$31:$T$103,16,FALSE) -> 0
F23: Valor de cuota por dias de gracia | I23: =$P$16/($H$12*(1/((1+0)^($P$10/$P$9)))) -> 3.96454 | J23: =P16/SUM(W32:INDIRECT(CONCATENATE("V",32+H12-1))) -> 0.004208236997 | N23: Numero de Dias | P23: =P8-P6 -> 1826
F24: Valor de cuota por capital | I24: =ROUND(IF(OR(G16 + G17 > 0,G18 + G19>0), ROUNDUP(G6/VLOOKUP(G12,'Calculos Original'!$A$3:$G$99,7,FALSE),2),G6*$P$14),2) -> 1100 | J24: Promedio | K24: Exceso Desgravamen | N24: Valor de Cuota Nivelada | P24: =ROUND(+P22/ROUND(1*(((1+G8/100)^(P23/P9))-1),4),2) -> -7097.81 | R24: =+(((1+G8/100)^(P23/P9))-1) -> 0.9008648107 | S24: =+P22/R24 -> -7098.090551
F25: Seguro de Desgravamen (FPF) | I25: =ROUNDDOWN($G$5*$G$9,2) -> 4.95 | J25: =((I25*G12) + P18)/G12 -> 5.006 | K25: =J25-I25 -> 0.056 | N25: Factor Ajuste | P25: =P24*P14 -> -193.569545 | R25: Se copia el valor de la celda P26 solo en la primera corrida, siempre que sea mayor a cero
F26: Comisiones + Pago de Casillero | I26: =$G$11 -> 3.03 | N26: Exceso de Int + Gracia | P26: =SUM(S32:S46) -> 0 | Q26: =ROUND(IF(G16+ G17> 0,ROUNDUP($P$26/VLOOKUP(G12,'Calculos Original'!$A$3:$G$99,7,FALSE),2),$P$26*$P$14),2) -> 0 | R26: 0
N27: Factor Ajuste 2 | P27: =+P22/G12 -> -127.8884
F28: Cuota | I28: =I23+I24+I25+I26 -> 1111.94454 | J28: =I23+I24+J25+I26 -> 1112.00054 | N28: Digite Factor de Ajuste Anterior mas El Actual | P28: -101.9255357 | R28: =+R55 -> 17294.13 | S28: =-1727.55373262017+4756.46892161516+-13096.0030749489+6623.75341315595+6623.75341315595+-13664.6232949772+6623.75341315595+6623.75341315595+-12099.0469751545+6623.75341315595+6623.75341315595+-16409.571252974+6623.75341315595+6623.75341315595+-4541.40525297992+6623.75341315595-12357.0929427365+6623.75341315595+6623.75341315595+-15699.0688667145+6623.75341315595+6623.75341315595+-6497.61880707829
K29: =+(IF(ISERROR(MATCH(MONTH(C37),$G$18:$G$19,0))=FALSE,$I$24 + $P$28,0) + $I$24+$P$28+$R$26)-K37 -> 678.0344643 | S29: -460.279128302192
C30: =SI(O(MES(FECHA.MES($O$6,D32))=$F$16,MES(FECHA.MES($O$6,D32))=$F$17),SI(ABS($F$17-$F$16)=1,FECHA.MES($O$6,D32+2),FECHA.MES($O$6,D32+1)),FECHA.MES($O$6,D32)) | Q30: 2509.257971 | R30: =+Q32-Q30 -> -1499.238967 | V30: Minicronograma de Gracia
C31: Fecha Vcto. | D31: Nro. Cuota (De acuerdo a Plazo) | E31: Nro. Cuota | F31: Periodo Base | G31: Tasa | H31: Nro. Dias | I31: Principal | J31: Capital | K31: Interes | L31: Interes de Gracia | M31: Interes Total | N31: Valor Cuota | O31: Comision Envio Informacion | P31: Seguro de Desgravamen | Q31: Cuota | R31: Saldo Principal | S31: Exceso | T31: Importe de Gracia Desgravamen | V31: Dias Transcurridos Acumulados | W31: Factor Simple Actualizacion | X31: Principal | Y31: Capital | Z31: Interes | AA31: Cuota Gracia | AB31: Saldo Deuda
A32: 1 | B32: 1 | C32: =DATE(YEAR(EDATE($P$6,D32)),MONTH(EDATE($P$6,D32)),DAY(EDATE($P$6,D32))) -> 2022-07-15 | D32: =IF(OR(MONTH(P7)=G16, MONTH(P7)=G17),IF(ABS(G17-G16)=1,3,2),1) -> 2 | E32: =1 -> 1 | F32: =$P$9 -> 360 | G32: =$G$8 -> 13.5 | H32: =C32-P6 -> 61 | I32: =G6 -> 33050 | J32: =IF((IF(ISERROR(MATCH(MONTH(C32),$G$18:$G$19,0))=FALSE,$I$24 + $P$28,0) + $I$24+$P$28+$R$26)-K32-T32<0,0.01,IF(ISERROR(MATCH(MONTH(C32),$G$18:$G$19,0))=FALSE,$I$24 + $P$28,0)+ ($I$24+$P$28+$R$26)-K32- T32) -> 273.5044643 | K32: =IF($I$24+$P$28 + $R$26<ROUND(ROUND(I32*(((1+(G32/100))^(H32/F32))-1),4),2),$I$24+$P$28 + $R$26-0.01,IF(ROUND(ROUND(I32*(((1+(G32/100))^(H32/F32))-1),4),2)+ $R$26>$I$24,$I$24+ $R$26+-0.01,ROUND(ROUND(I32*(((1+(G32/100))^(H32/F32))-1),4),2)+$R$26)) -> 716.82 | L32: =IF(ISERROR(MATCH(MONTH(C32),$G$18:$G$19,0))=FALSE,$I$23,0) + $I$23 -> 3.96454 | M32: =K32+L32 -> 720.78454 | N32: =J32+K32 + L32 -> 994.2890043 | O32: =$I$26 -> 3.03 | P32: =$I$25 + T32 -> 12.7 | Q32: =N32+O32+P32 -> 1010.019004 | R32: =ROUND(I32-J32,2) -> 32776.5 | S32: =IF(ROUND(ROUND(I32*(((1+(G32/100))^(H32/F32))-1),4),2) - $I$24<0,0,ROUND(ROUND(I32*(((1+(G32/100))^(H32/F32))-1),4),2) - $I$24) -> 0 | T32: =(D32-E32)*ROUNDDOWN($G$5*$G$9/30*30,2) + ROUNDDOWN($G$5*$G$9/30*G14,2) -> 7.75 | U32: 2969.531304 | V32: =H32 -> 61 | W32: =1/((1+($I$8/100))^(V32/$P$9))*1 -> 0.9787713688 | X32: =P16 -> 198.227 | Y32: =AA32-Z32 -> -4.295149115 | Z32: =(((1+($I$8/100))^((H32)/$P$9))-1)*X32 -> 4.299357352 | AA32: =$J$23 -> 0.004208236997 | AB32: =X32-Y32 -> 202.5221491
A33: =+IF(A32>=$G$12,"",A32+1) -> 2 | B33: =IF(A33="","",IF(A33<=$H$21,0,1)) -> 1 | C33: =DATE(YEAR(EDATE($P$6,D33)),MONTH(EDATE($P$6,D33)),DAY(EDATE($P$6,D33))) -> 2022-08-15 | D33: =IF(OR(MONTH(DATE(YEAR(C32) + 1/12,MONTH(C32)+1,DAY(C32)))=$G$16,MONTH(DATE(YEAR(C32) + 1/12,MONTH(C32)+1,DAY(C32)))=$G$17),IF(ABS($G$17-$G$16)=1,D32+1,D32 + 2),D32 + 1) -> 3 | E33: =E32+1 -> 2 | F33: 360 | G33: =$G$8 -> 13.5 | H33: =C33-C32 -> 31 | I33: =+R32 -> 32776.5 | J33: =IF((IF(ISERROR(MATCH(MONTH(C33),$G$18:$G$19,0))=FALSE,$I$24 + $P$28,0) + $I$24+$P$28+$R$26)-K33-T33<0,0.01,IF(ISERROR(MATCH(MONTH(C33),$G$18:$G$19,0))=FALSE,$I$24 + $P$28,0)+ ($I$24+$P$28+$R$26)-K33- T33) -> 638.7044643 | K33: =IF($I$24+$P$28 + $R$26<ROUND(ROUND(I33*(((1+(G33/100))^(H33/F33))-1),4),2),$I$24+$P$28 + $R$26-0.01,IF(ROUND(ROUND(I33*(((1+(G33/100))^(H33/F33))-1),4),2)+ $R$26>$I$24,$I$24+ $R$26+-0.01,ROUND(ROUND(I33*(((1+(G33/100))^(H33/F33))-1),4),2)+$R$26)) -> 359.37 | L33: 3.96454 | M33: =K33+L33 -> 363.33454 | N33: 1002.039004 | O33: 3.03 | P33: =$I$25 + T33 -> 4.95 | Q33: 1010.019004 | R33: 32137.8 | S33: 0 | T33: =IF(D33-D32>1,ROUNDDOWN($G$5*$G$9/30*30,2),0) -> 0 | U33: 2969.531304 | V33: =V32+H33 -> 92 | W33: =1/((1+($I$8/100))^(V33/$P$9))*1 -> 0.9681563584 | X33: =AB32 -> 202.5221491 | Y33: =AA33-Z33 -> -2.21627474 | Z33: =(((1+($I$8/100))^((H33)/$P$9))-1)*X33 -> 2.220482977 | AA33: =$J$23 -> 0.004208236997 | AB33: =X33-Y33 -> 204.7384239
A34: 3 | B34: =IF(A34="","",IF(A34<=$H$21,0,1)) -> 1 | C34: =DATE(YEAR(EDATE($P$6,D34)),MONTH(EDATE($P$6,D34)),DAY(EDATE($P$6,D34))) -> 2022-09-15 | D34: =IF(OR(MONTH(DATE(YEAR(C33) + 1/12,MONTH(C33)+1,DAY(C33)))=$G$16,MONTH(DATE(YEAR(C33) + 1/12,MONTH(C33)+1,DAY(C33)))=$G$17),IF(ABS($G$17-$G$16)=1,D33+1,D33 + 2),D33 + 1) -> 4 | E34: =E33+1 -> 3 | F34: 360 | G34: 13.5 | H34: =C34-C33 -> 31 | I34: 32137.8 | J34: 645.7144643 | K34: 352.36 | L34: 3.96454 | M34: 356.32454 | N34: 1002.039004 | O34: 3.03 | P34: =$I$25 + T34 -> 4.95 | Q34: 1010.019004 | R34: 31492.09 | S34: 0 | T34: =IF(D34-D33>1,ROUNDDOWN($G$5*$G$9/30*30,2),0) -> 0 | U34: 2969.531304 | V34: =V33+H34 -> 123 | W34: 0.9576564704 | X34: =AB33 -> 204.7384239 | Y34: =AA34-Z34 -> -2.240574306 | Z34: =(((1+($I$8/100))^((H34)/$P$9))-1)*X34 -> 2.244782543 | AA34: 0.004208236997 | AB34: =X34-Y34 -> 206.9789982
A35: 4 | B35: =IF(A35="","",IF(A35<=$H$21,0,1)) -> 1 | C35: =DATE(YEAR(EDATE($P$6,D35)),MONTH(EDATE($P$6,D35)),DAY(EDATE($P$6,D35))) -> 2022-10-15 | D35: =IF(OR(MONTH(DATE(YEAR(C34) + 1/12,MONTH(C34)+1,DAY(C34)))=$G$16,MONTH(DATE(YEAR(C34) + 1/12,MONTH(C34)+1,DAY(C34)))=$G$17),IF(ABS($G$17-$G$16)=1,D34+1,D34 + 2),D34 + 1) -> 5 | E35: 4 | F35: 360 | G35: 13.5 | H35: 30 | I35: 31492.09 | J35: 663.9844643 | K35: 334.09 | L35: 3.96454 | M35: 338.05454 | N35: 1002.039004 | O35: 3.03 | P35: 4.95 | Q35: 1010.019004 | R35: 30828.11 | S35: 0 | T35: 0 | U35: 2969.531304 | V35: 153 | W35: 0.9476037241 | X35: 206.9789982 | Y35: -2.191548593 | Z35: 2.19575683 | AA35: 0.004208236997 | AB35: 209.1705468
A36: 5 | B36: 1 | C36: 2022-11-15 | D36: 6 | E36: 5 | F36: 360 | G36: 13.5 | H36: 31 | I36: 30828.11 | J36: 660.0744643 | K36: 338 | L36: 3.96454 | M36: 341.96454 | N36: 1002.039004 | O36: 3.03 | P36: 4.95 | Q36: 1010.019004 | R36: 30168.04 | S36: 0 | T36: 0 | U36: 2969.531304 | V36: 184 | W36: 0.9373267343 | X36: 209.1705468 | Y36: -2.289168761 | Z36: 2.293376998 | AA36: 0.004208236997 | AB36: 211.4597155
A37: 6 | B37: 1 | C37: 2022-12-15 | D37: 7 | E37: 6 | F37: 360 | G37: 13.5 | H37: 30 | I37: 30168.04 | J37: 678.0344643 | K37: 320.04 | L37: 3.96454 | M37: 324.00454 | N37: 1002.039004 | O37: 3.03 | P37: 4.95 | Q37: 1010.019004 | R37: 29490.01 | S37: 0 | T37: 0 | U37: 2969.531304 | V37: 214 | W37: 0.9274873941 | X37: 211.4597155 | Y37: -2.239082719 | Z37: 2.243290956 | AA37: 0.004208236997 | AB37: 213.6987982
A38: 7 | B38: 1 | C38: 2023-02-15 | D38: 9 | E38: 7 | F38: 360 | G38: 13.5 | H38: 62 | I38: 29490.01 | J38: 342.9144643 | K38: 650.21 | L38: 3.96454 | M38: 654.17454 | N38: 997.0890043 | O38: 3.03 | P38: 9.9 | Q38: 1010.019004 | R38: 29147.1 | S38: 0 | T38: 4.95 | U38: 2969.531304 | V38: 276 | W38: 0.9074788378 | X38: 213.6987982 | Y38: -4.707531884 | Z38: 4.711740121 | AA38: 0.004208236997 | AB38: 218.4063301
A39: 8 | B39: 1 | C39: 2023-03-15 | D39: 10 | E39: 8 | F39: 360 | G39: 13.5 | H39: 28 | I39: 29147.1 | J39: 709.5844643 | K39: 288.49 | L39: 3.96454 | M39: 292.45454 | N39: 1002.039004 | O39: 3.03 | P39: 4.95 | Q39: 1010.019004 | R39: 28437.52 | S39: 0 | T39: 0 | U39: 2969.531304 | V39: 304 | W39: 0.8985847633 | X39: 218.4063301 | Y39: -2.157549061 | Z39: 2.161757298 | AA39: 0.004208236997 | AB39: 220.5638792
A40: 9 | B40: 1 | C40: 2023-04-15 | D40: 11 | E40: 9 | F40: 360 | G40: 13.5 | H40: 31 | I40: 28437.52 | J40: 686.2844643 | K40: 311.79 | L40: 3.96454 | M40: 315.75454 | N40: 1002.039004 | O40: 3.03 | P40: 4.95 | Q40: 1010.019004 | R40: 27751.24 | S40: 0 | T40: 0 | U40: 2969.531304 | V40: 335 | W40: 0.8888393959 | X40: 220.5638792 | Y40: -2.414086953 | Z40: 2.41829519 | AA40: 0.004208236997 | AB40: 222.9779661
A41: 10 | B41: 1 | C41: 2023-05-15 | D41: 12 | E41: 10 | F41: 360 | G41: 13.5 | H41: 30 | I41: 27751.24 | J41: 703.6744643 | K41: 294.4 | L41: 3.96454 | M41: 298.36454 | N41: 1002.039004 | O41: 3.03 | P41: 4.95 | Q41: 1010.019004 | R41: 27047.57 | S41: 0 | T41: 0 | U41: 2969.531304 | V41: 365 | W41: 0.8795090387 | X41: 222.9779661 | Y41: -2.361275201 | Z41: 2.365483438 | AA41: 0.004208236997 | AB41: 225.3392413
A42: 11 | B42: 1 | C42: 2023-07-15 | D42: 14 | E42: 11 | F42: 360 | G42: 13.5 | H42: 61 | I42: 27047.57 | J42: 406.4844643 | K42: 586.64 | L42: 3.96454 | M42: 590.60454 | N42: 997.0890043 | O42: 3.03 | P42: 9.9 | Q42: 1010.019004 | R42: 26641.09 | S42: 0 | T42: 4.95 | U42: 2969.531304 | V42: 426 | W42: 0.8608382657 | X42: 225.3392413 | Y42: -4.883188151 | Z42: 4.887396388 | AA42: 0.004208236997 | AB42: 230.2224295
A43: 12 | B43: 1 | C43: 2023-08-15 | D43: 15 | E43: 12 | F43: 360 | G43: 13.5 | H43: 31 | I43: 26641.09 | J43: 705.9744643 | K43: 292.1 | L43: 3.96454 | M43: 296.06454 | N43: 1002.039004 | O43: 3.03 | P43: 4.95 | Q43: 1010.019004 | R43: 25935.12 | S43: 0 | T43: 0 | U43: 2969.531304 | V43: 457 | W43: 0.8515022681 | X43: 230.2224295 | Y43: -2.519984735 | Z43: 2.524192972 | AA43: 0.004208236997 | AB43: 232.7424142
A44: 13 | B44: 1 | C44: 2023-09-15 | D44: 16 | E44: 13 | F44: 360 | G44: 13.5 | H44: 31 | I44: 25935.12 | J44: 713.7144643 | K44: 284.36 | L44: 3.96454 | M44: 288.32454 | N44: 1002.039004 | O44: 3.03 | P44: 4.95 | Q44: 1010.019004 | R44: 25221.41 | S44: 0 | T44: 0 | U44: 2969.531304 | V44: 488 | W44: 0.8422675217 | X44: 232.7424142 | Y44: -2.547614223 | Z44: 2.55182246 | AA44: 0.004208236997 | AB44: 235.2900284
A45: 14 | B45: 1 | C45: 2023-10-15 | D45: 17 | E45: 14 | F45: 360 | G45: 13.5 | H45: 30 | I45: 25221.41 | J45: 730.5144643 | K45: 267.56 | L45: 3.96454 | M45: 271.52454 | N45: 1002.039004 | O45: 3.03 | P45: 4.95 | Q45: 1010.019004 | R45: 24490.9 | S45: 0 | T45: 0 | U45: 2969.531304 | V45: 518 | W45: 0.8334260405 | X45: 235.2900284 | Y45: -2.491888911 | Z45: 2.496097148 | AA45: 0.004208236997 | AB45: 237.7819174
A46: 15 | B46: 1 | C46: 2023-11-15 | D46: 18 | E46: 15 | F46: 360 | G46: 13.5 | H46: 31 | I46: 24490.9 | J46: 729.5544643 | K46: 268.52 | L46: 3.96454 | M46: 272.48454 | N46: 1002.039004 | O46: 3.03 | P46: 4.95 | Q46: 1010.019004 | R46: 23761.35 | S46: 0 | T46: 0 | U46: 2969.531304 | V46: 549 | W46: 0.8243873351 | X46: 237.7819174 | Y46: -2.602868085 | Z46: 2.607076322 | AA46: 0.004208236997 | AB46: 240.3847854
A47: 16 | B47: 1 | C47: 2023-12-15 | D47: 19 | E47: 16 | F47: 360 | G47: 13.5 | H47: 30 | I47: 23761.35 | J47: 746.0044643 | K47: 252.07 | L47: 3.96454 | M47: 256.03454 | N47: 1002.039004 | O47: 3.03 | P47: 4.95 | Q47: 1010.019004 | R47: 23015.35 | S47: 0 | T47: 0 | U47: 2969.531304 | V47: 579 | W47: 0.8157335464 | X47: 240.3847854 | Y47: -2.545937136 | Z47: 2.550145373 | AA47: 0.004208236997 | AB47: 242.9307226
A48: 17 | B48: 1 | C48: 2024-02-15 | D48: 21 | E48: 17 | F48: 360 | G48: 13.5 | H48: 62 | I48: 23015.35 | J48: 485.6744643 | K48: 507.45 | L48: 3.96454 | M48: 511.41454 | N48: 997.0890043 | O48: 3.03 | P48: 9.9 | Q48: 1010.019004 | R48: 22529.68 | S48: 0 | T48: 4.95 | U48: 2969.531304 | V48: 641 | W48: 0.7981358403 | X48: 242.9307226 | Y48: -5.352052264 | Z48: 5.356260501 | AA48: 0.004208236997 | AB48: 248.2827748
A49: 18 | B49: 1 | C49: 2024-03-15 | D49: 22 | E49: 18 | F49: 360 | G49: 13.5 | H49: 29 | I49: 22529.68 | J49: 767.0744643 | K49: 231 | L49: 3.96454 | M49: 234.96454 | N49: 1002.039004 | O49: 3.03 | P49: 4.95 | Q49: 1010.019004 | R49: 21762.61 | S49: 0 | T49: 0 | U49: 2969.531304 | V49: 670 | W49: 0.7900354717 | X49: 248.2827748 | Y49: -2.541477447 | Z49: 2.545685684 | AA49: 0.004208236997 | AB49: 250.8242523
A50: 19 | B50: 1 | C50: 2024-04-15 | D50: 23 | E50: 19 | F50: 360 | G50: 13.5 | H50: 31 | I50: 21762.61 | J50: 759.4644643 | K50: 238.61 | L50: 3.96454 | M50: 242.57454 | N50: 1002.039004 | O50: 3.03 | P50: 4.95 | Q50: 1010.019004 | R50: 21003.15 | S50: 0 | T50: 0 | U50: 2969.531304 | V50: 701 | W50: 0.7814673474 | X50: 250.8242523 | Y50: -2.745866186 | Z50: 2.750074423 | AA50: 0.004208236997 | AB50: 253.5701185
A51: 20 | B51: 1 | C51: 2024-05-15 | D51: 24 | E51: 20 | F51: 360 | G51: 13.5 | H51: 30 | I51: 21003.15 | J51: 775.2644643 | K51: 222.81 | L51: 3.96454 | M51: 226.77454 | N51: 1002.039004 | O51: 3.03 | P51: 4.95 | Q51: 1010.019004 | R51: 20227.89 | S51: 0 | T51: 0 | U51: 2969.531304 | V51: 731 | W51: 0.7732641 | X51: 253.5701185 | Y51: -2.685815024 | Z51: 2.690023261 | AA51: 0.004208236997 | AB51: 256.2559335
A52: 21 | B52: 1 | C52: 2024-07-15 | D52: 26 | E52: 21 | F52: 360 | G52: 13.5 | H52: 61 | I52: 20227.89 | J52: 554.4044643 | K52: 438.72 | L52: 3.96454 | M52: 442.68454 | N52: 997.0890043 | O52: 3.03 | P52: 9.9 | Q52: 1010.019004 | R52: 19673.49 | S52: 0 | T52: 4.95 | U52: 2969.531304 | V52: 792 | W52: 0.7568487616 | X52: 256.2559335 | Y52: -5.553742151 | Z52: 5.557950388 | AA52: 0.004208236997 | AB52: 261.8096756
A53: 22 | B53: 1 | C53: 2024-08-15 | D53: 27 | E53: 22 | F53: 360 | G53: 13.5 | H53: 31 | I53: 19673.49 | J53: 782.3744643 | K53: 215.7 | L53: 3.96454 | M53: 219.66454 | N53: 1002.039004 | O53: 3.03 | P53: 4.95 | Q53: 1010.019004 | R53: 18891.12 | S53: 0 | T53: 0 | U53: 2969.531304 | V53: 823 | W53: 0.7486405551 | X53: 261.8096756 | Y53: -2.866312002 | Z53: 2.870520239 | AA53: 0.004208236997 | AB53: 264.6759876
A54: 23 | B54: 1 | C54: 2024-09-15 | D54: 28 | E54: 23 | F54: 360 | G54: 13.5 | H54: 31 | I54: 18891.12 | J54: 790.9444643 | K54: 207.13 | L54: 3.96454 | M54: 211.09454 | N54: 1002.039004 | O54: 3.03 | P54: 4.95 | Q54: 1010.019004 | R54: 18100.18 | S54: 0 | T54: 0 | U54: 2969.531304 | V54: 854 | W54: 0.7405213687 | X54: 264.6759876 | Y54: -2.897738673 | Z54: 2.90194691 | AA54: 0.004208236997 | AB54: 267.5737263
A55: 24 | B55: 1 | C55: 2024-10-15 | D55: 29 | E55: 24 | F55: 360 | G55: 13.5 | H55: 30 | I55: 18100.18 | J55: 806.0544643 | K55: 192.02 | L55: 3.96454 | M55: 195.98454 | N55: 1002.039004 | O55: 3.03 | P55: 4.95 | Q55: 1010.019004 | R55: 17294.13 | S55: 0 | T55: 0 | U55: 2969.531304 | V55: 884 | W55: 0.7327479409 | X55: 267.5737263 | Y55: -2.834373659 | Z55: 2.838581896 | AA55: 0.004208236997 | AB55: 270.4081
A56: 25 | B56: 1 | C56: =IF(B56="","",DATE(YEAR(EDATE($P$6,D56)),MONTH(EDATE($P$6,D56)),DAY(EDATE($P$6,D56)))) -> 2024-11-15 | D56: =IF(B56="","",IF(OR(MONTH(DATE(YEAR(C55) + 1/12,MONTH(C55)+1,DAY(C55)))=$G$16,MONTH(DATE(YEAR(C55) + 1/12,MONTH(C55)+1,DAY(C55)))=$G$17),IF(ABS($G$17-$G$16)=1,D55+1,D55 + 2),D55 + 1)) -> 30 | E56: =IF(B56="","",E55+1) -> 25 | F56: =IF(B56="","",$P$9) -> 360 | G56: =IF(B56="","",$G$8) -> 13.5 | H56: =IF(B56="","",C56-C55) -> 31 | I56: =IF(B56="","",+R55) -> 17294.13 | J56: =IF(B56="","",IF((IF(ISERROR(MATCH(MONTH(C56),$G$18:$G$19,0))=FALSE,$I$24 + $P$28,0) + $I$24+$P$28+$R$26)-K56-T56<0,0.01,IF(ISERROR(MATCH(MONTH(C56),$G$18:$G$19,0))=FALSE,$I$24 + $P$28,0)+ ($I$24+$P$28+$R$26)-K56- T56)) -> 808.4544643 | K56: =IF(B56="","",IF($I$24+$P$28 + $R$26<ROUND(ROUND(I56*(((1+(G56/100))^(H56/F56))-1),4),2),$I$24+$P$28 + $R$26-0.01,IF(ROUND(ROUND(I56*(((1+(G56/100))^(H56/F56))-1),4),2)+ $R$26>$I$24,$I$24+ $R$26+-0.01,ROUND(ROUND(I56*(((1+(G56/100))^(H56/F56))-1),4),2)+$R$26))) -> 189.62 | L56: =IF(B56="","",IF(ISERROR(MATCH(MONTH(C56),$G$18:$G$19,0))=FALSE,$I$23,0) + $I$23) -> 3.96454 | M56: =IF(B56="","",K56+L56) -> 193.58454 | N56: =IF(B56="","",J56+K56 + L56) -> 1002.039004 | O56: =IF(B56="","",$I$26) -> 3.03 | P56: =IF(B56="","",$I$25 + T56) -> 4.95 | Q56: =IF(B56="","",N56+O56+P56) -> 1010.019004 | R56: =IF(B56="","",ROUND(I56-J56,2)) -> 16485.68 | S56: =IF(B56="","",IF(ROUND(ROUND(I56*(((1+(G56/100))^(H56/F56))-1),4),2) - $I$24<0,0,ROUND(ROUND(I56*(((1+(G56/100))^(H56/F56))-1),4),2) - $I$24)) -> 0 | T56: =IF(B56="","",IF(D56-D55>1,ROUNDDOWN($G$5*$G$9/30*30,2),0)) -> 0 | V56: 915 | W56: 0.7248011136 | X56: 270.4081 | Y56: -2.960586406 | Z56: 2.964794643 | AA56: 0.004208236997 | AB56: 273.3686864
A57: 26 | B57: 1 | C57: =IF(B57="","",DATE(YEAR(EDATE($P$6,D57)),MONTH(EDATE($P$6,D57)),DAY(EDATE($P$6,D57)))) -> 2024-12-15 | D57: =IF(B57="","",IF(OR(MONTH(DATE(YEAR(C56) + 1/12,MONTH(C56)+1,DAY(C56)))=$G$16,MONTH(DATE(YEAR(C56) + 1/12,MONTH(C56)+1,DAY(C56)))=$G$17),IF(ABS($G$17-$G$16)=1,D56+1,D56 + 2),D56 + 1)) -> 31 | E57: =IF(B57="","",E56+1) -> 26 | F57: =IF(B57="","",$P$9) -> 360 | G57: =IF(B57="","",$G$8) -> 13.5 | H57: =IF(B57="","",C57-C56) -> 30 | I57: =IF(B57="","",+R56) -> 16485.68 | J57: =IF(B57="","",IF((IF(ISERROR(MATCH(MONTH(C57),$G$18:$G$19,0))=FALSE,$I$24 + $P$28,0) + $I$24+$P$28+$R$26)-K57-T57<0,0.01,IF(ISERROR(MATCH(MONTH(C57),$G$18:$G$19,0))=FALSE,$I$24 + $P$28,0)+ ($I$24+$P$28+$R$26)-K57- T57)) -> 823.1844643 | K57: =IF(B57="","",IF($I$24+$P$28 + $R$26<ROUND(ROUND(I57*(((1+(G57/100))^(H57/F57))-1),4),2),$I$24+$P$28 + $R$26-0.01,IF(ROUND(ROUND(I57*(((1+(G57/100))^(H57/F57))-1),4),2)+ $R$26>$I$24,$I$24+ $R$26+-0.01,ROUND(ROUND(I57*(((1+(G57/100))^(H57/F57))-1),4),2)+$R$26))) -> 174.89 | L57: =IF(B57="","",IF(ISERROR(MATCH(MONTH(C57),$G$18:$G$19,0))=FALSE,$I$23,0) + $I$23) -> 3.96454 | M57: =IF(B57="","",K57+L57) -> 178.85454 | N57: =IF(B57="","",J57+K57 + L57) -> 1002.039004 | O57: =IF(B57="","",$I$26) -> 3.03 | P57: =IF(B57="","",$I$25 + T57) -> 4.95 | Q57: =IF(B57="","",N57+O57+P57) -> 1010.019004 | R57: =IF(B57="","",ROUND(I57-J57,2)) -> 15662.5 | S57: =IF(B57="","",IF(ROUND(ROUND(I57*(((1+(G57/100))^(H57/F57))-1),4),2) - $I$24<0,0,ROUND(ROUND(I57*(((1+(G57/100))^(H57/F57))-1),4),2) - $I$24)) -> 0 | T57: =IF(B57="","",IF(D57-D56>1,ROUNDDOWN($G$5*$G$9/30*30,2),0)) -> 0 | V57: 945 | W57: 0.7171927051 | X57: 273.3686864 | Y57: -2.895850057 | Z57: 2.900058294 | AA57: 0.004208236997 | AB57: 276.2645364
A58: 27 | B58: 1 | C58: 2025-02-15 | D58: 33 | E58: 27 | F58: 360 | G58: 13.5 | H58: 62 | I58: 15662.5 | J58: 647.7944643 | K58: 345.33 | L58: 3.96454 | M58: 349.29454 | N58: 997.0890043 | O58: 3.03 | P58: 9.9 | Q58: 1010.019004 | R58: 15014.71 | S58: 0 | T58: 4.95 | V58: 1007 | W58: 0.7017208067 | X58: 276.2645364 | Y58: -6.087013197 | Z58: 6.091221434 | AA58: 0.004208236997 | AB58: 282.3515496
A59: 28 | B59: 1 | C59: 2025-03-15 | D59: 34 | E59: 28 | F59: 360 | G59: 13.5 | H59: 28 | I59: 15014.71 | J59: 849.4644643 | K59: 148.61 | L59: 3.96454 | M59: 152.57454 | N59: 1002.039004 | O59: 3.03 | P59: 4.95 | Q59: 1010.019004 | R59: 14165.25 | S59: 0 | T59: 0 | V59: 1035 | W59: 0.6948433382 | X59: 282.3515496 | Y59: -2.790470483 | Z59: 2.79467872 | AA59: 0.004208236997 | AB59: 285.1420201
A60: 29 | B60: 1 | C60: 2025-04-15 | D60: 35 | E60: 29 | F60: 360 | G60: 13.5 | H60: 31 | I60: 14165.25 | J60: 842.7644643 | K60: 155.31 | L60: 3.96454 | M60: 159.27454 | N60: 1002.039004 | O60: 3.03 | P60: 4.95 | Q60: 1010.019004 | R60: 13322.49 | S60: 0 | T60: 0 | V60: 1066 | W60: 0.6873075955 | X60: 285.1420201 | Y60: -3.122131299 | Z60: 3.126339536 | AA60: 0.004208236997 | AB60: 288.2641514
A61: 30 | B61: 1 | C61: 2025-05-15 | D61: 36 | E61: 30 | F61: 360 | G61: 13.5 | H61: 30 | I61: 13322.49 | J61: 856.7444643 | K61: 141.33 | L61: 3.96454 | M61: 145.29454 | N61: 1002.039004 | O61: 3.03 | P61: 4.95 | Q61: 1010.019004 | R61: 12465.75 | S61: 0 | T61: 0 | V61: 1096 | W61: 0.6800927653 | X61: 288.2641514 | Y61: -3.053870046 | Z61: 3.058078283 | AA61: 0.004208236997 | AB61: 291.3180215
A62: 31 | B62: 1 | C62: 2025-07-15 | D62: 38 | E62: 31 | F62: 360 | G62: 13.5 | H62: 61 | I62: 12465.75 | J62: 722.7544643 | K62: 270.37 | L62: 3.96454 | M62: 274.33454 | N62: 997.0890043 | O62: 3.03 | P62: 9.9 | Q62: 1010.019004 | R62: 11743 | S62: 0 | T62: 4.95 | V62: 1157 | W62: 0.6656553268 | X62: 291.3180215 | Y62: -6.314205891 | Z62: 6.318414128 | AA62: 0.004208236997 | AB62: 297.6322274
A63: 32 | B63: 1 | C63: 2025-08-15 | D63: 39 | E63: 32 | F63: 360 | G63: 13.5 | H63: 31 | I63: 11743 | J63: 869.3244643 | K63: 128.75 | L63: 3.96454 | M63: 132.71454 | N63: 1002.039004 | O63: 3.03 | P63: 4.95 | Q63: 1010.019004 | R63: 10873.68 | S63: 0 | T63: 0 | V63: 1188 | W63: 0.658436135 | X63: 297.6322274 | Y63: -3.259075789 | Z63: 3.263284026 | AA63: 0.004208236997 | AB63: 300.8913031
A64: 33 | B64: 1 | C64: 2025-09-15 | D64: 40 | E64: 33 | F64: 360 | G64: 13.5 | H64: 31 | I64: 10873.68 | J64: 878.8544643 | K64: 119.22 | L64: 3.96454 | M64: 123.18454 | N64: 1002.039004 | O64: 3.03 | P64: 4.95 | Q64: 1010.019004 | R64: 9994.83 | S64: 0 | T64: 0 | V64: 1219 | W64: 0.6512952371 | X64: 300.8913031 | Y64: -3.294808781 | Z64: 3.299017018 | AA64: 0.004208236997 | AB64: 304.1861119
A65: =+IF(A64>=$G$12,"",A64+1) -> 34 | B65: 1 | C65: 2025-10-15 | D65: 41 | E65: 34 | F65: 360 | G65: 13.5 | H65: 30 | I65: 9994.83 | J65: 892.0444643 | K65: 106.03 | L65: 3.96454 | M65: 109.99454 | N65: 1002.039004 | O65: 3.03 | P65: 4.95 | Q65: 1010.019004 | R65: 9102.79 | S65: 0 | T65: 0 | V65: 1249 | W65: 0.6444584371 | X65: 304.1861119 | Y65: -3.222779712 | Z65: 3.226987949 | AA65: 0.004208236997 | AB65: 307.4088916
A66: 35 | B66: 1 | C66: 2025-11-15 | D66: 42 | E66: 35 | F66: 360 | G66: 13.5 | H66: 31 | I66: 9102.79 | J66: 898.2744643 | K66: 99.8 | L66: 3.96454 | M66: 103.76454 | N66: 1002.039004 | O66: 3.03 | P66: 4.95 | Q66: 1010.019004 | R66: 8204.52 | S66: 0 | T66: 0 | V66: 1280 | W66: 0.6374691307 | X66: 307.4088916 | Y66: -3.366268591 | Z66: 3.370476828 | AA66: 0.004208236997 | AB66: 310.7751602
A67: 36 | B67: 1 | C67: 2025-12-15 | D67: 43 | E67: 36 | F67: 360 | G67: 13.5 | H67: 30 | I67: 8204.52 | J67: 911.0344643 | K67: 87.04 | L67: 3.96454 | M67: 91.00454 | N67: 1002.039004 | O67: 3.03 | P67: 4.95 | Q67: 1010.019004 | R67: 7293.49 | S67: 0 | T67: 0 | V67: 1310 | W67: 0.6307774666 | X67: 310.7751602 | Y67: -3.292680272 | Z67: 3.296888509 | AA67: 0.004208236997 | AB67: 314.0678405
A68: 37 | B68: 1 | C68: 2026-02-15 | D68: 45 | E68: 37 | F68: 360 | G68: 13.5 | H68: 62 | I68: 7293.49 | J68: 832.3144643 | K68: 160.81 | L68: 3.96454 | M68: 164.77454 | N68: 997.0890043 | O68: 3.03 | P68: 9.9 | Q68: 1010.019004 | R68: 6461.18 | S68: 0 | T68: 4.95 | V68: 1372 | W68: 0.6171697922 | X68: 314.0678405 | Y68: -6.92051973 | Z68: 6.924727967 | AA68: 0.004208236997 | AB68: 320.9883602
A69: 38 | B69: 1 | C69: 2026-03-15 | D69: 46 | E69: 38 | F69: 360 | G69: 13.5 | H69: 28 | I69: 6461.18 | J69: 934.1244643 | K69: 63.95 | L69: 3.96454 | M69: 67.91454 | N69: 1002.039004 | O69: 3.03 | P69: 4.95 | Q69: 1010.019004 | R69: 5527.06 | S69: 0 | T69: 0 | V69: 1400 | W69: 0.6111209965 | X69: 320.9883602 | Y69: -3.172892583 | Z69: 3.17710082 | AA69: 0.004208236997 | AB69: 324.1612528
A70: 39 | B70: 1 | C70: 2026-04-15 | D70: 47 | E70: 39 | F70: 360 | G70: 13.5 | H70: 31 | I70: 5527.06 | J70: 937.4744643 | K70: 60.6 | L70: 3.96454 | M70: 64.56454 | N70: 1002.039004 | O70: 3.03 | P70: 4.95 | Q70: 1010.019004 | R70: 4589.59 | S70: 0 | T70: 0 | V70: 1431 | W70: 0.6044932426 | X70: 324.1612528 | Y70: -3.549943972 | Z70: 3.554152209 | AA70: 0.004208236997 | AB70: 327.7111968
A71: 40 | B71: 1 | C71: 2026-05-15 | D71: 48 | E71: 40 | F71: 360 | G71: 13.5 | H71: 30 | I71: 4589.59 | J71: 949.3844643 | K71: 48.69 | L71: 3.96454 | M71: 52.65454 | N71: 1002.039004 | O71: 3.03 | P71: 4.95 | Q71: 1010.019004 | R71: 3640.21 | S71: 0 | T71: 0 | V71: 1461 | W71: 0.5981477342 | X71: 327.7111968 | Y71: -3.472347863 | Z71: 3.4765561 | AA71: 0.004208236997 | AB71: 331.1835447
A72: 41 | B72: 1 | C72: 2026-07-15 | D72: 50 | E72: 41 | F72: 360 | G72: 13.5 | H72: 61 | I72: 3640.21 | J72: 914.1744643 | K72: 78.95 | L72: 3.96454 | M72: 82.91454 | N72: 997.0890043 | O72: 3.03 | P72: 9.9 | Q72: 1010.019004 | R72: 2726.04 | S72: 0 | T72: 4.95 | V72: 1522 | W72: 0.5854498765 | X72: 331.1835447 | Y72: -7.178851626 | Z72: 7.183059863 | AA72: 0.004208236997 | AB72: 338.3623963
A73: 42 | B73: 1 | C73: 2026-08-15 | D73: 51 | E73: 42 | F73: 360 | G73: 13.5 | H73: 31 | I73: 2726.04 | J73: 968.1844643 | K73: 29.89 | L73: 3.96454 | M73: 33.85454 | N73: 1002.039004 | O73: 3.03 | P73: 4.95 | Q73: 1010.019004 | R73: 1757.86 | S73: 0 | T73: 0 | V73: 1553 | W73: 0.5791005321 | X73: 338.3623963 | Y73: -3.705647422 | Z73: 3.709855659 | AA73: 0.004208236997 | AB73: 342.0680437
A74: 43 | B74: 1 | C74: 2026-09-15 | D74: 52 | E74: 43 | F74: 360 | G74: 13.5 | H74: 31 | I74: 1757.86 | J74: 978.8044643 | K74: 19.27 | L74: 3.96454 | M74: 23.23454 | N74: 1002.039004 | O74: 3.03 | P74: 4.95 | Q74: 1010.019004 | R74: 779.06 | S74: 0 | T74: 0 | V74: 1584 | W74: 0.5728200479 | X74: 342.0680437 | Y74: -3.746276691 | Z74: 3.750484928 | AA74: 0.004208236997 | AB74: 345.8143204
A75: 44 | B75: 1 | C75: 2026-10-15 | D75: 53 | E75: 44 | F75: 360 | G75: 13.5 | H75: 30 | I75: 779.06 | J75: 989.8144643 | K75: 8.26 | L75: 3.96454 | M75: 12.22454 | N75: 1002.039004 | O75: 3.03 | P75: 4.95 | Q75: 1010.019004 | R75: -210.75 | S75: 0 | T75: 0 | V75: 1614 | W75: 0.5668070205 | X75: 345.8143204 | Y75: -3.66439661 | Z75: 3.668604847 | AA75: 0.004208236997 | AB75: 349.478717
A76: 45 | B76: 1 | C76: 2026-11-15 | D76: 54 | E76: 45 | F76: 360 | G76: 13.5 | H76: 31 | I76: -210.75 | J76: 1000.384464 | K76: -2.31 | L76: 3.96454 | M76: 1.65454 | N76: 1002.039004 | O76: 3.03 | P76: 4.95 | Q76: 1010.019004 | R76: -1211.13 | S76: 0 | T76: 0 | V76: 1645 | W76: 0.5606598624 | X76: 349.478717 | Y76: -3.827528416 | Z76: 3.831736653 | AA76: 0.004208236997 | AB76: 353.3062454
A77: 46 | B77: 1 | C77: 2026-12-15 | D77: 55 | E77: 46 | F77: 360 | G77: 13.5 | H77: 30 | I77: -1211.13 | J77: 1010.924464 | K77: -12.85 | L77: 3.96454 | M77: -8.88546 | N77: 1002.039004 | O77: 3.03 | P77: 4.95 | Q77: 1010.019004 | R77: -2222.05 | S77: 0 | T77: 0 | V77: 1675 | W77: 0.5547744833 | X77: 353.3062454 | Y77: -3.743875425 | Z77: 3.748083662 | AA77: 0.004208236997 | AB77: 357.0501208
A78: 47 | B78: 1 | C78: 2027-02-15 | D78: 57 | E78: 47 | F78: 360 | G78: 13.5 | H78: 62 | I78: -2222.05 | J78: 1042.114464 | K78: -48.99 | L78: 3.96454 | M78: -45.02546 | N78: 997.0890043 | O78: 3.03 | P78: 9.9 | Q78: 1010.019004 | R78: -3264.16 | S78: 0 | T78: 4.95 | V78: 1737 | W78: 0.5428064107 | X78: 357.0501208 | Y78: -7.868214974 | Z78: 7.872423211 | AA78: 0.004208236997 | AB78: 364.9183358
A79: 48 | B79: 1 | C79: 2027-03-15 | D79: 58 | E79: 48 | F79: 360 | G79: 13.5 | H79: 28 | I79: -3264.16 | J79: 1030.384464 | K79: -32.31 | L79: 3.96454 | M79: -28.34546 | N79: 1002.039004 | O79: 3.03 | P79: 4.95 | Q79: 1010.019004 | R79: -4294.54 | S79: 0 | T79: 0 | V79: 1765 | W79: 0.5374864401 | X79: 364.9183358 | Y79: -3.607705737 | Z79: 3.611913974 | AA79: 0.004208236997 | AB79: 368.5260416
A80: 49 | B80: 1 | C80: 2027-04-15 | D80: 59 | E80: 49 | F80: 360 | G80: 13.5 | H80: 31 | I80: -4294.54 | J80: 1045.164464 | K80: -47.09 | L80: 3.96454 | M80: -43.12546 | N80: 1002.039004 | O80: 3.03 | P80: 4.95 | Q80: 1010.019004 | R80: -5339.7 | S80: 0 | T80: 0 | V80: 1796 | W80: 0.5316572707 | X80: 368.5260416 | Y80: -4.036366117 | Z80: 4.040574354 | AA80: 0.004208236997 | AB80: 372.5624077
A81: 50 | B81: 1 | C81: 2027-05-15 | D81: 60 | E81: 50 | F81: 360 | G81: 13.5 | H81: 30 | I81: -5339.7 | J81: 1054.724464 | K81: -56.65 | L81: 3.96454 | M81: -52.68546 | N81: 1002.039004 | O81: 3.03 | P81: 4.95 | Q81: 1010.019004 | R81: -6394.42 | S81: 0 | T81: 0 | V81: 1826 | W81: 0.5260763387 | X81: 372.5624077 | Y81: -3.948156295 | Z81: 3.952364532 | AA81: 0.004208236997 | AB81: 376.510564
X82: 376.510564 | AA82: 0.004208236997
AA83: 0.004208236997
AA84: 0.004208236997
AA85: 0.004208236997
AA86: 0.004208236997
AA87: 0.004208236997
AA88: 0.004208236997
AA89: 0.004208236997
AA90: 0.004208236997
AA91: 0.004208236997
AA92: 0.004208236997
AA93: 0.004208236997
AA94: 0.004208236997
AA95: 0.004208236997
AA96: 0.004208236997
A97: =+IF(A96>=$G$12,"",A96+1) ->  | W97: =1/((1+($I$8/100))^(V97/$P$9))*1 ->  | AA97: =$J$23 -> 0.004208236997
V98: =V97+H98 ->  | X98: =AB97 ->  | Y98: =AA98-Z98 ->  | Z98: =(((1+($I$8/100))^((H98)/$P$9))-1)*X98 ->  | AA98: 0.004208236997 | AB98: =X98-Y98 -> 
B99: =IF(A99="","",IF(A99<=$H$21,0,1)) ->  | AA99: 0.004208236997
AA100: 0.004208236997
AA101: 0.004208236997
AA102: 0.004208236997
AA103: 0.004208236997
J105: =SUM(J32:J104) -> 39444.64321
J106: =+J105-G5 -> 6394.643214

Sheet Calculos Original (hidden)
A1: Factores utilizados en Meses de No Pago para cálculo del valor cuota
A3: N° de Cuota | B3: Equivalente | C3: Fecha | D3: Mes | E3: Marca Cuota No Pago | F3: Factor (10) | G3: Acumulado | H3: Conteo No Pagos Acum
A4: 1 | B4: =IF(E4<>"C",IF(ISERROR(1+B3)=TRUE,1,1+B3),IF(ISNUMBER(B3),B3,0)) -> 0 | C4: ='Simulador Original'!P7 -> 2022-06-15 | D4: =MONTH(C4) -> 6 | E4: =IF(ISERROR(MATCH(D4,'Simulador Original'!$G$16:$G$17,0))=FALSE,"C",IF(ISERROR(MATCH(D4,'Simulador Original'!$G$18:$G$19,0))=FALSE,"D","")) -> C | F4: =IF(E4="C",0,IF(E4 ="D",ROUND(1/((1+'Simulador Original'!$P$13)^A4),9) * 2,ROUND(1/((1+'Simulador Original'!$P$13)^A4),9))) -> 0 | G4: =ROUND(F4,9) -> 0 | H4: =+COUNTIF($E$4:E4,"C") -> 1
A5: =A4+1 -> 2 | B5: =IF(E5<>"C",IF(ISERROR(1+B4)=TRUE,1,1+B4),IF(ISNUMBER(B4),B4,1)) -> 1 | C5: =DATE(YEAR(C4) + 1/12,MONTH(C4)+1,DAY(C4)) -> 2022-07-15 | D5: 7 | E5: =IF(ISERROR(MATCH(D5,'Simulador Original'!$G$16:$G$17,0))=FALSE,"C",IF(ISERROR(MATCH(D5,'Simulador Original'!$G$18:$G$19,0))=FALSE,"D","")) ->  | F5: =IF(E5="C",0,IF(E5 ="D",ROUND(1/((1+'Simulador Original'!$P$13)^A5),9) * 2,ROUND(1/((1+'Simulador Original'!$P$13)^A5),9))) -> 0.974663453 | G5: =G4+ROUND(F5,9) -> 0.974663453 | H5: =+COUNTIF($E$4:E5,"C") -> 1
A6: 3 | B6: 2 | C6: 2022-08-15 | D6: 8 | E6: =IF(ISERROR(MATCH(D6,'Simulador Original'!$G$16:$G$17,0))=FALSE,"C",IF(ISERROR(MATCH(D6,'Simulador Original'!$G$18:$G$19,0))=FALSE,"D","")) ->  | F6: =IF(E6="C",0,IF(E6 ="D",ROUND(1/((1+'Simulador Original'!$P$13)^A6),9) * 2,ROUND(1/((1+'Simulador Original'!$P$13)^A6),9))) -> 0.962236933 | G6: =G5+ROUND(F6,9) -> 1.936900386 | H6: =+COUNTIF($E$4:E6,"C") -> 1
A7: 4 | B7: 3 | C7: 2022-09-15 | D7: 9 | E7: =IF(ISERROR(MATCH(D7,'Simulador Original'!$G$16:$G$17,0))=FALSE,"C",IF(ISERROR(MATCH(D7,'Simulador Original'!$G$18:$G$19,0))=FALSE,"D","")) ->  | F7: =IF(E7="C",0,IF(E7 ="D",ROUND(1/((1+'Simulador Original'!$P$13)^A7),9) * 2,ROUND(1/((1+'Simulador Original'!$P$13)^A7),9))) -> 0.949968846 | G7: 2.886869232 | H7: =+COUNTIF($E$4:E7,"C") -> 1
A8: 5 | B8: 4 | C8: 2022-10-15 | D8: 10 | E8: =IF(ISERROR(MATCH(D8,'Simulador Original'!$G$16:$G$17,0))=FALSE,"C",IF(ISERROR(MATCH(D8,'Simulador Original'!$G$18:$G$19,0))=FALSE,"D","")) ->  | F8: =IF(E8="C",0,IF(E8 ="D",ROUND(1/((1+'Simulador Original'!$P$13)^A8),9) * 2,ROUND(1/((1+'Simulador Original'!$P$13)^A8),9))) -> 0.937857172 | G8: 3.824726404 | H8: =+COUNTIF($E$4:E8,"C") -> 1
A9: 6 | B9: 5 | C9: 2022-11-15 | D9: 11 | E9: =IF(ISERROR(MATCH(D9,'Simulador Original'!$G$16:$G$17,0))=FALSE,"C",IF(ISERROR(MATCH(D9,'Simulador Original'!$G$18:$G$19,0))=FALSE,"D","")) ->  | F9: =IF(E9="C",0,IF(E9 ="D",ROUND(1/((1+'Simulador Original'!$P$13)^A9),9) * 2,ROUND(1/((1+'Simulador Original'!$P$13)^A9),9))) -> 0.925899916 | G9: 4.75062632 | H9: =+COUNTIF($E$4:E9,"C") -> 1
A10: 7 | B10: 6 | C10: 2022-12-15 | D10: 12 | E10: =IF(ISERROR(MATCH(D10,'Simulador Original'!$G$16:$G$17,0))=FALSE,"C",IF(ISERROR(MATCH(D10,'Simulador Original'!$G$18:$G$19,0))=FALSE,"D","")) ->  | F10: =IF(E10="C",0,IF(E10 ="D",ROUND(1/((1+'Simulador Original'!$P$13)^A10),9) * 2,ROUND(1/((1+'Simulador Original'!$P$13)^A10),9))) -> 0.914095109 | G10: 5.664721429 | H10: =+COUNTIF($E$4:E10,"C") -> 1
A11: 8 | B11: 6 | C11: 2023-01-15 | D11: 1 | E11: =IF(ISERROR(MATCH(D11,'Simulador Original'!$G$16:$G$17,0))=FALSE,"C",IF(ISERROR(MATCH(D11,'Simulador Original'!$G$18:$G$19,0))=FALSE,"D","")) -> C | F11: =IF(E11="C",0,IF(E11 ="D",ROUND(1/((1+'Simulador Original'!$P$13)^A11),9) * 2,ROUND(1/((1+'Simulador Original'!$P$13)^A11),9))) -> 0 | G11: 5.664721429 | H11: =+COUNTIF($E$4:E11,"C") -> 2
A12: 9 | B12: 7 | C12: 2023-02-15 | D12: 2 | E12: =IF(ISERROR(MATCH(D12,'Simulador Original'!$G$16:$G$17,0))=FALSE,"C",IF(ISERROR(MATCH(D12,'Simulador Original'!$G$18:$G$19,0))=FALSE,"D","")) ->  | F12: =IF(E12="C",0,IF(E12 ="D",ROUND(1/((1+'Simulador Original'!$P$13)^A12),9) * 2,ROUND(1/((1+'Simulador Original'!$P$13)^A12),9))) -> 0.890935095 | G12: 6.555656524 | H12: =+COUNTIF($E$4:E12,"C") -> 2
A13: 10 | B13: 8 | C13: 2023-03-15 | D13: 3 | E13: =IF(ISERROR(MATCH(D13,'Simulador Original'!$G$16:$G$17,0))=FALSE,"C",IF(ISERROR(MATCH(D13,'Simulador Original'!$G$18:$G$19,0))=FALSE,"D","")) ->  | F13: =IF(E13="C",0,IF(E13 ="D",ROUND(1/((1+'Simulador Original'!$P$13)^A13),9) * 2,ROUND(1/((1+'Simulador Original'!$P$13)^A13),9))) -> 0.879576074 | G13: 7.435232598 | H13: =+COUNTIF($E$4:E13,"C") -> 2
A14: 11 | B14: 9 | C14: 2023-04-15 | D14: 4 | E14: =IF(ISERROR(MATCH(D14,'Simulador Original'!$G$16:$G$17,0))=FALSE,"C",IF(ISERROR(MATCH(D14,'Simulador Original'!$G$18:$G$19,0))=FALSE,"D","")) ->  | F14: =IF(E14="C",0,IF(E14 ="D",ROUND(1/((1+'Simulador Original'!$P$13)^A14),9) * 2,ROUND(1/((1+'Simulador Original'!$P$13)^A14),9))) -> 0.868361876 | G14: 8.303594474 | H14: =+COUNTIF($E$4:E14,"C") -> 2
A15: 12 | B15: 10 | C15: 2023-05-15 | D15: 5 | E15: =IF(ISERROR(MATCH(D15,'Simulador Original'!$G$16:$G$17,0))=FALSE,"C",IF(ISERROR(MATCH(D15,'Simulador Original'!$G$18:$G$19,0))=FALSE,"D","")) ->  | F15: =IF(E15="C",0,IF(E15 ="D",ROUND(1/((1+'Simulador Original'!$P$13)^A15),9) * 2,ROUND(1/((1+'Simulador Original'!$P$13)^A15),9))) -> 0.857290654 | G15: 9.160885128 | H15: =+COUNTIF($E$4:E15,"C") -> 2
A16: 13 | B16: 10 | C16: 2023-06-15 | D16: 6 | E16: =IF(ISERROR(MATCH(D16,'Simulador Original'!$G$16:$G$17,0))=FALSE,"C",IF(ISERROR(MATCH(D16,'Simulador Original'!$G$18:$G$19,0))=FALSE,"D","")) -> C | F16: =IF(E16="C",0,IF(E16 ="D",ROUND(1/((1+'Simulador Original'!$P$13)^A16),9) * 2,ROUND(1/((1+'Simulador Original'!$P$13)^A16),9))) -> 0 | G16: 9.160885128 | H16: =+COUNTIF($E$4:E16,"C") -> 3
A17: 14 | B17: 11 | C17: 2023-07-15 | D17: 7 | E17: =IF(ISERROR(MATCH(D17,'Simulador Original'!$G$16:$G$17,0))=FALSE,"C",IF(ISERROR(MATCH(D17,'Simulador Original'!$G$18:$G$19,0))=FALSE,"D","")) ->  | F17: =IF(E17="C",0,IF(E17 ="D",ROUND(1/((1+'Simulador Original'!$P$13)^A17),9) * 2,ROUND(1/((1+'Simulador Original'!$P$13)^A17),9))) -> 0.835569868 | G17: 9.996454996 | H17: =+COUNTIF($E$4:E17,"C") -> 3
A18: 15 | B18: 12 | C18: 2023-08-15 | D18: 8 | E18: =IF(ISERROR(MATCH(D18,'Simulador Original'!$G$16:$G$17,0))=FALSE,"C",IF(ISERROR(MATCH(D18,'Simulador Original'!$G$18:$G$19,0))=FALSE,"D","")) ->  | F18: =IF(E18="C",0,IF(E18 ="D",ROUND(1/((1+'Simulador Original'!$P$13)^A18),9) * 2,ROUND(1/((1+'Simulador Original'!$P$13)^A18),9))) -> 0.824916729 | G18: 10.82137172 | H18: =+COUNTIF($E$4:E18,"C") -> 3
A19: 16 | B19: 13 | C19: 2023-09-15 | D19: 9 | E19: =IF(ISERROR(MATCH(D19,'Simulador Original'!$G$16:$G$17,0))=FALSE,"C",IF(ISERROR(MATCH(D19,'Simulador Original'!$G$18:$G$19,0))=FALSE,"D","")) ->  | F19: =IF(E19="C",0,IF(E19 ="D",ROUND(1/((1+'Simulador Original'!$P$13)^A19),9) * 2,ROUND(1/((1+'Simulador Original'!$P$13)^A19),9))) -> 0.814399413 | G19: 11.63577114 | H19: =+COUNTIF($E$4:E19,"C") -> 3
A20: 17 | B20: 14 | C20: 2023-10-15 | D20: 10 | E20: =IF(ISERROR(MATCH(D20,'Simulador Original'!$G$16:$G$17,0))=FALSE,"C",IF(ISERROR(MATCH(D20,'Simulador Original'!$G$18:$G$19,0))=FALSE,"D","")) ->  | F20: =IF(E20="C",0,IF(E20 ="D",ROUND(1/((1+'Simulador Original'!$P$13)^A20),9) * 2,ROUND(1/((1+'Simulador Original'!$P$13)^A20),9))) -> 0.804016188 | G20: 12.43978733 | H20: =+COUNTIF($E$4:E20,"C") -> 3
A21: 18 | B21: 15 | C21: 2023-11-15 | D21: 11 | E21: =IF(ISERROR(MATCH(D21,'Simulador Original'!$G$16:$G$17,0))=FALSE,"C",IF(ISERROR(MATCH(D21,'Simulador Original'!$G$18:$G$19,0))=FALSE,"D","")) ->  | F21: =IF(E21="C",0,IF(E21 ="D",ROUND(1/((1+'Simulador Original'!$P$13)^A21),9) * 2,ROUND(1/((1+'Simulador Original'!$P$13)^A21),9))) -> 0.793765344 | G21: 13.23355267 | H21: =+COUNTIF($E$4:E21,"C") -> 3
A22: 19 | B22: 16 | C22: 2023-12-15 | D22: 12 | E22: =IF(ISERROR(MATCH(D22,'Simulador Original'!$G$16:$G$17,0))=FALSE,"C",IF(ISERROR(MATCH(D22,'Simulador Original'!$G$18:$G$19,0))=FALSE,"D","")) ->  | F22: =IF(E22="C",0,IF(E22 ="D",ROUND(1/((1+'Simulador Original'!$P$13)^A22),9) * 2,ROUND(1/((1+'Simulador Original'!$P$13)^A22),9))) -> 0.783645193 | G22: 14.01719786 | H22: =+COUNTIF($E$4:E22,"C") -> 3
A23: 20 | B23: 16 | C23: 2024-01-15 | D23: 1 | E23: =IF(ISERROR(MATCH(D23,'Simulador Original'!$G$16:$G$17,0))=FALSE,"C",IF(ISERROR(MATCH(D23,'Simulador Original'!$G$18:$G$19,0))=FALSE,"D","")) -> C | F23: =IF(E23="C",0,IF(E23 ="D",ROUND(1/((1+'Simulador Original'!$P$13)^A23),9) * 2,ROUND(1/((1+'Simulador Original'!$P$13)^A23),9))) -> 0 | G23: 14.01719786 | H23: =+COUNTIF($E$4:E23,"C") -> 4
A24: 21 | B24: 17 | C24: 2024-02-15 | D24: 2 | E24: =IF(ISERROR(MATCH(D24,'Simulador Original'!$G$16:$G$17,0))=FALSE,"C",IF(ISERROR(MATCH(D24,'Simulador Original'!$G$18:$G$19,0))=FALSE,"D","")) ->  | F24: =IF(E24="C",0,IF(E24 ="D",ROUND(1/((1+'Simulador Original'!$P$13)^A24),9) * 2,ROUND(1/((1+'Simulador Original'!$P$13)^A24),9))) -> 0.76379033 | G24: 14.78098819 | H24: =+COUNTIF($E$4:E24,"C") -> 4
A25: 22 | B25: 18 | C25: 2024-03-15 | D25: 3 | E25: =IF(ISERROR(MATCH(D25,'Simulador Original'!$G$16:$G$17,0))=FALSE,"C",IF(ISERROR(MATCH(D25,'Simulador Original'!$G$18:$G$19,0))=FALSE,"D","")) ->  | F25: =IF(E25="C",0,IF(E25 ="D",ROUND(1/((1+'Simulador Original'!$P$13)^A25),9) * 2,ROUND(1/((1+'Simulador Original'!$P$13)^A25),9))) -> 0.754052348 | G25: 15.53504054 | H25: =+COUNTIF($E$4:E25,"C") -> 4
A26: 23 | B26: 19 | C26: 2024-04-15 | D26: 4 | E26: =IF(ISERROR(MATCH(D26,'Simulador Original'!$G$16:$G$17,0))=FALSE,"C",IF(ISERROR(MATCH(D26,'Simulador Original'!$G$18:$G$19,0))=FALSE,"D","")) ->  | F26: =IF(E26="C",0,IF(E26 ="D",ROUND(1/((1+'Simulador Original'!$P$13)^A26),9) * 2,ROUND(1/((1+'Simulador Original'!$P$13)^A26),9))) -> 0.74443852 | G26: 16.27947906 | H26: =+COUNTIF($E$4:E26,"C") -> 4
A27: 24 | B27: 20 | C27: 2024-05-15 | D27: 5 | E27: =IF(ISERROR(MATCH(D27,'Simulador Original'!$G$16:$G$17,0))=FALSE,"C",IF(ISERROR(MATCH(D27,'Simulador Original'!$G$18:$G$19,0))=FALSE,"D","")) ->  | F27: =IF(E27="C",0,IF(E27 ="D",ROUND(1/((1+'Simulador Original'!$P$13)^A27),9) * 2,ROUND(1/((1+'Simulador Original'!$P$13)^A27),9))) -> 0.734947265 | G27: 17.01442633 | H27: =+COUNTIF($E$4:E27,"C") -> 4
A28: 25 | B28: 20 | C28: 2024-06-15 | D28: 6 | E28: =IF(ISERROR(MATCH(D28,'Simulador Original'!$G$16:$G$17,0))=FALSE,"C",IF(ISERROR(MATCH(D28,'Simulador Original'!$G$18:$G$19,0))=FALSE,"D","")) -> C | F28: =IF(E28="C",0,IF(E28 ="D",ROUND(1/((1+'Simulador Original'!$P$13)^A28),9) * 2,ROUND(1/((1+'Simulador Original'!$P$13)^A28),9))) -> 0 | G28: 17.01442633 | H28: =+COUNTIF($E$4:E28,"C") -> 5
A29: 26 | B29: 21 | C29: 2024-07-15 | D29: 7 | E29: =IF(ISERROR(MATCH(D29,'Simulador Original'!$G$16:$G$17,0))=FALSE,"C",IF(ISERROR(MATCH(D29,'Simulador Original'!$G$18:$G$19,0))=FALSE,"D","")) ->  | F29: =IF(E29="C",0,IF(E29 ="D",ROUND(1/((1+'Simulador Original'!$P$13)^A29),9) * 2,ROUND(1/((1+'Simulador Original'!$P$13)^A29),9))) -> 0.716326239 | G29: 17.73075256 | H29: =+COUNTIF($E$4:E29,"C") -> 5
A30: 27 | B30: 22 | C30: 2024-08-15 | D30: 8 | E30: =IF(ISERROR(MATCH(D30,'Simulador Original'!$G$16:$G$17,0))=FALSE,"C",IF(ISERROR(MATCH(D30,'Simulador Original'!$G$18:$G$19,0))=FALSE,"D","")) ->  | F30: =IF(E30="C",0,IF(E30 ="D",ROUND(1/((1+'Simulador Original'!$P$13)^A30),9) * 2,ROUND(1/((1+'Simulador Original'!$P$13)^A30),9))) -> 0.707193402 | G30: 18.43794597 | H30: =+COUNTIF($E$4:E30,"C") -> 5
A31: 28 | B31: 23 | C31: 2024-09-15 | D31: 9 | E31: =IF(ISERROR(MATCH(D31,'Simulador Original'!$G$16:$G$17,0))=FALSE,"C",IF(ISERROR(MATCH(D31,'Simulador Original'!$G$18:$G$19,0))=FALSE,"D","")) ->  | F31: =IF(E31="C",0,IF(E31 ="D",ROUND(1/((1+'Simulador Original'!$P$13)^A31),9) * 2,ROUND(1/((1+'Simulador Original'!$P$13)^A31),9))) -> 0.698177005 | G31: 19.13612297 | H31: =+COUNTIF($E$4:E31,"C") -> 5
A32: 29 | B32: 24 | C32: 2024-10-15 | D32: 10 | E32: =IF(ISERROR(MATCH(D32,'Simulador Original'!$G$16:$G$17,0))=FALSE,"C",IF(ISERROR(MATCH(D32,'Simulador Original'!$G$18:$G$19,0))=FALSE,"D","")) ->  | F32: =IF(E32="C",0,IF(E32 ="D",ROUND(1/((1+'Simulador Original'!$P$13)^A32),9) * 2,ROUND(1/((1+'Simulador Original'!$P$13)^A32),9))) -> 0.689275563 | G32: 19.82539854 | H32: =+COUNTIF($E$4:E32,"C") -> 5
A33: 30 | B33: 25 | C33: 2024-11-15 | D33: 11 | E33: =IF(ISERROR(MATCH(D33,'Simulador Original'!$G$16:$G$17,0))=FALSE,"C",IF(ISERROR(MATCH(D33,'Simulador Original'!$G$18:$G$19,0))=FALSE,"D","")) ->  | F33: =IF(E33="C",0,IF(E33 ="D",ROUND(1/((1+'Simulador Original'!$P$13)^A33),9) * 2,ROUND(1/((1+'Simulador Original'!$P$13)^A33),9))) -> 0.68048761 | G33: 20.50588615 | H33: =+COUNTIF($E$4:E33,"C") -> 5
A34: 31 | B34: 26 | C34: 2024-12-15 | D34: 12 | E34: =IF(ISERROR(MATCH(D34,'Simulador Original'!$G$16:$G$17,0))=FALSE,"C",IF(ISERROR(MATCH(D34,'Simulador Original'!$G$18:$G$19,0))=FALSE,"D","")) ->  | F34: =IF(E34="C",0,IF(E34 ="D",ROUND(1/((1+'Simulador Original'!$P$13)^A34),9) * 2,ROUND(1/((1+'Simulador Original'!$P$13)^A34),9))) -> 0.6718117 | G34: 21.17769785 | H34: =+COUNTIF($E$4:E34,"C") -> 5
A35: 32 | B35: 26 | C35: 2025-01-15 | D35: 1 | E35: =IF(ISERROR(MATCH(D35,'Simulador Original'!$G$16:$G$17,0))=FALSE,"C",IF(ISERROR(MATCH(D35,'Simulador Original'!$G$18:$G$19,0))=FALSE,"D","")) -> C | F35: =IF(E35="C",0,IF(E35 ="D",ROUND(1/((1+'Simulador Original'!$P$13)^A35),9) * 2,ROUND(1/((1+'Simulador Original'!$P$13)^A35),9))) -> 0 | G35: 21.17769785 | H35: =+COUNTIF($E$4:E35,"C") -> 6
A36: 33 | B36: 27 | C36: 2025-02-15 | D36: 2 | E36: =IF(ISERROR(MATCH(D36,'Simulador Original'!$G$16:$G$17,0))=FALSE,"C",IF(ISERROR(MATCH(D36,'Simulador Original'!$G$18:$G$19,0))=FALSE,"D","")) ->  | F36: =IF(E36="C",0,IF(E36 ="D",ROUND(1/((1+'Simulador Original'!$P$13)^A36),9) * 2,ROUND(1/((1+'Simulador Original'!$P$13)^A36),9))) -> 0.654790311 | G36: 21.83248816 | H36: =+COUNTIF($E$4:E36,"C") -> 6
A37: 34 | B37: 28 | C37: 2025-03-15 | D37: 3 | E37: =IF(ISERROR(MATCH(D37,'Simulador Original'!$G$16:$G$17,0))=FALSE,"C",IF(ISERROR(MATCH(D37,'Simulador Original'!$G$18:$G$19,0))=FALSE,"D","")) ->  | F37: =IF(E37="C",0,IF(E37 ="D",ROUND(1/((1+'Simulador Original'!$P$13)^A37),9) * 2,ROUND(1/((1+'Simulador Original'!$P$13)^A37),9))) -> 0.64644203 | G37: 22.47893019 | H37: =+COUNTIF($E$4:E37,"C") -> 6
A38: 35 | B38: 29 | C38: 2025-04-15 | D38: 4 | E38: =IF(ISERROR(MATCH(D38,'Simulador Original'!$G$16:$G$17,0))=FALSE,"C",IF(ISERROR(MATCH(D38,'Simulador Original'!$G$18:$G$19,0))=FALSE,"D","")) ->  | F38: =IF(E38="C",0,IF(E38 ="D",ROUND(1/((1+'Simulador Original'!$P$13)^A38),9) * 2,ROUND(1/((1+'Simulador Original'!$P$13)^A38),9))) -> 0.638200185 | G38: 23.11713037 | H38: =+COUNTIF($E$4:E38,"C") -> 6
A39: 36 | B39: 30 | C39: 2025-05-15 | D39: 5 | E39: =IF(ISERROR(MATCH(D39,'Simulador Original'!$G$16:$G$17,0))=FALSE,"C",IF(ISERROR(MATCH(D39,'Simulador Original'!$G$18:$G$19,0))=FALSE,"D","")) ->  | F39: =IF(E39="C",0,IF(E39 ="D",ROUND(1/((1+'Simulador Original'!$P$13)^A39),9) * 2,ROUND(1/((1+'Simulador Original'!$P$13)^A39),9))) -> 0.630063421 | G39: 23.74719379 | H39: =+COUNTIF($E$4:E39,"C") -> 6
A40: 37 | B40: 30 | C40: 2025-06-15 | D40: 6 | E40: =IF(ISERROR(MATCH(D40,'Simulador Original'!$G$16:$G$17,0))=FALSE,"C",IF(ISERROR(MATCH(D40,'Simulador Original'!$G$18:$G$19,0))=FALSE,"D","")) -> C | F40: =IF(E40="C",0,IF(E40 ="D",ROUND(1/((1+'Simulador Original'!$P$13)^A40),9) * 2,ROUND(1/((1+'Simulador Original'!$P$13)^A40),9))) -> 0 | G40: 23.74719379 | H40: =+COUNTIF($E$4:E40,"C") -> 7
A41: 38 | B41: 31 | C41: 2025-07-15 | D41: 7 | E41: =IF(ISERROR(MATCH(D41,'Simulador Original'!$G$16:$G$17,0))=FALSE,"C",IF(ISERROR(MATCH(D41,'Simulador Original'!$G$18:$G$19,0))=FALSE,"D","")) ->  | F41: =IF(E41="C",0,IF(E41 ="D",ROUND(1/((1+'Simulador Original'!$P$13)^A41),9) * 2,ROUND(1/((1+'Simulador Original'!$P$13)^A41),9))) -> 0.614099789 | G41: 24.36129358 | H41: =+COUNTIF($E$4:E41,"C") -> 7
A42: 39 | B42: 32 | C42: 2025-08-15 | D42: 8 | E42: =IF(ISERROR(MATCH(D42,'Simulador Original'!$G$16:$G$17,0))=FALSE,"C",IF(ISERROR(MATCH(D42,'Simulador Original'!$G$18:$G$19,0))=FALSE,"D","")) ->  | F42: =IF(E42="C",0,IF(E42 ="D",ROUND(1/((1+'Simulador Original'!$P$13)^A42),9) * 2,ROUND(1/((1+'Simulador Original'!$P$13)^A42),9))) -> 0.606270294 | G42: 24.96756387 | H42: =+COUNTIF($E$4:E42,"C") -> 7
A43: 40 | B43: 33 | C43: 2025-09-15 | D43: 9 | E43: =IF(ISERROR(MATCH(D43,'Simulador Original'!$G$16:$G$17,0))=FALSE,"C",IF(ISERROR(MATCH(D43,'Simulador Original'!$G$18:$G$19,0))=FALSE,"D","")) ->  | F43: =IF(E43="C",0,IF(E43 ="D",ROUND(1/((1+'Simulador Original'!$P$13)^A43),9) * 2,ROUND(1/((1+'Simulador Original'!$P$13)^A43),9))) -> 0.598540621 | G43: 25.5661045 | H43: =+COUNTIF($E$4:E43,"C") -> 7
A44: 41 | B44: 34 | C44: 2025-10-15 | D44: 10 | E44: =IF(ISERROR(MATCH(D44,'Simulador Original'!$G$16:$G$17,0))=FALSE,"C",IF(ISERROR(MATCH(D44,'Simulador Original'!$G$18:$G$19,0))=FALSE,"D","")) ->  | F44: =IF(E44="C",0,IF(E44 ="D",ROUND(1/((1+'Simulador Original'!$P$13)^A44),9) * 2,ROUND(1/((1+'Simulador Original'!$P$13)^A44),9))) -> 0.590909498 | G44: 26.15701399 | H44: =+COUNTIF($E$4:E44,"C") -> 7
A45: 42 | B45: 35 | C45: 2025-11-15 | D45: 11 | E45: =IF(ISERROR(MATCH(D45,'Simulador Original'!$G$16:$G$17,0))=FALSE,"C",IF(ISERROR(MATCH(D45,'Simulador Original'!$G$18:$G$19,0))=FALSE,"D","")) ->  | F45: =IF(E45="C",0,IF(E45 ="D",ROUND(1/((1+'Simulador Original'!$P$13)^A45),9) * 2,ROUND(1/((1+'Simulador Original'!$P$13)^A45),9))) -> 0.583375668 | G45: 26.74038966 | H45: =+COUNTIF($E$4:E45,"C") -> 7
A46: 43 | B46: 36 | C46: 2025-12-15 | D46: 12 | E46: =IF(ISERROR(MATCH(D46,'Simulador Original'!$G$16:$G$17,0))=FALSE,"C",IF(ISERROR(MATCH(D46,'Simulador Original'!$G$18:$G$19,0))=FALSE,"D","")) ->  | F46: =IF(E46="C",0,IF(E46 ="D",ROUND(1/((1+'Simulador Original'!$P$13)^A46),9) * 2,ROUND(1/((1+'Simulador Original'!$P$13)^A46),9))) -> 0.575937891 | G46: 27.31632755 | H46: =+COUNTIF($E$4:E46,"C") -> 7
A47: 44 | B47: 36 | C47: 2026-01-15 | D47: 1 | E47: =IF(ISERROR(MATCH(D47,'Simulador Original'!$G$16:$G$17,0))=FALSE,"C",IF(ISERROR(MATCH(D47,'Simulador Original'!$G$18:$G$19,0))=FALSE,"D","")) -> C | F47: =IF(E47="C",0,IF(E47 ="D",ROUND(1/((1+'Simulador Original'!$P$13)^A47),9) * 2,ROUND(1/((1+'Simulador Original'!$P$13)^A47),9))) -> 0 | G47: 27.31632755 | H47: =+COUNTIF($E$4:E47,"C") -> 8
A48: 45 | B48: 37 | C48: 2026-02-15 | D48: 2 | E48: =IF(ISERROR(MATCH(D48,'Simulador Original'!$G$16:$G$17,0))=FALSE,"C",IF(ISERROR(MATCH(D48,'Simulador Original'!$G$18:$G$19,0))=FALSE,"D","")) ->  | F48: =IF(E48="C",0,IF(E48 ="D",ROUND(1/((1+'Simulador Original'!$P$13)^A48),9) * 2,ROUND(1/((1+'Simulador Original'!$P$13)^A48),9))) -> 0.561345614 | G48: 27.87767317 | H48: =+COUNTIF($E$4:E48,"C") -> 8
A49: 46 | B49: 38 | C49: 2026-03-15 | D49: 3 | E49: =IF(ISERROR(MATCH(D49,'Simulador Original'!$G$16:$G$17,0))=FALSE,"C",IF(ISERROR(MATCH(D49,'Simulador Original'!$G$18:$G$19,0))=FALSE,"D","")) ->  | F49: =IF(E49="C",0,IF(E49 ="D",ROUND(1/((1+'Simulador Original'!$P$13)^A49),9) * 2,ROUND(1/((1+'Simulador Original'!$P$13)^A49),9))) -> 0.55418871 | G49: 28.43186188 | H49: =+COUNTIF($E$4:E49,"C") -> 8
A50: 47 | B50: 39 | C50: 2026-04-15 | D50: 4 | E50: =IF(ISERROR(MATCH(D50,'Simulador Original'!$G$16:$G$17,0))=FALSE,"C",IF(ISERROR(MATCH(D50,'Simulador Original'!$G$18:$G$19,0))=FALSE,"D","")) ->  | F50: =IF(E50="C",0,IF(E50 ="D",ROUND(1/((1+'Simulador Original'!$P$13)^A50),9) * 2,ROUND(1/((1+'Simulador Original'!$P$13)^A50),9))) -> 0.547123054 | G50: 28.97898493 | H50: =+COUNTIF($E$4:E50,"C") -> 8
A51: 48 | B51: 40 | C51: 2026-05-15 | D51: 5 | E51: =IF(ISERROR(MATCH(D51,'Simulador Original'!$G$16:$G$17,0))=FALSE,"C",IF(ISERROR(MATCH(D51,'Simulador Original'!$G$18:$G$19,0))=FALSE,"D","")) ->  | F51: =IF(E51="C",0,IF(E51 ="D",ROUND(1/((1+'Simulador Original'!$P$13)^A51),9) * 2,ROUND(1/((1+'Simulador Original'!$P$13)^A51),9))) -> 0.540147482 | G51: 29.51913241 | H51: =+COUNTIF($E$4:E51,"C") -> 8
A52: 49 | B52: 40 | C52: 2026-06-15 | D52: 6 | E52: =IF(ISERROR(MATCH(D52,'Simulador Original'!$G$16:$G$17,0))=FALSE,"C",IF(ISERROR(MATCH(D52,'Simulador Original'!$G$18:$G$19,0))=FALSE,"D","")) -> C | F52: =IF(E52="C",0,IF(E52 ="D",ROUND(1/((1+'Simulador Original'!$P$13)^A52),9) * 2,ROUND(1/((1+'Simulador Original'!$P$13)^A52),9))) -> 0 | G52: 29.51913241 | H52: =+COUNTIF($E$4:E52,"C") -> 9
A53: 50 | B53: 41 | C53: 2026-07-15 | D53: 7 | E53: =IF(ISERROR(MATCH(D53,'Simulador Original'!$G$16:$G$17,0))=FALSE,"C",IF(ISERROR(MATCH(D53,'Simulador Original'!$G$18:$G$19,0))=FALSE,"D","")) ->  | F53: =IF(E53="C",0,IF(E53 ="D",ROUND(1/((1+'Simulador Original'!$P$13)^A53),9) * 2,ROUND(1/((1+'Simulador Original'!$P$13)^A53),9))) -> 0.52646201 | G53: 30.04559442 | H53: =+COUNTIF($E$4:E53,"C") -> 9
A54: 51 | B54: 42 | C54: 2026-08-15 | D54: 8 | E54: =IF(ISERROR(MATCH(D54,'Simulador Original'!$G$16:$G$17,0))=FALSE,"C",IF(ISERROR(MATCH(D54,'Simulador Original'!$G$18:$G$19,0))=FALSE,"D","")) ->  | F54: =IF(E54="C",0,IF(E54 ="D",ROUND(1/((1+'Simulador Original'!$P$13)^A54),9) * 2,ROUND(1/((1+'Simulador Original'!$P$13)^A54),9))) -> 0.519749856 | G54: 30.56534428 | H54: =+COUNTIF($E$4:E54,"C") -> 9
A55: 52 | B55: 43 | C55: 2026-09-15 | D55: 9 | E55: =IF(ISERROR(MATCH(D55,'Simulador Original'!$G$16:$G$17,0))=FALSE,"C",IF(ISERROR(MATCH(D55,'Simulador Original'!$G$18:$G$19,0))=FALSE,"D","")) ->  | F55: =IF(E55="C",0,IF(E55 ="D",ROUND(1/((1+'Simulador Original'!$P$13)^A55),9) * 2,ROUND(1/((1+'Simulador Original'!$P$13)^A55),9))) -> 0.51312328 | G55: 31.07846756 | H55: =+COUNTIF($E$4:E55,"C") -> 9
A56: 53 | B56: 44 | C56: 2026-10-15 | D56: 10 | E56: =IF(ISERROR(MATCH(D56,'Simulador Original'!$G$16:$G$17,0))=FALSE,"C",IF(ISERROR(MATCH(D56,'Simulador Original'!$G$18:$G$19,0))=FALSE,"D","")) ->  | F56: =IF(E56="C",0,IF(E56 ="D",ROUND(1/((1+'Simulador Original'!$P$13)^A56),9) * 2,ROUND(1/((1+'Simulador Original'!$P$13)^A56),9))) -> 0.50658119 | G56: 31.58504875 | H56: =+COUNTIF($E$4:E56,"C") -> 9
A57: 54 | B57: 45 | C57: 2026-11-15 | D57: 11 | E57: =IF(ISERROR(MATCH(D57,'Simulador Original'!$G$16:$G$17,0))=FALSE,"C",IF(ISERROR(MATCH(D57,'Simulador Original'!$G$18:$G$19,0))=FALSE,"D","")) ->  | F57: =IF(E57="C",0,IF(E57 ="D",ROUND(1/((1+'Simulador Original'!$P$13)^A57),9) * 2,ROUND(1/((1+'Simulador Original'!$P$13)^A57),9))) -> 0.500122508 | G57: 32.08517126 | H57: =+COUNTIF($E$4:E57,"C") -> 9
A58: 55 | B58: 46 | C58: 2026-12-15 | D58: 12 | E58: =IF(ISERROR(MATCH(D58,'Simulador Original'!$G$16:$G$17,0))=FALSE,"C",IF(ISERROR(MATCH(D58,'Simulador Original'!$G$18:$G$19,0))=FALSE,"D","")) ->  | F58: =IF(E58="C",0,IF(E58 ="D",ROUND(1/((1+'Simulador Original'!$P$13)^A58),9) * 2,ROUND(1/((1+'Simulador Original'!$P$13)^A58),9))) -> 0.493746171 | G58: 32.57891743 | H58: =+COUNTIF($E$4:E58,"C") -> 9
A59: 56 | B59: 46 | C59: 2027-01-15 | D59: 1 | E59: =IF(ISERROR(MATCH(D59,'Simulador Original'!$G$16:$G$17,0))=FALSE,"C",IF(ISERROR(MATCH(D59,'Simulador Original'!$G$18:$G$19,0))=FALSE,"D","")) -> C | F59: =IF(E59="C",0,IF(E59 ="D",ROUND(1/((1+'Simulador Original'!$P$13)^A59),9) * 2,ROUND(1/((1+'Simulador Original'!$P$13)^A59),9))) -> 0 | G59: 32.57891743 | H59: =+COUNTIF($E$4:E59,"C") -> 10
A60: 57 | B60: 47 | C60: 2027-02-15 | D60: 2 | E60: =IF(ISERROR(MATCH(D60,'Simulador Original'!$G$16:$G$17,0))=FALSE,"C",IF(ISERROR(MATCH(D60,'Simulador Original'!$G$18:$G$19,0))=FALSE,"D","")) ->  | F60: =IF(E60="C",0,IF(E60 ="D",ROUND(1/((1+'Simulador Original'!$P$13)^A60),9) * 2,ROUND(1/((1+'Simulador Original'!$P$13)^A60),9))) -> 0.481236348 | G60: 33.06015378 | H60: =+COUNTIF($E$4:E60,"C") -> 10
A61: 58 | B61: 48 | C61: 2027-03-15 | D61: 3 | E61: =IF(ISERROR(MATCH(D61,'Simulador Original'!$G$16:$G$17,0))=FALSE,"C",IF(ISERROR(MATCH(D61,'Simulador Original'!$G$18:$G$19,0))=FALSE,"D","")) ->  | F61: =IF(E61="C",0,IF(E61 ="D",ROUND(1/((1+'Simulador Original'!$P$13)^A61),9) * 2,ROUND(1/((1+'Simulador Original'!$P$13)^A61),9))) -> 0.475100802 | G61: 33.53525458 | H61: =+COUNTIF($E$4:E61,"C") -> 10
A62: 59 | B62: 49 | C62: 2027-04-15 | D62: 4 | E62: =IF(ISERROR(MATCH(D62,'Simulador Original'!$G$16:$G$17,0))=FALSE,"C",IF(ISERROR(MATCH(D62,'Simulador Original'!$G$18:$G$19,0))=FALSE,"D","")) ->  | F62: =IF(E62="C",0,IF(E62 ="D",ROUND(1/((1+'Simulador Original'!$P$13)^A62),9) * 2,ROUND(1/((1+'Simulador Original'!$P$13)^A62),9))) -> 0.469043481 | G62: 34.00429806 | H62: =+COUNTIF($E$4:E62,"C") -> 10
A63: 60 | B63: 50 | C63: 2027-05-15 | D63: 5 | E63: =IF(ISERROR(MATCH(D63,'Simulador Original'!$G$16:$G$17,0))=FALSE,"C",IF(ISERROR(MATCH(D63,'Simulador Original'!$G$18:$G$19,0))=FALSE,"D","")) ->  | F63: =IF(E63="C",0,IF(E63 ="D",ROUND(1/((1+'Simulador Original'!$P$13)^A63),9) * 2,ROUND(1/((1+'Simulador Original'!$P$13)^A63),9))) -> 0.463063388 | G63: 34.46736145 | H63: =+COUNTIF($E$4:E63,"C") -> 10
A64: 61 | B64: 50 | C64: 2027-06-15 | D64: 6 | E64: =IF(ISERROR(MATCH(D64,'Simulador Original'!$G$16:$G$17,0))=FALSE,"C",IF(ISERROR(MATCH(D64,'Simulador Original'!$G$18:$G$19,0))=FALSE,"D","")) -> C | F64: =IF(E64="C",0,IF(E64 ="D",ROUND(1/((1+'Simulador Original'!$P$13)^A64),9) * 2,ROUND(1/((1+'Simulador Original'!$P$13)^A64),9))) -> 0 | G64: 34.46736145 | H64: =+COUNTIF($E$4:E64,"C") -> 11
A65: 62 | B65: 51 | C65: 2027-07-15 | D65: 7 | E65: =IF(ISERROR(MATCH(D65,'Simulador Original'!$G$16:$G$17,0))=FALSE,"C",IF(ISERROR(MATCH(D65,'Simulador Original'!$G$18:$G$19,0))=FALSE,"D","")) ->  | F65: =IF(E65="C",0,IF(E65 ="D",ROUND(1/((1+'Simulador Original'!$P$13)^A65),9) * 2,ROUND(1/((1+'Simulador Original'!$P$13)^A65),9))) -> 0.45133096 | G65: 34.91869241 | H65: =+COUNTIF($E$4:E65,"C") -> 11
A66: 63 | B66: 52 | C66: 2027-08-15 | D66: 8 | E66: =IF(ISERROR(MATCH(D66,'Simulador Original'!$G$16:$G$17,0))=FALSE,"C",IF(ISERROR(MATCH(D66,'Simulador Original'!$G$18:$G$19,0))=FALSE,"D","")) ->  | F66: =IF(E66="C",0,IF(E66 ="D",ROUND(1/((1+'Simulador Original'!$P$13)^A66),9) * 2,ROUND(1/((1+'Simulador Original'!$P$13)^A66),9))) -> 0.445576694 | G66: 35.3642691 | H66: =+COUNTIF($E$4:E66,"C") -> 11
A67: 64 | B67: 53 | C67: 2027-09-15 | D67: 9 | E67: =IF(ISERROR(MATCH(D67,'Simulador Original'!$G$16:$G$17,0))=FALSE,"C",IF(ISERROR(MATCH(D67,'Simulador Original'!$G$18:$G$19,0))=FALSE,"D","")) ->  | F67: =IF(E67="C",0,IF(E67 ="D",ROUND(1/((1+'Simulador Original'!$P$13)^A67),9) * 2,ROUND(1/((1+'Simulador Original'!$P$13)^A67),9))) -> 0.439895792 | G67: 35.80416489 | H67: =+COUNTIF($E$4:E67,"C") -> 11
A68: 65 | B68: 54 | C68: 2027-10-15 | D68: =MONTH(C68) -> 10 | E68: =IF(ISERROR(MATCH(D68,'Simulador Original'!$G$16:$G$17,0))=FALSE,"C",IF(ISERROR(MATCH(D68,'Simulador Original'!$G$18:$G$19,0))=FALSE,"D","")) ->  | F68: =IF(E68="C",0,IF(E68 ="D",ROUND(1/((1+'Simulador Original'!$P$13)^A68),9) * 2,ROUND(1/((1+'Simulador Original'!$P$13)^A68),9))) -> 0.434287319 | G68: 36.23845221 | H68: =+COUNTIF($E$4:E68,"C") -> 11
A69: =A68+1 -> 66 | B69: =IF(E69<>"C",IF(ISERROR(1+B68)=TRUE,1,1+B68),IF(ISNUMBER(B68),B68,1)) -> 55 | C69: =DATE(YEAR(C68) + 1/12,MONTH(C68)+1,DAY(C68)) -> 2027-11-15 | D69: 11 | E69: =IF(ISERROR(MATCH(D69,'Simulador Original'!$G$16:$G$17,0))=FALSE,"C",IF(ISERROR(MATCH(D69,'Simulador Original'!$G$18:$G$19,0))=FALSE,"D","")) ->  | F69: =IF(E69="C",0,IF(E69 ="D",ROUND(1/((1+'Simulador Original'!$P$13)^A69),9) * 2,ROUND(1/((1+'Simulador Original'!$P$13)^A69),9))) -> 0.428750352 | G69: 36.66720256 | H69: =+COUNTIF($E$4:E69,"C") -> 11
A70: 67 | B70: 56 | C70: 2027-12-15 | D70: 12 | E70: =IF(ISERROR(MATCH(D70,'Simulador Original'!$G$16:$G$17,0))=FALSE,"C",IF(ISERROR(MATCH(D70,'Simulador Original'!$G$18:$G$19,0))=FALSE,"D","")) ->  | F70: =IF(E70="C",0,IF(E70 ="D",ROUND(1/((1+'Simulador Original'!$P$13)^A70),9) * 2,ROUND(1/((1+'Simulador Original'!$P$13)^A70),9))) -> 0.423283978 | G70: =G69+ROUND(F70,9) -> 37.09048654 | H70: =+COUNTIF($E$4:E70,"C") -> 11
A71: 68 | B71: 56 | C71: 2028-01-15 | D71: 1 | E71: =IF(ISERROR(MATCH(D71,'Simulador Original'!$G$16:$G$17,0))=FALSE,"C",IF(ISERROR(MATCH(D71,'Simulador Original'!$G$18:$G$19,0))=FALSE,"D","")) -> C | F71: =IF(E71="C",0,IF(E71 ="D",ROUND(1/((1+'Simulador Original'!$P$13)^A71),9) * 2,ROUND(1/((1+'Simulador Original'!$P$13)^A71),9))) -> 0 | G71: 37.09048654 | H71: =+COUNTIF($E$4:E71,"C") -> 12
A72: 69 | B72: 57 | C72: 2028-02-15 | D72: 2 | E72: =IF(ISERROR(MATCH(D72,'Simulador Original'!$G$16:$G$17,0))=FALSE,"C",IF(ISERROR(MATCH(D72,'Simulador Original'!$G$18:$G$19,0))=FALSE,"D","")) ->  | F72: =IF(E72="C",0,IF(E72 ="D",ROUND(1/((1+'Simulador Original'!$P$13)^A72),9) * 2,ROUND(1/((1+'Simulador Original'!$P$13)^A72),9))) -> 0.412559423 | G72: 37.50304596 | H72: =+COUNTIF($E$4:E72,"C") -> 12
A73: 70 | B73: 58 | C73: 2028-03-15 | D73: 3 | E73: =IF(ISERROR(MATCH(D73,'Simulador Original'!$G$16:$G$17,0))=FALSE,"C",IF(ISERROR(MATCH(D73,'Simulador Original'!$G$18:$G$19,0))=FALSE,"D","")) ->  | F73: =IF(E73="C",0,IF(E73 ="D",ROUND(1/((1+'Simulador Original'!$P$13)^A73),9) * 2,ROUND(1/((1+'Simulador Original'!$P$13)^A73),9))) -> 0.407299477 | G73: 37.91034544 | H73: =+COUNTIF($E$4:E73,"C") -> 12
A74: 71 | B74: 59 | C74: 2028-04-15 | D74: 4 | E74: =IF(ISERROR(MATCH(D74,'Simulador Original'!$G$16:$G$17,0))=FALSE,"C",IF(ISERROR(MATCH(D74,'Simulador Original'!$G$18:$G$19,0))=FALSE,"D","")) ->  | F74: =IF(E74="C",0,IF(E74 ="D",ROUND(1/((1+'Simulador Original'!$P$13)^A74),9) * 2,ROUND(1/((1+'Simulador Original'!$P$13)^A74),9))) -> 0.402106592 | G74: 38.31245203 | H74: =+COUNTIF($E$4:E74,"C") -> 12
A75: 72 | B75: 60 | C75: 2028-05-15 | D75: 5 | E75: =IF(ISERROR(MATCH(D75,'Simulador Original'!$G$16:$G$17,0))=FALSE,"C",IF(ISERROR(MATCH(D75,'Simulador Original'!$G$18:$G$19,0))=FALSE,"D","")) ->  | F75: =IF(E75="C",0,IF(E75 ="D",ROUND(1/((1+'Simulador Original'!$P$13)^A75),9) * 2,ROUND(1/((1+'Simulador Original'!$P$13)^A75),9))) -> 0.396979914 | G75: 38.70943195 | H75: =+COUNTIF($E$4:E75,"C") -> 12
A76: 73 | B76: 60 | C76: 2028-06-15 | D76: 6 | E76: =IF(ISERROR(MATCH(D76,'Simulador Original'!$G$16:$G$17,0))=FALSE,"C",IF(ISERROR(MATCH(D76,'Simulador Original'!$G$18:$G$19,0))=FALSE,"D","")) -> C | F76: =IF(E76="C",0,IF(E76 ="D",ROUND(1/((1+'Simulador Original'!$P$13)^A76),9) * 2,ROUND(1/((1+'Simulador Original'!$P$13)^A76),9))) -> 0 | G76: 38.70943195 | H76: =+COUNTIF($E$4:E76,"C") -> 13
A77: 74 | B77: 61 | C77: 2028-07-15 | D77: 7 | E77: =IF(ISERROR(MATCH(D77,'Simulador Original'!$G$16:$G$17,0))=FALSE,"C",IF(ISERROR(MATCH(D77,'Simulador Original'!$G$18:$G$19,0))=FALSE,"D","")) ->  | F77: =IF(E77="C",0,IF(E77 ="D",ROUND(1/((1+'Simulador Original'!$P$13)^A77),9) * 2,ROUND(1/((1+'Simulador Original'!$P$13)^A77),9))) -> 0.386921814 | G77: 39.09635376 | H77: =+COUNTIF($E$4:E77,"C") -> 13
A78: 75 | B78: 62 | C78: 2028-08-15 | D78: 8 | E78: =IF(ISERROR(MATCH(D78,'Simulador Original'!$G$16:$G$17,0))=FALSE,"C",IF(ISERROR(MATCH(D78,'Simulador Original'!$G$18:$G$19,0))=FALSE,"D","")) ->  | F78: =IF(E78="C",0,IF(E78 ="D",ROUND(1/((1+'Simulador Original'!$P$13)^A78),9) * 2,ROUND(1/((1+'Simulador Original'!$P$13)^A78),9))) -> 0.381988735 | G78: 39.4783425 | H78: =+COUNTIF($E$4:E78,"C") -> 13
A79: 76 | B79: 63 | C79: 2028-09-15 | D79: 9 | E79: =IF(ISERROR(MATCH(D79,'Simulador Original'!$G$16:$G$17,0))=FALSE,"C",IF(ISERROR(MATCH(D79,'Simulador Original'!$G$18:$G$19,0))=FALSE,"D","")) ->  | F79: =IF(E79="C",0,IF(E79 ="D",ROUND(1/((1+'Simulador Original'!$P$13)^A79),9) * 2,ROUND(1/((1+'Simulador Original'!$P$13)^A79),9))) -> 0.377118551 | G79: 39.85546105 | H79: =+COUNTIF($E$4:E79,"C") -> 13
A80: 77 | B80: 64 | C80: 2028-10-15 | D80: 10 | E80: =IF(ISERROR(MATCH(D80,'Simulador Original'!$G$16:$G$17,0))=FALSE,"C",IF(ISERROR(MATCH(D80,'Simulador Original'!$G$18:$G$19,0))=FALSE,"D","")) ->  | F80: =IF(E80="C",0,IF(E80 ="D",ROUND(1/((1+'Simulador Original'!$P$13)^A80),9) * 2,ROUND(1/((1+'Simulador Original'!$P$13)^A80),9))) -> 0.37231046 | G80: 40.22777151 | H80: =+COUNTIF($E$4:E80,"C") -> 13
A81: 78 | B81: 65 | C81: 2028-11-15 | D81: 11 | E81: =IF(ISERROR(MATCH(D81,'Simulador Original'!$G$16:$G$17,0))=FALSE,"C",IF(ISERROR(MATCH(D81,'Simulador Original'!$G$18:$G$19,0))=FALSE,"D","")) ->  | F81: =IF(E81="C",0,IF(E81 ="D",ROUND(1/((1+'Simulador Original'!$P$13)^A81),9) * 2,ROUND(1/((1+'Simulador Original'!$P$13)^A81),9))) -> 0.367563669 | G81: 40.59533518 | H81: =+COUNTIF($E$4:E81,"C") -> 13
A82: 79 | B82: 66 | C82: 2028-12-15 | D82: 12 | E82: =IF(ISERROR(MATCH(D82,'Simulador Original'!$G$16:$G$17,0))=FALSE,"C",IF(ISERROR(MATCH(D82,'Simulador Original'!$G$18:$G$19,0))=FALSE,"D","")) ->  | F82: =IF(E82="C",0,IF(E82 ="D",ROUND(1/((1+'Simulador Original'!$P$13)^A82),9) * 2,ROUND(1/((1+'Simulador Original'!$P$13)^A82),9))) -> 0.362877398 | G82: 40.95821258 | H82: =+COUNTIF($E$4:E82,"C") -> 13
A83: 80 | B83: 66 | C83: 2029-01-15 | D83: 1 | E83: =IF(ISERROR(MATCH(D83,'Simulador Original'!$G$16:$G$17,0))=FALSE,"C",IF(ISERROR(MATCH(D83,'Simulador Original'!$G$18:$G$19,0))=FALSE,"D","")) -> C | F83: =IF(E83="C",0,IF(E83 ="D",ROUND(1/((1+'Simulador Original'!$P$13)^A83),9) * 2,ROUND(1/((1+'Simulador Original'!$P$13)^A83),9))) -> 0 | G83: 40.95821258 | H83: =+COUNTIF($E$4:E83,"C") -> 14
A84: 81 | B84: 67 | C84: 2029-02-15 | D84: 2 | E84: =IF(ISERROR(MATCH(D84,'Simulador Original'!$G$16:$G$17,0))=FALSE,"C",IF(ISERROR(MATCH(D84,'Simulador Original'!$G$18:$G$19,0))=FALSE,"D","")) ->  | F84: =IF(E84="C",0,IF(E84 ="D",ROUND(1/((1+'Simulador Original'!$P$13)^A84),9) * 2,ROUND(1/((1+'Simulador Original'!$P$13)^A84),9))) -> 0.353683338 | G84: 41.31189591 | H84: =+COUNTIF($E$4:E84,"C") -> 14
A85: 82 | B85: 68 | C85: 2029-03-15 | D85: 3 | E85: =IF(ISERROR(MATCH(D85,'Simulador Original'!$G$16:$G$17,0))=FALSE,"C",IF(ISERROR(MATCH(D85,'Simulador Original'!$G$18:$G$19,0))=FALSE,"D","")) ->  | F85: =IF(E85="C",0,IF(E85 ="D",ROUND(1/((1+'Simulador Original'!$P$13)^A85),9) * 2,ROUND(1/((1+'Simulador Original'!$P$13)^A85),9))) -> 0.349174035 | G85: 41.66106995 | H85: =+COUNTIF($E$4:E85,"C") -> 14
A86: 83 | B86: 69 | C86: 2029-04-15 | D86: 4 | E86: =IF(ISERROR(MATCH(D86,'Simulador Original'!$G$16:$G$17,0))=FALSE,"C",IF(ISERROR(MATCH(D86,'Simulador Original'!$G$18:$G$19,0))=FALSE,"D","")) ->  | F86: =IF(E86="C",0,IF(E86 ="D",ROUND(1/((1+'Simulador Original'!$P$13)^A86),9) * 2,ROUND(1/((1+'Simulador Original'!$P$13)^A86),9))) -> 0.344722223 | G86: 42.00579217 | H86: =+COUNTIF($E$4:E86,"C") -> 14
A87: 84 | B87: 70 | C87: 2029-05-15 | D87: 5 | E87: =IF(ISERROR(MATCH(D87,'Simulador Original'!$G$16:$G$17,0))=FALSE,"C",IF(ISERROR(MATCH(D87,'Simulador Original'!$G$18:$G$19,0))=FALSE,"D","")) ->  | F87: =IF(E87="C",0,IF(E87 ="D",ROUND(1/((1+'Simulador Original'!$P$13)^A87),9) * 2,ROUND(1/((1+'Simulador Original'!$P$13)^A87),9))) -> 0.34032717 | G87: 42.34611934 | H87: =+COUNTIF($E$4:E87,"C") -> 14
A88: 85 | B88: 70 | C88: 2029-06-15 | D88: 6 | E88: =IF(ISERROR(MATCH(D88,'Simulador Original'!$G$16:$G$17,0))=FALSE,"C",IF(ISERROR(MATCH(D88,'Simulador Original'!$G$18:$G$19,0))=FALSE,"D","")) -> C | F88: =IF(E88="C",0,IF(E88 ="D",ROUND(1/((1+'Simulador Original'!$P$13)^A88),9) * 2,ROUND(1/((1+'Simulador Original'!$P$13)^A88),9))) -> 0 | G88: 42.34611934 | H88: =+COUNTIF($E$4:E88,"C") -> 15
A89: 86 | B89: 71 | C89: 2029-07-15 | D89: 7 | E89: =IF(ISERROR(MATCH(D89,'Simulador Original'!$G$16:$G$17,0))=FALSE,"C",IF(ISERROR(MATCH(D89,'Simulador Original'!$G$18:$G$19,0))=FALSE,"D","")) ->  | F89: =IF(E89="C",0,IF(E89 ="D",ROUND(1/((1+'Simulador Original'!$P$13)^A89),9) * 2,ROUND(1/((1+'Simulador Original'!$P$13)^A89),9))) -> 0.331704455 | G89: 42.6778238 | H89: =+COUNTIF($E$4:E89,"C") -> 15
A90: 87 | B90: 72 | C90: 2029-08-15 | D90: 8 | E90: =IF(ISERROR(MATCH(D90,'Simulador Original'!$G$16:$G$17,0))=FALSE,"C",IF(ISERROR(MATCH(D90,'Simulador Original'!$G$18:$G$19,0))=FALSE,"D","")) ->  | F90: =IF(E90="C",0,IF(E90 ="D",ROUND(1/((1+'Simulador Original'!$P$13)^A90),9) * 2,ROUND(1/((1+'Simulador Original'!$P$13)^A90),9))) -> 0.327475372 | G90: 43.00529917 | H90: =+COUNTIF($E$4:E90,"C") -> 15
A91: 88 | B91: 73 | C91: 2029-09-15 | D91: 9 | E91: =IF(ISERROR(MATCH(D91,'Simulador Original'!$G$16:$G$17,0))=FALSE,"C",IF(ISERROR(MATCH(D91,'Simulador Original'!$G$18:$G$19,0))=FALSE,"D","")) ->  | F91: =IF(E91="C",0,IF(E91 ="D",ROUND(1/((1+'Simulador Original'!$P$13)^A91),9) * 2,ROUND(1/((1+'Simulador Original'!$P$13)^A91),9))) -> 0.323300209 | G91: 43.32859938 | H91: =+COUNTIF($E$4:E91,"C") -> 15
A92: 89 | B92: 74 | C92: 2029-10-15 | D92: 10 | E92: =IF(ISERROR(MATCH(D92,'Simulador Original'!$G$16:$G$17,0))=FALSE,"C",IF(ISERROR(MATCH(D92,'Simulador Original'!$G$18:$G$19,0))=FALSE,"D","")) ->  | F92: =IF(E92="C",0,IF(E92 ="D",ROUND(1/((1+'Simulador Original'!$P$13)^A92),9) * 2,ROUND(1/((1+'Simulador Original'!$P$13)^A92),9))) -> 0.319178277 | G92: 43.64777765 | H92: =+COUNTIF($E$4:E92,"C") -> 15
A93: 90 | B93: 75 | C93: 2029-11-15 | D93: 11 | E93: =IF(ISERROR(MATCH(D93,'Simulador Original'!$G$16:$G$17,0))=FALSE,"C",IF(ISERROR(MATCH(D93,'Simulador Original'!$G$18:$G$19,0))=FALSE,"D","")) ->  | F93: =IF(E93="C",0,IF(E93 ="D",ROUND(1/((1+'Simulador Original'!$P$13)^A93),9) * 2,ROUND(1/((1+'Simulador Original'!$P$13)^A93),9))) -> 0.315108898 | G93: 43.96288655 | H93: =+COUNTIF($E$4:E93,"C") -> 15
A94: 91 | B94: 76 | C94: 2029-12-15 | D94: 12 | E94: =IF(ISERROR(MATCH(D94,'Simulador Original'!$G$16:$G$17,0))=FALSE,"C",IF(ISERROR(MATCH(D94,'Simulador Original'!$G$18:$G$19,0))=FALSE,"D","")) ->  | F94: =IF(E94="C",0,IF(E94 ="D",ROUND(1/((1+'Simulador Original'!$P$13)^A94),9) * 2,ROUND(1/((1+'Simulador Original'!$P$13)^A94),9))) -> 0.311091402 | G94: 44.27397795 | H94: =+COUNTIF($E$4:E94,"C") -> 15
A95: 92 | B95: 76 | C95: 2030-01-15 | D95: 1 | E95: =IF(ISERROR(MATCH(D95,'Simulador Original'!$G$16:$G$17,0))=FALSE,"C",IF(ISERROR(MATCH(D95,'Simulador Original'!$G$18:$G$19,0))=FALSE,"D","")) -> C | F95: =IF(E95="C",0,IF(E95 ="D",ROUND(1/((1+'Simulador Original'!$P$13)^A95),9) * 2,ROUND(1/((1+'Simulador Original'!$P$13)^A95),9))) -> 0 | G95: 44.27397795 | H95: =+COUNTIF($E$4:E95,"C") -> 16
A96: 93 | B96: 77 | C96: 2030-02-15 | D96: 2 | E96: =IF(ISERROR(MATCH(D96,'Simulador Original'!$G$16:$G$17,0))=FALSE,"C",IF(ISERROR(MATCH(D96,'Simulador Original'!$G$18:$G$19,0))=FALSE,"D","")) ->  | F96: =IF(E96="C",0,IF(E96 ="D",ROUND(1/((1+'Simulador Original'!$P$13)^A96),9) * 2,ROUND(1/((1+'Simulador Original'!$P$13)^A96),9))) -> 0.30320942 | G96: 44.57718737 | H96: =+COUNTIF($E$4:E96,"C") -> 16
A97: 94 | B97: 78 | C97: 2030-03-15 | D97: 3 | E97: =IF(ISERROR(MATCH(D97,'Simulador Original'!$G$16:$G$17,0))=FALSE,"C",IF(ISERROR(MATCH(D97,'Simulador Original'!$G$18:$G$19,0))=FALSE,"D","")) ->  | F97: =IF(E97="C",0,IF(E97 ="D",ROUND(1/((1+'Simulador Original'!$P$13)^A97),9) * 2,ROUND(1/((1+'Simulador Original'!$P$13)^A97),9))) -> 0.299343636 | G97: 44.87653101 | H97: =+COUNTIF($E$4:E97,"C") -> 16
A98: 95 | B98: 79 | C98: 2030-04-15 | D98: 4 | E98: =IF(ISERROR(MATCH(D98,'Simulador Original'!$G$16:$G$17,0))=FALSE,"C",IF(ISERROR(MATCH(D98,'Simulador Original'!$G$18:$G$19,0))=FALSE,"D","")) ->  | F98: =IF(E98="C",0,IF(E98 ="D",ROUND(1/((1+'Simulador Original'!$P$13)^A98),9) * 2,ROUND(1/((1+'Simulador Original'!$P$13)^A98),9))) -> 0.29552714 | G98: 45.17205815 | H98: =+COUNTIF($E$4:E98,"C") -> 16
A99: 96 | B99: 80 | C99: 2030-05-15 | D99: 5 | E99: =IF(ISERROR(MATCH(D99,'Simulador Original'!$G$16:$G$17,0))=FALSE,"C",IF(ISERROR(MATCH(D99,'Simulador Original'!$G$18:$G$19,0))=FALSE,"D","")) ->  | F99: =IF(E99="C",0,IF(E99 ="D",ROUND(1/((1+'Simulador Original'!$P$13)^A99),9) * 2,ROUND(1/((1+'Simulador Original'!$P$13)^A99),9))) -> 0.291759302 | G99: 45.46381745 | H99: =+COUNTIF($E$4:E99,"C") -> 16

Sheet Simulador Original (2) (hidden)
C2: SIMULADOR DE CUOTAS - CRÉDITO CONVENIOS
C5: Importe Solicitado | G5: 49420 | K5: Fecha Desembolso | P5: 2018-01-05
C6: Saldo de Capital | G6: 49420 | K6: Fecha Final de Gracia | P6: 2018-02-15
C7: Saldo de Interes | G7: 0 | K7: Fecha de la 1° cuota | P7: 2018-03-15
C8: Tasa Anual (TEA) | G8: 14.03 | H8: Tasa de Gracia | I8: 14.03 | K8: Fecha final de vencimiento | P8: 2020-06-15
C9: Tasa de Seguro de Desgravámen | G9: 0.0009 | K9: Base | P9: 360
K10: Frecuencia pago en días | P10: 30
C11: Comisiones + Pago Casillero | G11: 16.5 | K11: Tasa Equivalente | P11: 13.201224 | Q11: tea conv. A tem luego nominal anual
K12: Días entre cuotas | P12: 35.45833333 | Q12: dias promedio entre cuotas
C13: Plazo y Nro. Cuotas | G13: 24 | H13: 24 | K13: Factor Aplicado | P13: 0.01300259447 | Q13: tem convertida de manera nominal a los dias entre cuotas
C14: Días de Gracia | G14: 41 | K14: Factor Aplicado para la cuota | P14: 0.04877368648 | Q14: Factor de cuota (ok)
C15: (+/- 30 días antes de la fecha 1° cuota) | K15: Interes de Gracia | P15: 744.5113 | Q15: Ok
C16: Mes de No Pago 1 | G16: 1 | K16: Saldo Interes +/- Interes Gracia | P16: 744.5113
C17: Mes de No Pago 2 | G17: 8
C18: Mes Cuota Doble 1 | G18: 0 | K18: Comisión de Gracia Desgravamen (Primera Cuota) | P18: 60.78
C19: Mes Cuota Doble 2 | G19: 0 | S19: 994.12
I20: =REDONDEAR(SI(O(F16+ F17> 0,F18 + F19>0),REDONDEAR.MAS(O16/BUSCARV(F13,Calculos!$A$3:$G$99,7,FALSO),2),O16*$O$14),2) | S20: 976.59
R21: -12889.26 | S21: 17.53
I22: Con Factor | J22: Con Minicronograma | L22: Suavización | N22: Ultimo saldo de Principal | P22: -12889.26 | R22: 0
F23: Valor de cuota por dias de gracia | I23: 31.02130417 | J23: 0.07041939689 | N23: Numero de Dias | P23: 851
F24: Valor de cuota por capital | I24: 2877.54 | J24: Promedio | K24: Exceso Desgravamen | N24: Valor de Cuota Nivelada | P24: -35419.79 | R24: 0.3639136457 | S24: -35418.45752
F25: Seguro de Desgravamen (FPF) | I25: 44.47 | J25: 47.0025 | K25: 2.5325 | N25: Factor Ajuste | P25: -1727.553733 | R25: Se copia el valor de la celda P26 solo en la primera corrida, siempre que sea mayor a cero
F26: Comisiones + Pago de Casillero | I26: 16.5 | N26: Exceso de Int + Gracia | P26: 0 | Q26: 0 | R26: 0
F28: Cuota | I28: 2969.531304 | J28: 2972.063804 | N28: Digite Factor de Ajuste Anterior mas El Actual | R28: -12889.26 | S28: =-1727.55373262017+4756.46892161516+-13096.0030749489+6623.75341315595+6623.75341315595+-13664.6232949772+6623.75341315595+6623.75341315595+-12099.0469751545+6623.75341315595+6623.75341315595+-16409.571252974+6623.75341315595+6623.75341315595+-4541.40525297992+6623.75341315595-12357.0929427365+6623.75341315595+6623.75341315595+-15699.0688667145+6623.75341315595+6623.75341315595+-6497.61880707829
K29: 2018.81 | S29: -460.279128302192
C30: =SI(O(MES(FECHA.MES($O$6,D32))=$F$16,MES(FECHA.MES($O$6,D32))=$F$17),SI(ABS($F$17-$F$16)=1,FECHA.MES($O$6,D32+2),FECHA.MES($O$6,D32+1)),FECHA.MES($O$6,D32)) | V30: Minicronograma de Gracia
C31: Fecha Vcto. | D31: Nro. Cuota (De acuerdo a Plazo) | E31: Nro. Cuota | F31: Periodo Base | G31: Tasa | H31: Nro. Dias | I31: Principal | J31: Capital | K31: Interes | L31: Interes de Gracia | M31: Interes Total | N31: Valor Cuota | O31: Comision Envio Informacion | P31: Seguro de Desgravamen | Q31: Cuota | R31: Saldo Principal | S31: Exceso | T31: Importe de Gracia Desgravamen | V31: Dias Transcurridos Acumulados | W31: Factor Simple Actualizacion | X31: Principal | Y31: Capital | Z31: Interes | AA31: Cuota Gracia | AB31: Saldo Deuda
A32: 1 | B32: 1 | C32: 2018-03-15 | D32: 1 | E32: 1 | F32: 360 | G32: 14.03 | H32: 28 | I32: 49420 | J32: 2309.52 | K32: 507.24 | L32: 31.02130417 | M32: 538.2613042 | N32: 2847.781304 | O32: 16.5 | P32: 105.25 | Q32: 2969.531304 | R32: 47110.48 | S32: 0 | T32: 60.78 | U32: =+'Simulador Original'!J32-'Simulador Original (2)'!J32 -> -2036.015536 | V32: 28 | W32: 0.9898404087 | X32: 744.5113 | Y32: -7.571146343 | Z32: 7.641565739 | AA32: 0.07041939689 | AB32: 752.0824463
A33: 2 | B33: 1 | C33: 2018-04-15 | D33: 2 | E33: 2 | F33: 360 | G33: 14.03 | H33: 31 | I33: 47110.48 | J33: 2341.9 | K33: 535.64 | L33: 31.02130417 | M33: 566.6613042 | N33: 2908.561304 | O33: 16.5 | P33: 44.47 | Q33: 2969.531304 | R33: 44768.58 | S33: 0 | T33: 0 | U33: =+'Simulador Original'!J33-'Simulador Original (2)'!J33 -> -1703.195536 | V33: 59 | W33: 0.9787126441 | X33: 752.0824463 | Y33: -8.480605687 | Z33: 8.551025084 | AA33: 0.07041939689 | AB33: 760.563052
A34: 3 | B34: 1 | C34: 2018-05-15 | D34: 3 | E34: 3 | F34: 360 | G34: 14.03 | H34: 30 | I34: 44768.58 | J34: 2385.04 | K34: 492.5 | L34: 31.02130417 | M34: 523.5213042 | N34: 2908.561304 | O34: 16.5 | P34: 44.47 | Q34: 2969.531304 | R34: 42383.54 | S34: 0 | T34: 0 | U34: =+'Simulador Original'!J34-'Simulador Original (2)'!J34 -> -1739.325536 | V34: 89 | W34: 0.9680629642 | X34: 760.563052 | Y34: -8.296549847 | Z34: 8.366969244 | AA34: 0.07041939689 | AB34: 768.8596019
A35: 4 | B35: 1 | C35: 2018-06-15 | D35: 4 | E35: 4 | F35: 360 | G35: 14.03 | H35: 31 | I35: 42383.54 | J35: 2395.65 | K35: 481.89 | L35: 31.02130417 | M35: 512.9113042 | N35: 2908.561304 | O35: 16.5 | P35: 44.47 | Q35: 2969.531304 | R35: 39987.89 | S35: 0 | T35: 0 | U35: =+'Simulador Original'!J35-'Simulador Original (2)'!J35 -> -1731.665536 | V35: 120 | W35: 0.9571800213 | X35: 768.8596019 | Y35: -8.671358547 | Z35: 8.741777944 | AA35: 0.07041939689 | AB35: 777.5309604
A36: 5 | B36: 1 | C36: 2018-07-15 | D36: 5 | E36: 5 | F36: 360 | G36: 14.03 | H36: 30 | I36: 39987.89 | J36: 2437.63 | K36: 439.91 | L36: 31.02130417 | M36: 470.9313042 | N36: 2908.561304 | O36: 16.5 | P36: 44.47 | Q36: 2969.531304 | R36: 37550.26 | S36: 0 | T36: 0 | U36: =+'Simulador Original'!J36-'Simulador Original (2)'!J36 -> -1777.555536 | V36: 150 | W36: 0.9467646446 | X36: 777.5309604 | Y36: -8.483214145 | Z36: 8.553633542 | AA36: 0.07041939689 | AB36: 786.0141746
A37: 6 | B37: 1 | C37: 2018-09-15 | D37: 7 | E37: 6 | F37: 360 | G37: 14.03 | H37: 62 | I37: 37550.26 | J37: 1974.34 | K37: 858.73 | L37: 31.02130417 | M37: 889.7513042 | N37: 2864.091304 | O37: 16.5 | P37: 88.94 | Q37: 2969.531304 | R37: 35575.92 | S37: 0 | T37: 44.47 | U37: =+'Simulador Original'!J37-'Simulador Original (2)'!J37 -> -1296.305536 | V37: 212 | W37: 0.9255972832 | X37: 786.0141746 | Y37: -17.90483438 | Z37: 17.97525378 | AA37: 0.07041939689 | AB37: 803.9190089
A38: 7 | B38: 1 | C38: 2018-10-15 | D38: 8 | E38: 7 | F38: 360 | G38: 14.03 | H38: 30 | I38: 35575.92 | J38: 2486.17 | K38: 391.37 | L38: 31.02130417 | M38: 422.3913042 | N38: 2908.561304 | O38: 16.5 | P38: 44.47 | Q38: 2969.531304 | R38: 33089.75 | S38: 0 | T38: 0 | U38: =+'Simulador Original'!J38-'Simulador Original (2)'!J38 -> -2143.255536 | V38: 242 | W38: 0.9155255683 | X38: 803.9190089 | Y38: -8.773509591 | Z38: 8.843928988 | AA38: 0.07041939689 | AB38: 812.6925185
A39: 8 | B39: 1 | C39: 2018-11-15 | D39: 9 | E39: 8 | F39: 360 | G39: 14.03 | H39: 31 | I39: 33089.75 | J39: 2501.32 | K39: 376.22 | L39: 31.02130417 | M39: 407.2413042 | N39: 2908.561304 | O39: 16.5 | P39: 44.47 | Q39: 2969.531304 | R39: 30588.43 | S39: 0 | T39: 0 | U39: =+'Simulador Original'!J39-'Simulador Original (2)'!J39 -> -1791.735536 | V39: 273 | W39: 0.9052332496 | X39: 812.6925185 | Y39: -9.169729932 | Z39: 9.240149328 | AA39: 0.07041939689 | AB39: 821.8622485
A40: 9 | B40: 1 | C40: 2018-12-15 | D40: 10 | E40: 9 | F40: 360 | G40: 14.03 | H40: 30 | I40: 30588.43 | J40: 2541.04 | K40: 336.5 | L40: 31.02130417 | M40: 367.5213042 | N40: 2908.561304 | O40: 16.5 | P40: 44.47 | Q40: 2969.531304 | R40: 28047.39 | S40: 0 | T40: 0 | U40: =+'Simulador Original'!J40-'Simulador Original (2)'!J40 -> -1854.755536 | V40: 303 | W40: 0.8953831221 | X40: 821.8622485 | Y40: -8.970903525 | Z40: 9.041322922 | AA40: 0.07041939689 | AB40: 830.833152
A41: 10 | B41: 1 | C41: 2019-02-15 | D41: 12 | E41: 10 | F41: 360 | G41: 14.03 | H41: 62 | I41: 28047.39 | J41: 2191.66 | K41: 641.41 | L41: 31.02130417 | M41: 672.4313042 | N41: 2864.091304 | O41: 16.5 | P41: 88.94 | Q41: 2969.531304 | R41: 25855.73 | S41: 0 | T41: 44.47 | U41: =+'Simulador Original'!J41-'Simulador Original (2)'!J41 -> -1487.985536 | V41: 365 | W41: 0.875364527 | X41: 830.833152 | Y41: -18.92979362 | Z41: 19.00021302 | AA41: 0.07041939689 | AB41: 849.7629456
A42: 11 | B42: 1 | C42: 2019-03-15 | D42: 13 | E42: 11 | F42: 360 | G42: 14.03 | H42: 28 | I42: 25855.73 | J42: 2612.16 | K42: 265.38 | L42: 31.02130417 | M42: 296.4013042 | N42: 2908.561304 | O42: 16.5 | P42: 44.47 | Q42: 2969.531304 | R42: 23243.57 | S42: 0 | T42: 0 | U42: =+'Simulador Original'!J42-'Simulador Original (2)'!J42 -> -2205.675536 | V42: 393 | W42: 0.8664711811 | X42: 849.7629456 | Y42: -8.651435344 | Z42: 8.721854741 | AA42: 0.07041939689 | AB42: 858.414381
A43: 12 | B43: 1 | C43: 2019-04-15 | D43: 14 | E43: 12 | F43: 360 | G43: 14.03 | H43: 31 | I43: 23243.57 | J43: 2613.27 | K43: 264.27 | L43: 31.02130417 | M43: 295.2913042 | N43: 2908.561304 | O43: 16.5 | P43: 44.47 | Q43: 2969.531304 | R43: 20630.3 | S43: 0 | T43: 0 | U43: =+'Simulador Original'!J43-'Simulador Original (2)'!J43 -> -1907.295536 | V43: 424 | W43: 0.8567303308 | X43: 858.414381 | Y43: -9.689578247 | Z43: 9.759997643 | AA43: 0.07041939689 | AB43: 868.1039592
A44: 13 | B44: 1 | C44: 2019-05-15 | D44: 15 | E44: 13 | F44: 360 | G44: 14.03 | H44: 30 | I44: 20630.3 | J44: 2650.59 | K44: 226.95 | L44: 31.02130417 | M44: 257.9713042 | N44: 2908.561304 | O44: 16.5 | P44: 44.47 | Q44: 2969.531304 | R44: 17979.71 | S44: 0 | T44: 0 | U44: =+'Simulador Original'!J44-'Simulador Original (2)'!J44 -> -1936.875536 | V44: 454 | W44: 0.8474079787 | X44: 868.1039592 | Y44: -9.479609504 | Z44: 9.550028901 | AA44: 0.07041939689 | AB44: 877.5835687
A45: 14 | B45: 1 | C45: 2019-06-15 | D45: 16 | E45: 14 | F45: 360 | G45: 14.03 | H45: 31 | I45: 17979.71 | J45: 2673.11 | K45: 204.43 | L45: 31.02130417 | M45: 235.4513042 | N45: 2908.561304 | O45: 16.5 | P45: 44.47 | Q45: 2969.531304 | R45: 15306.6 | S45: 0 | T45: 0 | U45: =+'Simulador Original'!J45-'Simulador Original (2)'!J45 -> -1942.595536 | V45: 485 | W45: 0.8378814365 | X45: 877.5835687 | Y45: -9.907528029 | Z45: 9.977947426 | AA45: 0.07041939689 | AB45: 887.4910967
A46: 15 | B46: 1 | C46: 2019-07-15 | D46: 17 | E46: 15 | F46: 360 | G46: 14.03 | H46: 30 | I46: 15306.6 | J46: 2709.15 | K46: 168.39 | L46: 31.02130417 | M46: 199.4113042 | N46: 2908.561304 | O46: 16.5 | P46: 44.47 | Q46: 2969.531304 | R46: 12597.45 | S46: 0 | T46: 0 | U46: =+'Simulador Original'!J46-'Simulador Original (2)'!J46 -> -1979.595536 | V46: 515 | W46: 0.8287641853 | X46: 887.4910967 | Y46: -9.692887789 | Z46: 9.763307186 | AA46: 0.07041939689 | AB46: 897.1839845
A47: 16 | B47: 1 | C47: 2019-09-15 | D47: 19 | E47: 16 | F47: 360 | G47: 14.03 | H47: 62 | I47: 12597.45 | J47: 2544.98 | K47: 288.09 | L47: 31.02130417 | M47: 319.1113042 | N47: 2864.091304 | O47: 16.5 | P47: 88.94 | Q47: 2969.531304 | R47: 10052.47 | S47: 0 | T47: 44.47 | U47: =+'Simulador Original'!J47-'Simulador Original (2)'!J47 -> -1798.975536 | V47: 577 | W47: 0.810235028 | X47: 897.1839845 | Y47: -20.447162 | Z47: 20.5175814 | AA47: 0.07041939689 | AB47: 917.6311465
A48: 17 | B48: 1 | C48: 2019-10-15 | D48: 20 | E48: 17 | F48: 360 | G48: 14.03 | H48: 30 | I48: 10052.47 | J48: 2766.95 | K48: 110.59 | L48: 31.02130417 | M48: 141.6113042 | N48: 2908.561304 | O48: 16.5 | P48: 44.47 | Q48: 2969.531304 | R48: 7285.52 | S48: 0 | T48: 0 | U48: =+'Simulador Original'!J48-'Simulador Original (2)'!J48 -> -2281.275536 | V48: 607 | W48: 0.801418606 | X48: 917.6311465 | Y48: -10.02445908 | Z48: 10.09487847 | AA48: 0.07041939689 | AB48: 927.6556056
A49: 18 | B49: 1 | C49: 2019-11-15 | D49: 21 | E49: 18 | F49: 360 | G49: 14.03 | H49: 31 | I49: 7285.52 | J49: 2794.71 | K49: 82.83 | L49: 31.02130417 | M49: 113.8513042 | N49: 2908.561304 | O49: 16.5 | P49: 44.47 | Q49: 2969.531304 | R49: 4490.81 | S49: 0 | T49: 0 | U49: =+'Simulador Original'!J49-'Simulador Original (2)'!J49 -> -2027.635536 | V49: 638 | W49: 0.7924090753 | X49: 927.6556056 | Y49: -10.47683695 | Z49: 10.54725634 | AA49: 0.07041939689 | AB49: 938.1324426
A50: 19 | B50: 1 | C50: 2019-12-15 | D50: 22 | E50: 19 | F50: 360 | G50: 14.03 | H50: 30 | I50: 4490.81 | J50: 2828.14 | K50: 49.4 | L50: 31.02130417 | M50: 80.42130417 | N50: 2908.561304 | O50: 16.5 | P50: 44.47 | Q50: 2969.531304 | R50: 1662.67 | S50: 0 | T50: 0 | U50: =+'Simulador Original'!J50-'Simulador Original (2)'!J50 -> -2068.675536 | V50: 668 | W50: 0.7837866231 | X50: 938.1324426 | Y50: -10.24999424 | Z50: 10.32041364 | AA50: 0.07041939689 | AB50: 948.3824368
A51: 20 | B51: 1 | C51: 2020-02-15 | D51: 24 | E51: 20 | F51: 360 | G51: 14.03 | H51: 62 | I51: 1662.67 | J51: 2795.05 | K51: 38.02 | L51: 31.02130417 | M51: 69.04130417 | N51: 2864.091304 | O51: 16.5 | P51: 88.94 | Q51: 2969.531304 | R51: -1132.38 | S51: 0 | T51: 44.47 | U51: =+'Simulador Original'!J51-'Simulador Original (2)'!J51 -> -2019.785536 | V51: 730 | W51: 0.766263055 | X51: 948.3824368 | Y51: -21.61801261 | Z51: 21.688432 | AA51: 0.07041939689 | AB51: 970.0004494
A52: 21 | B52: 1 | C52: 2020-03-15 | D52: 25 | E52: 21 | F52: 360 | G52: 14.03 | H52: 29 | I52: -1132.38 | J52: 2889.58 | K52: -12.04 | L52: 31.02130417 | M52: 18.98130417 | N52: 2908.561304 | O52: 16.5 | P52: 44.47 | Q52: 2969.531304 | R52: -4021.96 | S52: 0 | T52: 0 | U52: =+'Simulador Original'!J52-'Simulador Original (2)'!J52 -> -2335.175536 | V52: 759 | W52: 0.7582015703 | X52: 970.0004494 | Y52: -10.24299082 | Z52: 10.31341022 | AA52: 0.07041939689 | AB52: 980.2434402
A53: 22 | B53: 1 | C53: 2020-04-15 | D53: 26 | E53: 22 | F53: 360 | G53: 14.03 | H53: 31 | I53: -4021.96 | J53: 2923.27 | K53: -45.73 | L53: 31.02130417 | M53: -14.70869583 | N53: 2908.561304 | O53: 16.5 | P53: 44.47 | Q53: 2969.531304 | R53: -6945.23 | S53: 0 | T53: 0 | U53: =+'Simulador Original'!J53-'Simulador Original (2)'!J53 -> -2140.895536 | V53: 790 | W53: 0.7496778846 | X53: 980.2434402 | Y53: -11.07474997 | Z53: 11.14516937 | AA53: 0.07041939689 | AB53: 991.3181902
A54: 23 | B54: 1 | C54: 2020-05-15 | D54: 27 | E54: 23 | F54: 360 | G54: 14.03 | H54: 30 | I54: -6945.23 | J54: 2953.94 | K54: -76.4 | L54: 31.02130417 | M54: -45.37869583 | N54: 2908.561304 | O54: 16.5 | P54: 44.47 | Q54: 2969.531304 | R54: -9899.17 | S54: 0 | T54: 0 | U54: =+'Simulador Original'!J54-'Simulador Original (2)'!J54 -> -2162.995536 | V54: 820 | W54: 0.7415204039 | X54: 991.3181902 | Y54: -10.83509171 | Z54: 10.9055111 | AA54: 0.07041939689 | AB54: 1002.153282
A55: 24 | B55: 1 | C55: 2020-06-15 | D55: 28 | E55: 24 | F55: 360 | G55: 14.03 | H55: 31 | I55: -9899.17 | J55: 2990.09 | K55: -112.55 | L55: 31.02130417 | M55: -81.52869583 | N55: 2908.561304 | O55: 16.5 | P55: 44.47 | Q55: 2969.531304 | R55: -12889.26 | S55: 0 | T55: 0 | U55: =+'Simulador Original'!J55-'Simulador Original (2)'!J55 -> -2184.035536 | V55: 851 | W55: 0.7331842475 | X55: 1002.153282 | Y55: -11.32386044 | Z55: 11.39427983 | AA55: 0.07041939689 | AB55: 1013.477142
X56: 1013.477142 | AA56: 0.07041939689
AA57: 0.07041939689
AA58: 0.07041939689
AA59: 0.07041939689
AA60: 0.07041939689
AA61: 0.07041939689
AA62: 0.07041939689
AA63: 0.07041939689
AA64: 0.07041939689
AA65: 0.07041939689
AA66: 0.07041939689
AA67: 0.07041939689
AA68: 0.07041939689
AA69: 0.07041939689
AA70: 0.07041939689
AA71: 0.07041939689
AA72: 0.07041939689
AA73: 0.07041939689
AA74: 0.07041939689
AA75: 0.07041939689
AA76: 0.07041939689
AA77: 0.07041939689
AA78: 0.07041939689
AA79: 0.07041939689
AA80: 0.07041939689
AA81: 0.07041939689
AA82: 0.07041939689
AA83: 0.07041939689
AA84: 0.07041939689
AA85: 0.07041939689
AA86: 0.07041939689
AA87: 0.07041939689
AA88: 0.07041939689
AA89: 0.07041939689
AA90: 0.07041939689
AA91: 0.07041939689
AA92: 0.07041939689
AA93: 0.07041939689
AA94: 0.07041939689
AA95: 0.07041939689
AA96: 0.07041939689
AA97: 0.07041939689
AA98: 0.07041939689
AA99: 0.07041939689
AA100: 0.07041939689
AA101: 0.07041939689
AA102: 0.07041939689
AA103: 0.07041939689
J105: 62309.26
J106: 12889.26
